Workbook

Sheet ТИТУЛ
B26: Расчет материалов
L31: =CONCATENATE("СПЕЦИФИКАЦИЯ ",номер_объекта) -> СПЕЦИФИКАЦИЯ 9-9075-МПККИТ-01.26
B32: =IF(ОБЩИЕ_ДАННЫЕ!C6=0,"",ОБЩИЕ_ДАННЫЕ!C6) -> 9-9075-МПККИТ-01.26
M33: =IF(ISERROR(LEFT(B32,FIND("-",B32)-1))," ",LEFT(B32,FIND("-",B32)-1)) -> 9
L35: 1 | M35: Пустовалова А.
L36: 2 | M36: Заброда Р.
L37: 3 | M37: Новикова А.
L38: 4 | M38: Филатова Т.
L39: 5 | M39: Крутоверцева Ю.
L40: 6 | M40: Рогалев В.
L41: 7 | M41: Пятков Е.
L42: 8 | M42: Горюшкин К.
L43: 9 | M43: Козырева Е.
L44: 10 | M44: Линькова Д.
L45: 11 | M45: Хахалева М.
L46: 12 | M46: Воеводин В.
L47: 13 | M47: Чурилова Д.
L48: 14 | M48: Шустов С.
L49: 15 | M49: Лобанова Т.
L50: 16
L51: 17 | M51: Рыбушкин М.
L52: 18
L53: 19
L54: 20 | M54: Кудрявцева К.
L55: 21 | M55: Рукояткин М.
B64: Расчет выполнил: | D64: =IFERROR(INDEX(M35:M57,MATCH(VALUE(M33),L35:L57)),"") -> Козырева Е.
D65: =IFERROR(IF(VALUE(M33)<17,"prc@tn.ru",""),"") -> prc@tn.ru
D66: =IFERROR(IF(VALUE(M33)<17," 8-903-375-95-11",""),"") -> 8-903-375-95-11
C67: =YEAR(TODAY()) -> 2026

Sheet ОБЩИЕ_ДАННЫЕ
H1: ↓ | J1: Дата редакции шаблона: 22.01.26
B2: ОБЩИЕ ДАННЫЕ | H2: Кровля горизонт | J2: Т0 | K2: Нет полной информации о площади объекта (чертежи с искажениями, нечитаемые размеры). | X2: Скидка
B3: Дата поступления исходных данных | C3: =IFERROR(LEFT(C206,FIND(" ",C206)-1)*1," ") -> 2026-01-21 | J3: Т1 | K3: Присутствует информация о площади, нет данных по любому из пунктов: - Состав типов кровли; - Тип местности; - Тип основания; - Продуваемость конструкции.
B4: Дата выдачи расчета | C4: =IF(C204=0," ",C204) -> 2026-01-27
B5: Номер заявки | C5: =IF(C207=0," ",C207) -> 235601
B6: Шифр расчета | C6: =IF(C203=0," ",C203) -> 9-9075-МПККИТ-01.26
B7: № CRM | C7: 303297 | J7: Т2 | K7: Присутствует информация о площади и составу конструкций, нет данных по любому из пунктов: -Тип местности; -Тип основания; -Продуваемость конструкции.
B8: Объект | C8: Проектирование строительных конструкция покрытия Цеха М10. АО Коломенский завод
B9: Адрес объекта/ Регион объекта | C9: Московская область, г.Коломна, ул.Партизан, д.42 | F9: ЦФО | J9: Т3 | K9: Присутствует полная информация о площади кровли и выступающим элементам + выполнен ветровой расчет п.5.
B10: Заказчик/ Регион заказчика | C10: =IF(C213=0," ",C213) -> РТП | F10: ПФО
B11: Организация/Для кого | C11: =IF(C218=0," ",C218) ->  | E11: =IF(B217=0," ",LEFT(B217,(LEN(B217)-1))) -> ОЦО КП | H11: Кровля примыкан. | J11: Т1 | K11: Нет информации по узлам примыканий, учитывается стандартное примыкание тип1 (для ПМ), тип 2 (для РМ)
B12: ФИО Заказчика | C12: =IF(C209=0," ",C209) -> Трофимов Роман Олегович
B13: Должность | C13: =IF(C210=0," ",C210) -> 
B14: Контакты заказчика | C14: =IF(C211=0," ",C211) -> +7 (980) 164-03-99 | E14: =IF(C212=0," ",C212) -> trofimov@tn.ru
B15: Площадь конструкции, м2 | C15: =SUM(Свойства_расчета!$D:$D) -> 24170 | J15: Т2 | K15: Присутствует частичная информация по примыканиям, в случае если узлы примыканий в проекте отличаются от стандартов ТН, принимаются узлы ТН.
B16: Текущая стадия | C16: =IF(C231=0,"Нет данных ",C231) -> Нет данных
B17: Тип расчета | C17: =IF(C215=0," ",C215) -> Новый расчет
B18: Количество вариантов расчета | C18: 1 | D18: № варианта | F18: 1 | J18: Т3 | K18: Присутствует полная информация по примыканиям, в случае если узлы примыканий в проекте отличаются от стандартов ТН, принимаются узлы ТН.
B19: Количество типов конструкции | C19: =COUNT(Свойства_расчета!D:D) -> 1
H20: Ветровой расчет | J20: Т1 | K20: Нет данных по любому из пунктов: -Тип местности; -Тип основания; -Продуваемость конструкции; -Геометрические размеры здания.
B21: ТОЧНОСТЬ РАСЧЁТА
B22: Наименование показателя | D22: Класс | E22: Погрешность
B23: Расчет материалов по горизонтальной части кровли | D23: Т2 | E23: =IF(D23="Т0",N100,IF(D23="Т1",N101,IF(D23="Т2",N102,IF(D23="Т3",N103,"")))) -> 5-25%
B24: Расчет материалов по примыканиям | D24: Т1 | E24: =IF(D24="Т0",N100,IF(D24="Т1",N105,IF(D24="Т2",N106,IF(D24="Т3",N107,"")))) -> 5-25%
B25: Расчет количества клиновидной теплоизоляции | D25: =IF((O33)=1,"Т2",IF(O33=2,"Т2",IF(O33=3,"Т1","0"))) -> Т2 | E25: =IF(D25="Т0",N100,IF(D25="Т1",N109,IF(D25="Т2",N110,IF(D25="Т3",N111,"")))) -> Клин.плиты 5-8% Доб.плиты 5-10% | J25: Т3 | K25: Предоставлены все данные для расчета.
B26: Ветровой расчет | D26: 0 | E26: =IF(D26="Т0",N100,IF(D26="Т1",N113,IF(D26="Т3",N114,""))) ->  | H26: Примечание: | J26: -
B27: Ссылка на ветровой расчёт
B30: СТОИМОСТЬ РАСЧЁТА | H30: Стоимость расчета СБЕ
B31: Вид расчета | C31: Сложность | D31: Стоимость | E31: Скидка % | F31: Итого: | H31: Вид расчета | O31: Сложность | P31: Стоимость | Q31: Скидка % | R31: Итого: | W31: КВ | X31: XPS | Y31: ПИР | Z31: ПМ | AA31: РМ | AB31: МиСХ | AC31: Плантер
B32: Анализ чертежей | C32: =O32 -> 3 | D32: 0 | E32: 1 | F32: =D32*(100%-E32) -> 0 | H32: Анализ чертежей | O32: 3 | P32: =IF(OR(C15=0,O32=0),0,INDEX(Прайс!J39:M41,O32,P91)) -> 4000 | Q32: 1 | R32: =P32*(100%-Q32) -> 0 | W32: ='Деление по СБЕ'!C43 -> 1 | X32: ='Деление по СБЕ'!D43 -> 0 | Y32: ='Деление по СБЕ'!E43 -> 1 | Z32: ='Деление по СБЕ'!F43 -> 0 | AA32: ='Деление по СБЕ'!G43 -> 0 | AB32: ='Деление по СБЕ'!H43 -> 1 | AC32: ='Деление по СБЕ'!I43 -> 0
B33: Расчет количества клиновидной теплоизоляции | C33: =O33 -> 2 | D33: =IF(AND($C$15>0,C33>0),5000,0) -> 5000 | E33: 1 | F33: 0 | H33: Расчет количества клиновидной теплоизоляции | O33: =Прайс!AC7 -> 2 | P33: =Прайс!AC8*N92*P94 -> 3600 | Q33: 1 | R33: 0 | W33: ='Деление по СБЕ'!C3 -> 1 | X33: ='Деление по СБЕ'!D3 -> 0 | Y33: ='Деление по СБЕ'!E3 -> 0
B34: Расчет количества материалов Плоской кровли ПМ | C34: =O34 -> 0 | D34: =IF(AND($C$15>0,C34>0),5000,0) -> 0 | E34: 1 | F34: 0 | H34: Расчет количества материалов Плоской кровли ПМ | O34: 0 | P34: =IF('Деление по СБЕ'!L20=0,0,IF(OR(N97=0,O34=0),0,INDEX(Прайс!J18:M20,O34,N91))*N92*N93*O94) -> 0 | Q34: 1 | R34: 0 | W34: ='Деление по СБЕ'!C18 -> 0 | X34: ='Деление по СБЕ'!D18 -> 0 | Y34: ='Деление по СБЕ'!E18 -> 0 | Z34: ='Деление по СБЕ'!F18 -> 0 | AA34: ='Деление по СБЕ'!G18 -> 0 | AB34: ='Деление по СБЕ'!H18 -> 0
B35: Расчет количества материалов Плоской кровли РМ | C35: 3 | D35: 5000 | E35: 1 | F35: 0 | H35: Расчет количества материалов Плоской кровли РМ | O35: 3 | P35: =IF('Деление по СБЕ'!L25=0,0,IF(OR(N96=0,O35=0),0,INDEX(Прайс!J21:M23,O35,O91))*N92*N93*N94) -> 4800 | Q35: 1 | R35: 0 | W35: ='Деление по СБЕ'!C23 -> 1 | X35: ='Деление по СБЕ'!D23 -> 0 | Y35: ='Деление по СБЕ'!E23 -> 1 | AA35: ='Деление по СБЕ'!G23 -> 0 | AB35: ='Деление по СБЕ'!H23 -> 1
B36: Ветровой расчет ПМ | C36: 0 | D36: 0 | E36: 1 | F36: 0 | H36: Ветровой расчет ПМ | M36: Кол-во: | N36: 0 | O36: 0 | P36: =IF(OR(C15=0,O36=0),0,INDEX(Прайс!J$24:J$26,O36))*N$95*$N$92 -> 0 | Q36: 1 | R36: 0 | Z36: ='Деление по СБЕ'!F28 -> 0 | AA36: -
B37: Ветровой расчет РМ | C37: 0 | D37: 0 | E37: 1 | F37: 0 | H37: Ветровой расчет РМ | M37: Кол-во: | N37: 0 | O37: 0 | P37: =IF(OR(C15=0,O37=0),0,INDEX(Прайс!J$24:J$26,O37))*O$95*$N$92 -> 0 | Q37: 1 | R37: 0 | Z37: - | AA37: ='Деление по СБЕ'!G33 -> 0
B38: Теплотехнический расчет методика СП 23-02-2003 | C38: 2 | D38: 5000 | E38: 1 | F38: 0 | H38: Теплотехнический расчет методика СП 23-02-2003 | O38: 2 | P38: =O38*Прайс!G73*$N$92 -> 1200 | Q38: 1 | R38: 0 | W38: 1 | Y38: 1 | Z38: =IF(O38=0," ","ЗАПОЛНИТЬ ПРИСУТСТВИЕ СБЕ В РУЧНУЮ (0 ИЛИ 1)") -> ЗАПОЛНИТЬ ПРИСУТСТВИЕ СБЕ В РУЧНУЮ (0 ИЛИ 1)
B39: Теплотехнический расчет по методике СП 50 | C39: =O39 -> 0 | D39: 0 | E39: 1 | F39: 0 | H39: Теплотехнический расчет по методике СП 50 | O39: 0 | P39: =IF(O39=0,0,INDEX(Прайс!J$54:J$56,O39)*N92) -> 0 | Q39: 1 | R39: =P39*(100%-Q39) -> 0 | Z39: =IF(O39=0," ","ЗАПОЛНИТЬ ПРИСУТСТВИЕ СБЕ В РУЧНУЮ (0 ИЛИ 1)") -> 
B40: Расчет паронакопления СП 50-13330.2012 | C40: =O40 -> 0 | D40: 0 | E40: 1 | F40: 0 | H40: Расчет паронакопления СП 50-13330.2012 | O40: 0 | P40: =O40*Прайс!G77*$N$92 -> 0 | Q40: 1 | R40: 0 | Y40: ='Деление по СБЕ'!E58 -> - | AA40: ='Деление по СБЕ'!G58 -> 0
B41: Расчет ограждения | C41: =O41 -> 3 | D41: 5000 | E41: 1 | F41: 0 | H41: Расчет ограждения | O41: 3 | P41: =IF(O41=0,0,INDEX(Прайс!J$48:J$50,O41)*N92) -> 800 | Q41: 1 | R41: 0 | Z41: ='Деление по СБЕ'!F63 -> 1
B42: Создание схемы ветровых зон | C42: 0 | D42: 0 | E42: 1 | F42: 0 | H42: Создание схемы ветровых зон | N42: =HYPERLINK("#"&$W$141&"!I125","↓ ") -> ↓ | O42: =IFERROR(ROUNDDOWN(SUM(K142:K151)/COUNTIF(K142:K151,">0"),0),0) -> 0 | P42: =SUM(L142:L151) -> 0 | Q42: 1 | R42: 0 | Z42: =IF(SUM(M142:M151)>0,1,0) -> 0 | AA42: =IF(SUM(N142:N151)>0,1,0) -> 0
B43: Оформление раскладки гидроизоляции на кровле | C43: 0 | D43: =P43 -> 0 | E43: 1 | F43: 0 | H43: Оформление раскладки гидроизоляции на кровле | N43: =HYPERLINK("#"&$W$141&"!I141","↓ ") -> ↓ | O43: =IFERROR(ROUNDDOWN(SUM(K158:K167)/COUNTIF(K158:K167,">0"),0),0) -> 0 | P43: =SUM(L158:L167) -> 0 | Q43: 1 | R43: 0 | Z43: =IF(SUM(M158:M167)>0,1,0) -> 0 | AA43: =IF(SUM(N158:N167)>0,1,0) -> 0
B44: Расчет количества воронок ПМ | C44: 0 | D44: 0 | E44: 1 | F44: =D44*(100%-E44) -> 0 | H44: Расчет количества воронок ПМ | M44: Кол-во: | N44: 0 | O44: 0 | P44: =IF('Деление по СБЕ'!L75=0,0,IF(OR(N97=0,O44=0,N44=0),0,INDEX(Прайс!J51:M53,O44,N91))*N98) -> 0 | Q44: 1 | R44: 0 | Z44: ='Деление по СБЕ'!F73 -> 0
B45: Расчет количества воронок PМ | C45: 0 | D45: 0 | E45: 1 | F45: 0 | H45: Расчет количества воронок РМ | M45: Кол-во: | N45: 0 | O45: 0 | P45: =IF('Деление по СБЕ'!L80=0,0,IF(OR(N96=0,O45=0,N45=0),0,INDEX(Прайс!J51:M53,O45,O91))*O98) -> 0 | Q45: 1 | R45: 0 | AA45: ='Деление по СБЕ'!G78 -> 0
B46: Итого: | D46: =SUM(D32:D45) -> 20000 | F46: =SUM(F32:F45) -> 0 | H46: Итого: | P46: =SUM(P32:P45) -> 14400 | R46: =SUM(R32:R45) -> 0 | W46: - | X46: - | Y46: - | Z46: - | AA46: - | AB46: - | AC46: - | AD46: Согласование
AD47: -
B49: =IF(C15>=3000,"Для данного объекта Вы можете заказать техническое сопровождение Службы Качества ТехноНИКОЛЬ. Подробности на сайте http://nav.tn.ru","") -> Для данного объекта Вы можете заказать техническое сопровождение Службы Качества ТехноНИКОЛЬ. Подробности на сайте http://nav.tn.ru
H52: 0 | I52: 1 | J52: 1 | M52: 1 | P52: 0
H53: 1 | I53: 1 | J53: 1 | L53: =1170*INDEX(I52:I58,MATCH(C19,H52:H58,0))/N53 -> 234 | M53: 1 | N53: 5 | P53: 1
H54: 2 | I54: 1.1 | J54: 1.2 | M54: 1.1 | P54: 2
H55: 3 | I55: 1.2 | J55: 1.4 | M55: 1.2 | P55: 3
H56: 4 | I56: 1.3 | J56: 1.6 | M56: 1.3 | P56: 4
H57: 5 | I57: 1.4 | J57: 1.8 | M57: 1.4 | P57: 5
H58: 6 | I58: 1.5 | J58: 2 | M58: 1.5 | P58: 6
H59: 7 | I59: 1.6 | J59: 2.2 | M59: 1.6 | P59: 7 | R59: =RIGHT(Сводная_Объект!E12,LEN(Сводная_Объект!E12)-47) -> TPK9B6AA33C67D3B696FB2FED3B2F383319
H60: 8 | I60: 1.7 | J60: 2.4 | M60: 1.7 | P60: 8 | R60: https://nav.tn.ru/services/estimated-service/calc/
H61: 9 | I61: 1.8 | J61: 2.6 | M61: 1.8 | P61: 9 | Q61: Ссылка на сметный расчёт: | R61: =_xlfn.CONCAT(R60,R59) -> 
H62: 10 | I62: 1.9 | J62: 2.8 | M62: 1.9 | P62: 10
H63: 11 | I63: 2 | J63: 3 | M63: 2
H64: 12 | I64: 2.1 | J64: 3.2 | M64: 2.1
H65: 13 | I65: 2.2 | J65: 3.4 | M65: 2.2 | R65: СРТП | X65: -
H66: 14 | I66: 2.3 | J66: 3.6 | M66: 2.3 | R66: ОЦО КП | X66: ИСКЛЮЧЕНИЕ
H67: 15 | I67: 2.4 | J67: 3.8 | M67: 2.4 | R67: Торговый партнер
H68: 16 | I68: 2.5 | J68: 4 | M68: 2.5 | R68: СБЕ
H69: 17 | I69: 2.6 | J69: 4.2 | M69: 2.6 | R69: Интернет магазин
H70: 18 | I70: 2.7 | J70: 4.4 | M70: 2.7 | R70: Заказчик
H71: 19 | I71: 2.8 | J71: 4.6 | M71: 2.8 | R71: Частное лицо
H72: 20 | I72: 2.9 | J72: 4.8 | M72: 2.9 | R72: Проектировщик
H73: 21 | I73: 3 | J73: 5 | M73: 3 | R73: Подрядчик
H74: 22 | I74: 3.1 | J74: 5.2 | M74: 3.1 | R74: Служба качества
H75: 23 | I75: 3.2 | J75: 5.4 | M75: 3.2 | R75: Прочее
H76: 24 | I76: 3.3 | J76: 5.6 | M76: 3.3
H77: 25 | I77: 3.4 | J77: 5.8 | M77: 3.4
H78: 26 | I78: 3.5 | J78: 6 | M78: 3.5
H79: 27 | I79: 3.6 | J79: 6.2 | M79: 3.6
H80: 28 | I80: 3.7 | J80: 6.4 | M80: 3.7
H81: 29 | I81: 3.8 | J81: 6.6 | M81: 3.8
H82: 30 | I82: 3.9 | J82: 6.8 | M82: 3.9
I86: Новый расчет
I87: Перерасчет (новые данные)
I88: Перерасчет (корректировка)
I89: Перерасчет (выявлена ошибка)
N90: кровля | S90: Нет данных
I91: Коэф. зависящий от площади ПМ/РМ | N91: =IF(N97=0,0,IF(N97<=1000,1,IF(AND(N97>1000,N97<=5000),2,IF(AND(N97>5000,N97<=10000),3,IF(N97>10000,4,0))))) -> 0 | O91: =IF(N96=0,0,IF(N96<=1000,1,IF(AND(N96>1000,N96<=5000),2,IF(AND(N96>5000,N96<=10000),3,IF(N96>10000,4,0))))) -> 4 | P91: =IF(C15=0,0,IF(C15<=500,1,IF(AND(C15>500,C15<=1000),2,IF(AND(C15>1000,C15<=5000),3,IF(C15>5000,4,0))))) -> 4 | R91: =IF(C15=0,0,IF(C15<=100,1,IF(AND(C15>100,C15<=500),2,IF(AND(C15>500,C15<=1000),3,IF(C15>1000,4,0))))) -> 4 | S91: Проектирование
I92: Коэф. влияния типа расчета | N92: =IF(OR(C17="Новый расчет",C17="Перерасчет (новые данные)"),1,IF(C17="Перерасчет (корректировка)",0.5,IF(C17="Перерасчет (выявлена ошибка)",0,0))) -> 1 | S92: Нулевой цикл
I93: Коэф. кол-ва вариантов расчета | N93: =IFERROR(INDEX(I52:I82,MATCH(C18,H52:H82,0))/C18,0) -> 1 | S93: Строительство
I94: Коэф. кол-ва типов конструкций | N94: =INDEX(J52:J82,MATCH(O96,H52:H82,0)) -> 1 | O94: =INDEX(J52:J82,MATCH(O97,H52:H82,0)) -> 1 | P94: =INDEX(I52:I82,MATCH(Прайс!AD6,H52:H82,0)) -> 1 | S94: Реконструкция
I95: Коэф. Ветровой ПМ/РМ | N95: =INDEX(M52:M82,MATCH(N36,H52:H82,0)) -> 1 | O95: =INDEX(M52:M82,MATCH(N37,H52:H82,0)) -> 1
I96: Битумно- полимерная | N96: =SUMIF(Свойства_расчета!$F:$F,"Битумно-полимерная",Свойства_расчета!$D:$D) -> 24170 | O96: =COUNTIF(Свойства_расчета!$F:$F,"Битумно-полимерная") -> 1
I97: ПВХ | N97: =SUMIF(Свойства_расчета!$F:$F,"Полимерная",Свойства_расчета!$D:$D) -> 0 | O97: =COUNTIF(Свойства_расчета!$F:$F,"Полимерная") -> 0 | Q97: Ограждение | R97: =IF(SUM(Y97:Y106)>1,1,0) -> 1 | Y97: =IFERROR(MATCH(Z97,Сводная_Объект!C:C,0),0) -> 0 | Z97: 659570
I98: Коэф. кол-ва расчётов воронок | N98: =INDEX(M52:M82,MATCH(N44,H52:H82,0)) -> 1 | O98: =INDEX(M52:M82,MATCH(N45,H52:H82,0)) -> 1 | Y98: =IFERROR(MATCH(Z98,Сводная_Объект!C:C,0),0) -> 39 | Z98: 659573
K99: Кровля горизонт | M99: 0 | S99: - | Y99: =IFERROR(MATCH(Z99,Сводная_Объект!C:C,0),0) -> 0 | Z99: 659572
I100: ЦФО | J100: Центральный федеральный округ | M100: Т0 | N100: Невозможно оценить | S100: 0 | Y100: =IFERROR(MATCH(Z100,Сводная_Объект!C:C,0),0) -> 0 | Z100: 659569
I101: ЮФО | J101: Южный федеральный округ | M101: Т1 | N101: 5-30% | S101: 1 | Y101: =IFERROR(MATCH(Z101,Сводная_Объект!C:C,0),0) -> 0 | Z101: 659568
I102: ПФО | J102: Приволжский федеральный округ | M102: Т2 | N102: 5-25% | Y102: =IFERROR(MATCH(Z102,Сводная_Объект!C:C,0),0) -> 0 | Z102: 659571
I103: СЗФО | J103: Северо-западный федеральный округ | M103: Т3 | N103: 5-8% | S103: - | Y103: =IFERROR(MATCH(Z103,Сводная_Объект!C:C,0),0) -> 0 | Z103: 685734
I104: УФО | J104: Уральский федеральный округ | K104: Кровля примыкан. | M104: 0 | S104: Изменения в чертежах | Y104: =IFERROR(MATCH(Z104,Сводная_Объект!C:C,0),0) -> 0 | Z104: 685736
I105: СФО | J105: Сибирский федеральный округ | M105: Т1 | N105: 5-25% | S105: Новый вариант системы | Y105: =IFERROR(MATCH(Z105,Сводная_Объект!C:C,0),0) -> 0 | Z105: 685735
I106: ДФО | J106: Дальневосточный федеральный округ | M106: Т2 | N106: 5-15% | S106: Расчитаны другие клины | Y106: =IFERROR(MATCH(Z106,Сводная_Объект!C:C,0),0) -> 0 | Z106: 47492
I107: Беларусь | J107: Беларусь | M107: Т3 | N107: 5-8% | S107: Корректировка по ветровому расчету
I108: Украина | J108: Украина | K108: Расчет количества клиновидной теплоизоляции | M108: 0 | S108: Добавлен расчет материалов
I109: Казахстан | J109: Казахстан | M109: Т1 | N109: Клин.плиты 5-8% Доб.плиты 5-15% | S109: Изменение пароизоляции
I110: Европа | J110: Европа | M110: Т2 | N110: Клин.плиты 5-8% Доб.плиты 5-10% | S110: Разделение кровли на участки
I111: Азербайджан | J111: Азербайджан | M111: Т3 | N111: Клин.плиты 5-8% Доб.плиты 5-10% | S111: Изменение схемы раскладки клинов
I112: Узбекистан | J112: Узбекистан | K112: Ветровой расчет | M112: 0 | S112: Добавлен ветровой расчет
I113: н/д | M113: Т1 | N113: 10-200% | S113: Добавлен теплотехнический расчет
I114: н/д | J114: Прочее | M114: Т3 | N114: 5-10% | S114: Новые данные для ветрового расчета
S115: Исключены клины
S116: Добавлен расчет клинов
H117: for each s in sheets:s.visible=true:next | M117: отображение всех скрытых листов | S117: Проверка на изменение чертежей
S118: Изменения для заказчика
J119: Базовая стоимость | S119: Прочее
J120: МПК РМ | K120: =IF(OR(N96=0,O35=0),0,INDEX(Прайс!J21:M23,O35,O91))*0.5/4 -> 600 | L120: =ROUND(K120,1) -> 600 | M120: клин | N120: =IF(OR(C15=0,O33=0),0,Прайс!AC8*0.5/4) -> 450 | O120: =ROUND(N120,1) -> 450
J121: МПК ПМ | K121: =IF(OR(N97=0,O34=0),0,INDEX(Прайс!J18:M20,O34,N91))*0.5/4 -> 0 | L121: =ROUND(K121,1) -> 0
J122: В | K122: =IF(AND(O36=0,O37=0),0,IF(AND(O36>0,O37=0),INDEX(Прайс!J$24:J$26,O36)*0.25/4,INDEX(Прайс!J$24:J$26,O37)*0.25/4)) -> 0 | L122: =ROUND(K122,1) -> 0
J123: Т | K123: =IF(O38=0,0,Прайс!G73*0.25/2) -> 75 | L123: =ROUND(K123,1) -> 75
J124: Т50 | K124: =IF(OR(C15=0,O39=0),0,INDEX(Прайс!J54:J56,O39))/4 -> 0 | L124: =ROUND(K124,1) -> 0
H125: Таблица согласования площадей для ПК
H126: КВ | I126: XPS | J126: ПИР | K126: ПМ | L126: РМ | M126: МиСХ | N126: Плантер | P126: СБЕ
H127: =IF(OR($C$10=$R$66,$AD$47=$X$66),1,0) -> 0 | I127: 0 | J127: 0 | K127: 0 | L127: 0 | M127: 0 | N127: 0 | P127: Критерий заказчика
H128: 7000 | I128: 4000 | J128: 4000 | K128: 4000 | L128: 4000 | M128: 4000 | N128: 4000 | P128: Согласованная площадь
H129: =W46 -> - | I129: - | J129: - | K129: - | L129: - | M129: - | N129: - | P129: Согласование СБЕ
H130: =IF($C$15>=H128,1,0) -> 1 | I130: 1 | J130: 1 | K130: 1 | L130: 1 | M130: 1 | N130: 1 | P130: Итог по площади
H131: =IF(H129=1,1,IF(H127=1,1,IF(H130=1,1,0))) -> 1 | I131: 1 | J131: 1 | K131: 1 | L131: 1 | M131: 1 | N131: 1 | P131: Вывод
H133: Регион | I133: RUS
I139: Создание схемы ветровых зон
I141: Типы | J141: Площадь | K141: Сложность | L141: Стоимость | M141: ПМ | N141: РМ | W141: ОБЩИЕ_ДАННЫЕ
I142: Тип 1 | K142: 0 | L142: =IF(OR(J142=0,K142=0),0,INDEX(Прайс!$J$42:$M$44,K142,M172))*$N$92 -> 0
I143: Тип 2 | K143: 0 | L143: =IF(OR(J143=0,K143=0),0,INDEX(Прайс!$J$42:$M$44,K143,M173))*$N$92 -> 0
I144: Тип 3 | K144: 0 | L144: =IF(OR(J144=0,K144=0),0,INDEX(Прайс!$J$42:$M$44,K144,M174))*$N$92 -> 0
I145: Тип 4 | K145: 0 | L145: =IF(OR(J145=0,K145=0),0,INDEX(Прайс!$J$42:$M$44,K145,M175))*$N$92 -> 0 | P145: =HYPERLINK("#"&$W$141&"!I39","⇑") -> ⇑
I146: Тип 5 | K146: 0 | L146: =IF(OR(J146=0,K146=0),0,INDEX(Прайс!$J$42:$M$44,K146,M176))*$N$92 -> 0
I147: Тип 6 | K147: 0 | L147: =IF(OR(J147=0,K147=0),0,INDEX(Прайс!$J$42:$M$44,K147,M177))*$N$92 -> 0
I148: Тип 7 | K148: 0 | L148: =IF(OR(J148=0,K148=0),0,INDEX(Прайс!$J$42:$M$44,K148,M178))*$N$92 -> 0
I149: Тип 8 | K149: 0 | L149: =IF(OR(J149=0,K149=0),0,INDEX(Прайс!$J$42:$M$44,K149,M179))*$N$92 -> 0
I150: Тип 9 | K150: 0 | L150: =IF(OR(J150=0,K150=0),0,INDEX(Прайс!$J$42:$M$44,K150,M180))*$N$92 -> 0
I151: Тип 10 | K151: 0 | L151: =IF(OR(J151=0,K151=0),0,INDEX(Прайс!$J$42:$M$44,K151,M181))*$N$92 -> 0
I155: Оформление раскладки гидроизоляции на кровле
I157: Типы | J157: Площадь | K157: Сложность | L157: Стоимость | M157: ПМ | N157: РМ
I158: Тип 1 | K158: 0 | L158: =IF(OR(J158=0,K158=0),0,INDEX(Прайс!$J$45:$M$47,K158,M188))*$N$92 -> 0
I159: Тип 2 | K159: 0 | L159: =IF(OR(J159=0,K159=0),0,INDEX(Прайс!$J$45:$M$47,K159,M189))*$N$92 -> 0
I160: Тип 3 | K160: 0 | L160: =IF(OR(J160=0,K160=0),0,INDEX(Прайс!$J$45:$M$47,K160,M190))*$N$92 -> 0
I161: Тип 4 | K161: 0 | L161: =IF(OR(J161=0,K161=0),0,INDEX(Прайс!$J$45:$M$47,K161,M191))*$N$92 -> 0
I162: Тип 5 | K162: 0 | L162: =IF(OR(J162=0,K162=0),0,INDEX(Прайс!$J$45:$M$47,K162,M192))*$N$92 -> 0
I163: Тип 6 | K163: 0 | L163: =IF(OR(J163=0,K163=0),0,INDEX(Прайс!$J$45:$M$47,K163,M193))*$N$92 -> 0
I164: Тип 7 | K164: 0 | L164: =IF(OR(J164=0,K164=0),0,INDEX(Прайс!$J$45:$M$47,K164,M194))*$N$92 -> 0
I165: Тип 8 | K165: 0 | L165: =IF(OR(J165=0,K165=0),0,INDEX(Прайс!$J$45:$M$47,K165,M195))*$N$92 -> 0
I166: Тип 9 | K166: 0 | L166: =IF(OR(J166=0,K166=0),0,INDEX(Прайс!$J$45:$M$47,K166,M196))*$N$92 -> 0
I167: Тип 10 | K167: 0 | L167: =IF(OR(J167=0,K167=0),0,INDEX(Прайс!$J$45:$M$47,K167,M197))*$N$92 -> 0
M171: вспом. Коэф.
M172: =IF(J142=0,0,IF(J142<=1000,1,IF(AND(J142>1000,J142<=5000),2,IF(AND(J142>5000,J142<=10000),3,IF(J142>10000,4,0))))) -> 0
M173: 0
M174: 0
M175: 0
M176: 0
M177: 0
M178: 0
M179: 0
M180: 0
M181: 0
M187: вспом. Коэф.
M188: =IF(J158=0,0,IF(J158<=1000,1,IF(AND(J158>1000,J158<=5000),2,IF(AND(J158>5000,J158<=10000),3,IF(J158>10000,4,0))))) -> 0
M189: 0
M190: 0
M191: 0
M192: 0
M193: 0
M194: 0
M195: 0
M196: 0
M197: 0
G202: 0 | H202: ⇑
B203: Номер расчета: | C203: 9-9075-МПККИТ-01.26 | G203: 0
B204: Дата выдачи заявки | C204: 2026-01-27 | G204: 0
G205: 0 | I205: Для использования макроса откройте файл "Форма ПРЦ" для текущего расчета
B206: Время регистрации заявки: | C206: 21.01.2026 20:45:04 | G206: 0 | I206: Затем нажать "Вставить ОД"
B207: ID(номер) заявки: | C207: 235601 | G207: 0
G208: 0
B209: Ф.И.О.: | C209: Трофимов Роман Олегович | G209: 0 | I209: 1 | J209: Номер расчёта, Дата выдачи заявки и Номер заявки заполняется вручную
B210: Должность: | G210: 0 | I210: 2 | J210: Поля "Количество вариантов расчёта" и "Номер варианта" в основной области заполняются вручную
B211: Телефон: | C211: +7 (980) 164-03-99 | G211: 0
B212: Email: | C212: trofimov@tn.ru | G212: 0
B213: Заказчик расчета: | C213: РТП | G213: 0 | I213: Регионы: | O213: Типы расчётов:
B214: Другое значение: | G214: 0 | I214: Центральный федеральный округ | O214: Новый расчет
B215: Тип расчета: | C215: Новый расчет | G215: 0 | I215: Южный федеральный округ | O215: Перерасчет (новые данные)
B216: Номер расчета: | G216: 0 | I216: Приволжский федеральный округ | O216: Перерасчет (корректировка)
B217: ОЦО КП: | G217: 0 | I217: Северо-западный федеральный округ | O217: Перерасчет (выявлена ошибка)
G218: 0 | I218: Уральский федеральный округ
B219: Регион организации: | C219: МО | G219: 0 | I219: Сибирский федеральный округ | O219: Должности:
B220: Город организации: | G220: 0 | I220: Дальневосточный федеральный округ | O220: РТП
B221: ИНН организации: | G221: 0 | I221: Беларусь | O221: ОЦО КП
B222: КПП организации: | G222: 0 | I222: Украина | O222: Торговый партнер
B223: Прочий регион: | G223: 0 | I223: Казахстан | O223: СБЕ
B224: Номер объекта: | C224: 303297 | G224: 0 | I224: Европа | O224: Интернет магазин
B225: Известен номер объекта: | C225: 1 | G225: 0 | I225: Азербайджан | O225: Заказчик
B226: Промокод: | G226: 0 | I226: Узбекистан | O226: Частное лицо
G227: 0 | I227: Прочее | O227: Проектировщик
B228: Наименование объекта: | G228: 0 | O228: Подрядчик
G229: 0 | O229: Служба качества
G230: 0 | O230: Прочее
B231: Стадия работ: | G231: 0
... 31 more rows

Sheet ОД_CRM (hidden)
A2: Шифр расчёта | B2: =Шифр -> 9-9075-МПККИТ-01.26
A3: Номер заявки | B3: =ОБЩИЕ_ДАННЫЕ!C5 -> 235601
A4: CRM | B4: =IFERROR(LEFT(ОБЩИЕ_ДАННЫЕ!C7,SEARCH("/",ОБЩИЕ_ДАННЫЕ!C7)-1),ОБЩИЕ_ДАННЫЕ!C7) -> 303297
A5: Название объекта | B5: =Объект -> Проектирование строительных конструкция покрытия Цеха М10. АО Коломенский завод
A6: Адрес объекта/ Регион объекта | B6: =ОБЩИЕ_ДАННЫЕ!C9 -> Московская область, г.Коломна, ул.Партизан, д.42
A7: Регион объекта | B7: =ОБЩИЕ_ДАННЫЕ!F9 -> ЦФО
A8: Текущая стадия | B8: =ОБЩИЕ_ДАННЫЕ!C16 -> Нет данных
A9: Тип расчета | B9: =ОБЩИЕ_ДАННЫЕ!C17 -> Новый расчет
A10: Кол-во вариантов | B10: =ОБЩИЕ_ДАННЫЕ!C18 -> 1
A11: № Варианта | B11: =ОБЩИЕ_ДАННЫЕ!F18 -> 1
A12: Кол-во типов | B12: =N_типов -> 1
A13: Площадь | B13: =ОБЩИЕ_ДАННЫЕ!C15 -> 24170
A14: Тип заказчика | B14: =ОБЩИЕ_ДАННЫЕ!C10 -> РТП
A15: Регион заказчика | B15: =ОБЩИЕ_ДАННЫЕ!F10 -> ПФО
A16: Организация/Для кого | B16: =IF(ОБЩИЕ_ДАННЫЕ!C10="РТП",0,ОБЩИЕ_ДАННЫЕ!C11) -> 0
A17: Заказчик | B17: =ОБЩИЕ_ДАННЫЕ!C12 -> Трофимов Роман Олегович
A18: Должность | B18: =ОБЩИЕ_ДАННЫЕ!C13 -> 
A19: Контакты заказчика (Телефон) | B19: =Контакт_телефон -> +7 (980) 164-03-99
A20: Контакты заказчика (E-mail) | B20: =Контакт_почта -> trofimov@tn.ru
A21: Промокод | B21: =ОБЩИЕ_ДАННЫЕ!C226 -> 0
A22: Для кого ТИП заказчика | B22: =ОБЩИЕ_ДАННЫЕ!E11 -> ОЦО КП
A23: Для кого Наименование организации | B23: =ОБЩИЕ_ДАННЫЕ!$C$217 -> 0
A24: ИНН | B24: =ОБЩИЕ_ДАННЫЕ!C221 -> 0
A25: КПП | B25: =ОБЩИЕ_ДАННЫЕ!C222 -> 0

Sheet Экспорт в сметный калькулятор (hidden)
A2: EKN | B2: Наименование материала | C2: Кол-во материала по расчету | D2: Ед.изм
A3: =Сводная_Объект!C16 -> 0 | B3: =Сводная_Объект!D16 -> 0 | C3: =Сводная_Объект!J16 -> 0 | D3: =Сводная_Объект!I16 -> 0
A4: =Сводная_Объект!C17 -> 694295 | B4: =Сводная_Объект!D17 -> Праймер полимерный ТЕХНОНИКОЛЬ №08 Быстросохнущий, 1 мм | C4: =Сводная_Объект!J17 -> 5759.47 | D4: =Сводная_Объект!I17 -> кг
A5: =Сводная_Объект!C18 -> 691611 | B5: =Сводная_Объект!D18 -> ТЕХНОБАРЬЕР, 2.8 мм | C5: =Сводная_Объект!J18 -> 30694.0557 | D5: =Сводная_Объект!I18 -> м²
A6: =Сводная_Объект!C19 -> 0 | B6: =Сводная_Объект!D19 -> ТЕХНОРУФ Н ПРОФ, 110 мм | C6: =Сводная_Объект!J19 -> 1991.608 | D6: =Сводная_Объект!I19 -> м³
A7: =Сводная_Объект!C20 -> 0 | B7: =Сводная_Объект!D20 -> Битум нефтяной кровельный БНК 90/30, 1 мм | C7: =Сводная_Объект!J20 -> 203849.04 | D7: =Сводная_Объект!I20 -> кг
A8: =Сводная_Объект!#REF! ->  | B8: =Сводная_Объект!#REF! ->  | C8: =Сводная_Объект!#REF! ->  | D8: =Сводная_Объект!#REF! -> 
A9: =Сводная_Объект!C21 -> 494776 | B9: =Сводная_Объект!D21 -> ТЕХНОРУФ В ЭКСТРА, 50 мм | C9: =Сводная_Объект!J21 -> 1305.35763 | D9: =Сводная_Объект!I21 -> м³
A10: =Сводная_Объект!C22 -> 90080 | B10: =Сводная_Объект!D22 -> Унифлекс PRO, 4 мм | C10: =Сводная_Объект!J22 -> 27858.342 | D10: =Сводная_Объект!I22 -> м²
A11: =Сводная_Объект!C23 -> 22450 | B11: =Сводная_Объект!D23 -> Техноэласт ПЛАМЯ СТОП ЭКП, 4.2 мм | C11: =Сводная_Объект!J23 -> 31708.82007 | D11: =Сводная_Объект!I23 -> м²
A12: =Сводная_Объект!C24 -> 72856 | B12: =Сводная_Объект!D24 -> ТЕХНОРУФ В ЭКСТРА КЛИН 4,2 % (15-65 мм), плита А | C12: =Сводная_Объект!J24 -> 108.702 | D12: =Сводная_Объект!I24 -> м³
A13: =Сводная_Объект!C25 -> 72861 | B13: =Сводная_Объект!D25 -> ТЕХНОРУФ В ЭКСТРА КЛИН 4,2 % (15-65 мм), плита Б | C13: =Сводная_Объект!J25 -> 169.4952 | D13: =Сводная_Объект!I25 -> м³
A14: =Сводная_Объект!C26 -> 617800 | B14: =Сводная_Объект!D26 -> ТЕХНОРУФ В ЭКСТРА КЛИН 4,2 % (15-65 мм), плита C | C14: =Сводная_Объект!J26 -> 7.74 | D14: =Сводная_Объект!I26 -> м³
A15: =Сводная_Объект!C27 -> 100 | B15: =Сводная_Объект!D27 -> Техноэласт ЭПП, 4 мм | C15: =Сводная_Объект!J27 -> 5917.0914 | D15: =Сводная_Объект!I27 -> м²
A16: =Сводная_Объект!C28 -> 133879 | B16: =Сводная_Объект!D28 -> Рейка краевая алюминиевая TERMOCLIP, 2 м | C16: =Сводная_Объект!J28 -> 582.98 | D16: =Сводная_Объект!I28 -> м.п.
A17: =Сводная_Объект!C29 -> 72871 | B17: =Сводная_Объект!D29 -> ТЕХНОРУФ ПРОФ ГАЛТЕЛЬ, 100 мм | C17: =Сводная_Объект!J29 -> 17.2422 | D17: =Сводная_Объект!I29 -> м³
A18: =Сводная_Объект!C30 -> 450122 | B18: =Сводная_Объект!D30 -> Мастика ТЕХНОНИКОЛЬ №71, 310 мл | C18: =Сводная_Объект!J30 -> 146.4 | D18: =Сводная_Объект!I30 -> кг
A19: =Сводная_Объект!C31 -> 85931 | B19: =Сводная_Объект!D31 -> ТехноНИКОЛЬ Флекс 500, 4 мм | C19: =Сводная_Объект!J31 -> 129.83937 | D19: =Сводная_Объект!I31 -> м²
A20: =Сводная_Объект!C32 -> 12202 | B20: =Сводная_Объект!D32 -> ТЕХНОЛАЙТ ЭКСТРА, 100 мм | C20: =Сводная_Объект!J32 -> 20.4249 | D20: =Сводная_Объект!I32 -> м³
A21: =Сводная_Объект!C33 -> 524809 | B21: =Сводная_Объект!D33 -> ТЕХНОРУФ Н ПРОФ, 50 мм | C21: =Сводная_Объект!J33 -> 3.83675 | D21: =Сводная_Объект!I33 -> м³
A22: =Сводная_Объект!C34 -> 125336 | B22: =Сводная_Объект!D34 -> Воронка кровельная с обогревом TERMOCLIP ВФО Ø110х700 мм | C22: =Сводная_Объект!J34 -> 154 | D22: =Сводная_Объект!I34 -> шт.
A23: =Сводная_Объект!C35 -> 128873 | B23: =Сводная_Объект!D35 -> Надставной элемент с манжетой TERMOCLIP | C23: =Сводная_Объект!J35 -> 154 | D23: =Сводная_Объект!I35 -> шт.
A24: =Сводная_Объект!C36 -> 528369 | B24: =Сводная_Объект!D36 -> Пена монтажная ТЕХНОНИКОЛЬ 70 PROFESSIONAL всесезонная | C24: =Сводная_Объект!J36 -> 30.8 | D24: =Сводная_Объект!I36 -> шт.
A25: =Сводная_Объект!C37 -> 125341 | B25: =Сводная_Объект!D37 -> Аэратор кровельный TERMOCLIP D160 | C25: =Сводная_Объект!J37 -> 242 | D25: =Сводная_Объект!I37 -> шт.
A26: =Сводная_Объект!C38 -> 644869 | B26: =Сводная_Объект!D38 -> Плиты теплоизоляционные LOGICPIR PROF СХМ/СХМ, 50 мм | C26: =Сводная_Объект!J38 -> 202.91 | D26: =Сводная_Объект!I38 -> м²
A27: =Сводная_Объект!C39 -> 659573 | B27: =Сводная_Объект!D39 -> Кровельное ограждение ТехноНИКОЛЬ КО/PRO/PL/1200-3 | C27: =Сводная_Объект!J39 -> 365.6301 | D27: =Сводная_Объект!I39 -> шт.
A28: =Сводная_Объект!C40 -> 88843 | B28: =Сводная_Объект!D40 -> Приемное устройство системы мониторинга снеговой нагрузки | C28: =Сводная_Объект!J40 -> 1 | D28: =Сводная_Объект!I40 -> шт.
A29: =Сводная_Объект!C41 -> 88841 | B29: =Сводная_Объект!D41 -> Щиток системы мониторинга снеговой нагрузки (WiFi) | C29: =Сводная_Объект!J41 -> 1 | D29: =Сводная_Объект!I41 -> шт.
A30: =Сводная_Объект!C42 -> 71311 | B30: =Сводная_Объект!D42 -> Датчик снега DW | C30: =Сводная_Объект!J42 -> 8 | D30: =Сводная_Объект!I42 -> шт.
A31: =Сводная_Объект!C43 -> 124613 | B31: =Сводная_Объект!D43 -> Анкерный элемент TERMOCLIP 8*45мм | C31: =Сводная_Объект!J43 -> 28658 | D31: =Сводная_Объект!I43 -> шт.
A32: =Сводная_Объект!C44 -> 30214 | B32: =Сводная_Объект!D44 -> Саморез остроконечный ТехноНИКОЛЬ 4,8х 50 мм | C32: =Сводная_Объект!J44 -> 25610 | D32: =Сводная_Объект!I44 -> шт.
A33: =Сводная_Объект!C45 -> 228669 | B33: =Сводная_Объект!D45 -> Саморез остроконечный ТехноНИКОЛЬ 4,8х 80 мм | C33: =Сводная_Объект!J45 -> 3048 | D33: =Сводная_Объект!I45 -> шт.
A34: =Сводная_Объект!C46 -> 228683 | B34: =Сводная_Объект!D46 -> Саморез сверлоконечный ТехноНИКОЛЬ 4,8х 80 мм | C34: =Сводная_Объект!J46 -> 323 | D34: =Сводная_Объект!I46 -> шт.
A35: =Сводная_Объект!C47 -> 629549 | B35: =Сводная_Объект!D47 -> Саморез остроконечный ТехноНИКОЛЬ 5,5х35 | C35: =Сводная_Объект!J47 -> 2201 | D35: =Сводная_Объект!I47 -> шт.
A36: =Сводная_Объект!C48 -> 124243 | B36: =Сводная_Объект!D48 -> Телескопический крепеж TERMOCLIP 1, 20 мм | C36: =Сводная_Объект!J48 -> 323 | D36: =Сводная_Объект!I48 -> шт.
A37: =Сводная_Объект!C49 -> 124246 | B37: =Сводная_Объект!D49 -> Телескопический крепеж TERMOCLIP 1, 80 мм | C37: =Сводная_Объект!J49 -> 658 | D37: =Сводная_Объект!I49 -> шт.
A38: =Сводная_Объект!C50 -> 124249 | B38: =Сводная_Объект!D50 -> Телескопический крепеж TERMOCLIP 1, 130 мм | C38: =Сводная_Объект!J50 -> 2390 | D38: =Сводная_Объект!I50 -> шт.
A39: =Сводная_Объект!C51 -> 123737 | B39: =Сводная_Объект!D51 -> Круглый тарельчатый держатель TERMOCLIP 1С Ø50 мм | C39: =Сводная_Объект!J51 -> 809 | D39: =Сводная_Объект!I51 -> шт.
A40: =Сводная_Объект!C52 -> 0 | B40: =Сводная_Объект!D52 -> 0 | C40: =Сводная_Объект!J52 -> 0 | D40: =Сводная_Объект!I52 -> 0

Sheet Свойства_расчета (hidden)
C2: Название участка | D2: Площадь участка | E2: Система | F2: Фильтр ГИ Верх | G2: Фильтр Основание | H2: Клины | J2: Информация об участках клинов
B3: Участок 1 | C3: Участок 1 | D3: 24170 | E3: Пользовательская система | F3: Битумно-полимерная | G3: Бетон | H3: Да | J3: Участки ОУ | K3: 0
J4: Участки КУ | K4: 175
J5: Участки КУ как ОУ | K5: 4

Sheet Сводная_Объект
B7: 27.01.2026
B9: РАСЧЕТ МАТЕРИАЛОВ ПО УСТРОЙСТВУ КРОВЕЛЬНОГО ПОКРЫТИЯ
C11: Информация о объекте: | E11: «Проектирование строительных конструкция покрытия Цеха М10. АО Коломенский завод» по адресу: «Московская область, г.Коломна, ул.Партизан, д.42»
C12: Ссылка на калькуляцию: | E12: http://nav.tn.ru/calculators/flat-roof/?object=TPK9B6AA33C67D3B696FB2FED3B2F383319
C13: Ссылка на сметный расчёт: | E13: Экспресс Солид по проекту
B14: пп | C14: ЕКН/ ID | D14: Наименование материала | I14: Ед. изм. | J14: Количество | L14: Стоимость ед., руб. | M14: Сметная стоимость, руб. | O14: СБЕ
J15: По расчету | K15: С учетом кратности упаковки
B17: 1 | C17: 694295 | D17: Праймер полимерный ТЕХНОНИКОЛЬ №08 Быстросохнущий, 1 мм | I17: кг | J17: 5759.47 | K17: 5760 | L17: 478.73 | M17: =K17*L17 -> 2757484.8 | O17: МиСХ_осн
B18: 2 | C18: 691611 | D18: ТЕХНОБАРЬЕР, 2.8 мм | I18: м² | J18: 30694.0557 | K18: 30700 | L18: 272 | M18: 8350400 | O18: РМ_пар
B19: 3 | D19: ТЕХНОРУФ Н ПРОФ, 110 мм | I19: м³ | J19: 1991.608 | K19: 1991.664 | L19: 8950 | M19: 17825392.8 | O19: КВ_осн
B20: 4 | D20: Битум нефтяной кровельный БНК 90/30, 1 мм | I20: кг | J20: 203849.04 | K20: 203850 | L20: 91 | M20: 18550350
B21: 6 | C21: 494776 | D21: ТЕХНОРУФ В ЭКСТРА, 50 мм | I21: м³ | J21: 1305.35763 | K21: 1305.36 | L21: 12700 | M21: 16578072 | O21: КВ_осн
B22: 7 | C22: 90080 | D22: Унифлекс PRO, 4 мм | I22: м² | J22: 27858.342 | K22: 27870 | L22: 227 | M22: 6326490 | O22: РМ_осн
B23: 8 | C23: 22450 | D23: Техноэласт ПЛАМЯ СТОП ЭКП, 4.2 мм | I23: м² | J23: 31708.82007 | K23: 31710 | L23: 375 | M23: 11891250 | O23: РМ_осн
B24: 9 | C24: 72856 | D24: ТЕХНОРУФ В ЭКСТРА КЛИН 4,2 % (15-65 мм), плита А | I24: м³ | J24: 108.702 | K24: 110.88 | L24: 19375.56 | M24: 2148362.093 | O24: КВ_клин
B25: 10 | C25: 72861 | D25: ТЕХНОРУФ В ЭКСТРА КЛИН 4,2 % (15-65 мм), плита Б | I25: м³ | J25: 169.4952 | K25: 172.368 | L25: 18065.56 | M25: 3113924.446 | O25: КВ_клин
B26: 11 | C26: 617800 | D26: ТЕХНОРУФ В ЭКСТРА КЛИН 4,2 % (15-65 мм), плита C | I26: м³ | J26: 7.74 | K26: 13.824 | L26: 16378.89 | M26: 226421.7754 | O26: КВ_клин
B27: 12 | C27: 100 | D27: Техноэласт ЭПП, 4 мм | I27: м² | J27: 5917.0914 | K27: 5920 | L27: 341.58 | M27: 2022153.6 | O27: РМ_осн
B28: 13 | C28: 133879 | D28: Рейка краевая алюминиевая TERMOCLIP, 2 м | I28: м.п. | J28: 582.98 | K28: 600 | L28: 148.86 | M28: 89316
B29: 14 | C29: 72871 | D29: ТЕХНОРУФ ПРОФ ГАЛТЕЛЬ, 100 мм | I29: м³ | J29: 17.2422 | K29: 17.28 | L29: 23364.45 | M29: 403737.696
B30: 15 | C30: 450122 | D30: Мастика ТЕХНОНИКОЛЬ №71, 310 мл | I30: кг | J30: 146.4 | K30: 148.8 | L30: 509.97 | M30: 75883.536
B31: 16 | C31: 85931 | D31: ТехноНИКОЛЬ Флекс 500, 4 мм | I31: м² | J31: 129.83937 | K31: 132 | L31: 1096.82 | M31: 144780.24 | O31: РМ_осн
B32: 17 | C32: 12202 | D32: ТЕХНОЛАЙТ ЭКСТРА, 100 мм | I32: м³ | J32: 20.4249 | K32: 20.736 | L32: 3474.45 | M32: 72046.1952 | O32: КВ_осн
B33: 18 | C33: 524809 | D33: ТЕХНОРУФ Н ПРОФ, 50 мм | I33: м³ | J33: 3.83675 | K33: 3.888 | L33: 9222.23 | M33: 35856.03024 | O33: КВ_осн
B34: 19 | C34: 125336 | D34: Воронка кровельная с обогревом TERMOCLIP ВФО Ø110х700 мм | I34: шт. | J34: 154 | K34: 154 | L34: 4756.75 | M34: 732539.5
B35: 20 | C35: 128873 | D35: Надставной элемент с манжетой TERMOCLIP | I35: шт. | J35: 154 | K35: 154 | L35: 3854.19 | M35: 593545.26
B36: 21 | C36: 528369 | D36: Пена монтажная ТЕХНОНИКОЛЬ 70 PROFESSIONAL всесезонная | I36: шт. | J36: 30.8 | K36: 31 | L36: 486.83 | M36: 15091.73
B37: 22 | C37: 125341 | D37: Аэратор кровельный TERMOCLIP D160 | I37: шт. | J37: 242 | K37: 242 | L37: 647.71 | M37: 156745.82
B38: 23 | C38: 644869 | D38: Плиты теплоизоляционные LOGICPIR PROF СХМ/СХМ, 50 мм | I38: м² | J38: 202.91 | K38: 203.4882 | L38: 1298.18 | M38: 264164.3115 | O38: PIR_осн
B39: 24 | C39: 659573 | D39: Кровельное ограждение ТехноНИКОЛЬ КО/PRO/PL/1200-3 | I39: шт. | J39: 365.6301 | K39: 366 | L39: 8408.08 | M39: 3077357.28
B40: 25 | C40: 88843 | D40: Приемное устройство системы мониторинга снеговой нагрузки | I40: шт. | J40: 1 | K40: 1 | L40: 16866.52 | M40: 16866.52
B41: 26 | C41: 88841 | D41: Щиток системы мониторинга снеговой нагрузки (WiFi) | I41: шт. | J41: 1 | K41: 1 | L41: 61503.26 | M41: 61503.26
B42: 27 | C42: 71311 | D42: Датчик снега DW | I42: шт. | J42: 8 | K42: 8 | L42: 79514.13 | M42: 636113.04
B43: 28 | C43: 124613 | D43: Анкерный элемент TERMOCLIP 8*45мм | I43: шт. | J43: 28658 | K43: 30000 | L43: 2.62 | M43: 78600 | O43: Креп_осн
B44: 29 | C44: 30214 | D44: Саморез остроконечный ТехноНИКОЛЬ 4,8х 50 мм | I44: шт. | J44: 25610 | K44: 26000 | L44: 4.66 | M44: 121160 | O44: Креп_осн
B45: 30 | C45: 228669 | D45: Саморез остроконечный ТехноНИКОЛЬ 4,8х 80 мм | I45: шт. | J45: 3048 | K45: 3500 | L45: 6.59 | M45: 23065 | O45: Креп_осн
B46: 31 | C46: 228683 | D46: Саморез сверлоконечный ТехноНИКОЛЬ 4,8х 80 мм | I46: шт. | J46: 323 | K46: 500 | L46: 7.99 | M46: 3995 | O46: Креп_осн
B47: 32 | C47: 629549 | D47: Саморез остроконечный ТехноНИКОЛЬ 5,5х35 | I47: шт. | J47: 2201 | K47: 3000 | L47: 9.5 | M47: 28500 | O47: Креп_осн
B48: 33 | C48: 124243 | D48: Телескопический крепеж TERMOCLIP 1, 20 мм | I48: шт. | J48: 323 | K48: 2000 | L48: 3.7 | M48: 7400 | O48: Креп_осн
B49: 34 | C49: 124246 | D49: Телескопический крепеж TERMOCLIP 1, 80 мм | I49: шт. | J49: 658 | K49: 930 | L49: 5.74 | M49: 5338.2 | O49: Креп_осн
B50: 35 | C50: 124249 | D50: Телескопический крепеж TERMOCLIP 1, 130 мм | I50: шт. | J50: 2390 | K50: 2650 | L50: 6.72 | M50: 17808 | O50: Креп_осн
B51: 36 | C51: 123737 | D51: Круглый тарельчатый держатель TERMOCLIP 1С Ø50 мм | I51: шт. | J51: 809 | K51: 1600 | L51: 5.86 | M51: 9376 | O51: Креп_осн
B52: Итоговая стоимость | M52: =SUM(M17:M51) -> 96461090.13
B53: Результаты расчета носят рекомендательный характер. Методика расчета разработана сотрудниками компании ТЕХНОНИКОЛЬ на основе многолетнего опыта. Расходы материалов непосредственно зависят от квалификации сотрудников подрядной организации.

Sheet Подробная_Участки
B7: 27.01.2026
B9: РАСЧЕТ МАТЕРИАЛОВ ПО УСТРОЙСТВУ КРОВЕЛЬНОГО ПОКРЫТИЯ
C11: Информация о объекте: | E11: «Проектирование строительных конструкция покрытия Цеха М10. АО Коломенский завод» по адресу: «Московская область, г.Коломна, ул.Партизан, д.42»
C12: Ссылка на калькуляцию: | E12: http://nav.tn.ru/calculators/flat-roof/?object=TPK9B6AA33C67D3B696FB2FED3B2F383319
C13: Ссылка на сметный расчёт:
C14: Участок 1. Площадь кровли: 24170 м2
B15: пп | C15: ЕКН/ ID | D15: Материалы для системы кровли | J15: Коэф. запаса | K15: Ед. изм. | L15: Количество | N15: Стоимость ед., руб. | O15: Сметная стоимость, руб.
L16: По расчету | M16: С учетом кратности упаковки
B18: Грунтовка | O18: =SUM(O19) -> 2317053.2
B19: 1 | C19: 694295 | D19: Праймер полимерный ТЕХНОНИКОЛЬ №08 Быстросохнущий, 1 мм | J19: 0.2 | K19: кг | L19: 4834 | M19: 4840 | N19: =IF(ISBLANK(C19),0,VLOOKUP(C19,Сводная_Объект!C14:L51,10,FALSE)) -> 478.73 | O19: =M19*N19 -> 2317053.2
B20: Пароизоляционный слой | O20: =SUM(O21) -> 7594240
B21: 1 | C21: 691611 | D21: ТЕХНОБАРЬЕР, 2.8 мм | J21: 1.155 | K21: м² | L21: 27916.35 | M21: 27920 | N21: =IF(ISBLANK(C21),0,VLOOKUP(C21,Сводная_Объект!C14:L51,10,FALSE)) -> 272 | O21: =M21*N21 -> 7594240
B22: Нижний слой теплоизоляции | O22: =SUM(O23:O24) -> 
B23: 1 | C23: 494775 | D23: ТЕХНОРУФ В ЭКСТРА, 40 мм | J23: 1.03 | K23: м³ | L23: 1991.608 | M23: 1991.664 | N23: =IF(ISBLANK(C23),0,VLOOKUP(C23,Сводная_Объект!C14:L51,10,FALSE)) ->  | O23: =M23*N23 -> 
B24: 2 | C24: 496475 | D24: ТЕХНОРУФ В ЭКСТРА, 30 мм | J24: 1.03 | K24: м³ | L24: 746.853 | M24: 746.928 | N24: =IF(ISBLANK(C24),0,VLOOKUP(C24,Сводная_Объект!C14:L51,10,FALSE)) ->  | O24: =M24*N24 -> 
B25: Клеевой слой | O25: =SUM(O26) -> 0
B26: 1 | D26: Битум нефтяной кровельный БНК 90/30, 1 мм | J26: 2 | K26: кг | L26: 193360 | M26: 193375 | N26: =IF(ISBLANK(C26),0,VLOOKUP(C26,Сводная_Объект!C14:L51,10,FALSE)) -> 0 | O26: =M26*N26 -> 0
B27: Верхний слой теплоизоляции | O27: =SUM(O28) -> 15809976
B28: 1 | C28: 494776 | D28: ТЕХНОРУФ В ЭКСТРА, 50 мм | J28: 1.03 | K28: м³ | L28: 1244.755 | M28: 1244.88 | N28: =IF(ISBLANK(C28),0,VLOOKUP(C28,Сводная_Объект!C14:L51,10,FALSE)) -> 12700 | O28: =M28*N28 -> 15809976
B29: Нижний слой кровельного ковра | O29: =SUM(O30) -> 6326490
B30: 1 | C30: 90080 | D30: Унифлекс PRO, 4 мм | J30: 1.1526 | K30: м² | L30: 27858.342 | M30: 27870 | N30: =IF(ISBLANK(C30),0,VLOOKUP(C30,Сводная_Объект!C14:L51,10,FALSE)) -> 227 | O30: =M30*N30 -> 6326490
B31: Верхний слой кровельного ковра | O31: =SUM(O32) -> 10447500
B32: 1 | C32: 22450 | D32: Техноэласт ПЛАМЯ СТОП ЭКП, 4.2 мм | J32: 1.1526 | K32: м² | L32: 27858.342 | M32: 27860 | N32: =IF(ISBLANK(C32),0,VLOOKUP(C32,Сводная_Объект!C14:L51,10,FALSE)) -> 375 | O32: =M32*N32 -> 10447500
B33: Клиновидная изоляция | O33: =SUM(O34:O37) -> 5488708.314
B34: 1 | C34: 72856 | D34: ТЕХНОРУФ В ЭКСТРА КЛИН 4,2 % (15-65 мм), плита А | J34: 1 | K34: м³ | L34: 108.702 | M34: 110.88 | N34: =IF(ISBLANK(C34),0,VLOOKUP(C34,Сводная_Объект!C14:L51,10,FALSE)) -> 19375.56 | O34: =M34*N34 -> 2148362.093
B35: 2 | C35: 72861 | D35: ТЕХНОРУФ В ЭКСТРА КЛИН 4,2 % (15-65 мм), плита Б | J35: 1 | K35: м³ | L35: 169.4952 | M35: 172.368 | N35: =IF(ISBLANK(C35),0,VLOOKUP(C35,Сводная_Объект!C14:L51,10,FALSE)) -> 18065.56 | O35: =M35*N35 -> 3113924.446
B36: 3 | C36: 617800 | D36: ТЕХНОРУФ В ЭКСТРА КЛИН 4,2 % (15-65 мм), плита C | J36: 1 | K36: м³ | L36: 7.74 | M36: 13.824 | N36: =IF(ISBLANK(C36),0,VLOOKUP(C36,Сводная_Объект!C14:L51,10,FALSE)) -> 16378.89 | O36: =M36*N36 -> 226421.7754
B37: 4 | D37: Битум нефтяной кровельный БНК 90/30, 1 мм | J37: 0 | K37: кг | L37: 10489.04 | M37: 10500 | N37: =IF(ISBLANK(C37),0,VLOOKUP(C37,Сводная_Объект!C14:L51,10,FALSE)) -> 0 | O37: =M37*N37 -> 0
B38: Итоговая стоимость Участок 1 | O38: =SUM(O18,O20,O22,O25,O27,O29,O31,O33) -> 
B40: пп | C40: ЕКН/ ID | D40: Материалы для примыкания | I40: Расход на 1 ед.* | J40: Коэф. запаса | K40: Ед. изм. | L40: Количество | N40: Стоимость ед., руб. | O40: Сметная стоимость, руб.
L41: По расчету | M41: С учетом кратности упаковки
B43: Примыкание к наружной стене без устройства парапета, 1176 м.
B44: Слой усиления | O44: =SUM(O45:O47) -> 291252.8
B45: 1 | C45: 100 | D45: Техноэласт ЭПП, 4 мм | I45: 0.5 | J45: 1.122 | K45: м² | L45: 659.736 | M45: 660 | N45: =IF(ISBLANK(C45),0,VLOOKUP(C45,Сводная_Объект!C14:L51,10,FALSE)) -> 341.58 | O45: =M45*N45 -> 225442.8
B46: 2 | C46: 124613 | D46: Анкерный элемент TERMOCLIP 8*45мм | I46: 7 | J46: 1.03 | K46: шт. | L46: 8479 | M46: 10000 | N46: =IF(ISBLANK(C46),0,VLOOKUP(C46,Сводная_Объект!C14:L51,10,FALSE)) -> 2.62 | O46: =M46*N46 -> 26200
B47: 3 | C47: 30214 | D47: Саморез остроконечный ТехноНИКОЛЬ 4,8х 50 мм | I47: 7 | J47: 1.03 | K47: шт. | L47: 8479 | M47: 8500 | N47: =IF(ISBLANK(C47),0,VLOOKUP(C47,Сводная_Объект!C14:L51,10,FALSE)) -> 4.66 | O47: =M47*N47 -> 39610
B48: Слой усиления | O48: =SUM(O49) -> 223040
B49: 1 | C49: 691611 | D49: ТЕХНОБАРЬЕР, 2.8 мм | I49: 0.6 | J49: 1.155 | K49: м² | L49: 814.968 | M49: 820 | N49: =IF(ISBLANK(C49),0,VLOOKUP(C49,Сводная_Объект!C14:L51,10,FALSE)) -> 272 | O49: =M49*N49 -> 223040
B50: Грунтовка | O50: =SUM(O51) -> 76596.8
B51: 1 | C51: 694295 | D51: Праймер полимерный ТЕХНОНИКОЛЬ №08 Быстросохнущий, 1 мм | I51: 0.45 | J51: 0.3 | K51: кг | L51: 158.76 | M51: 160 | N51: =IF(ISBLANK(C51),0,VLOOKUP(C51,Сводная_Объект!C14:L51,10,FALSE)) -> 478.73 | O51: =M51*N51 -> 76596.8
B52: Итоговая стоимость Примыкание к наружной стене без устройства парапета | O52: =SUM(O44,O48,O50) -> 590889.6
B53: Примыкание к вертикальным поверхностям без утепления вертикали для шереховатой поверхности, H = 350, 258 м.
B54: Верхний слой кровельного ковра | O54: =SUM(O55) -> 71250
B55: 1 | C55: 22450 | D55: Техноэласт ПЛАМЯ СТОП ЭКП, 4.2 мм | I55: 0.6 | J55: 1.173 | K55: м² | L55: 181.5804 | M55: 190 | N55: =IF(ISBLANK(C55),0,VLOOKUP(C55,Сводная_Объект!C14:L51,10,FALSE)) -> 375 | O55: =M55*N55 -> 71250
B56: Слой усиления | O56: =SUM(O57) -> 30742.2
B57: 1 | C57: 100 | D57: Техноэласт ЭПП, 4 мм | I57: 0.31 | J57: 1.122 | K57: м² | L57: 89.73756 | M57: 90 | N57: =IF(ISBLANK(C57),0,VLOOKUP(C57,Сводная_Объект!C14:L51,10,FALSE)) -> 341.58 | O57: =M57*N57 -> 30742.2
B58: Комплектация | O58: =SUM(O59:O62) -> 125487.616
B59: 1 | C59: 133879 | D59: Рейка краевая алюминиевая TERMOCLIP, 2 м | I59: 1 | J59: 1.03 | K59: м.п. | L59: 265.74 | M59: 300 | N59: =IF(ISBLANK(C59),0,VLOOKUP(C59,Сводная_Объект!C14:L51,10,FALSE)) -> 148.86 | O59: =M59*N59 -> 44658
B60: 2 | C60: 72871 | D60: ТЕХНОРУФ ПРОФ ГАЛТЕЛЬ, 100 мм | I60: 0.005 | J60: 1.03 | K60: м³ | L60: 1.3287 | M60: 2.88 | N60: =IF(ISBLANK(C60),0,VLOOKUP(C60,Сводная_Объект!C14:L51,10,FALSE)) -> 23364.45 | O60: =M60*N60 -> 67289.616
B61: 3 | C61: 124613 | D61: Анкерный элемент TERMOCLIP 8*45мм | I61: 5 | J61: 1.03 | K61: шт. | L61: 1329 | M61: 2500 | N61: =IF(ISBLANK(C61),0,VLOOKUP(C61,Сводная_Объект!C14:L51,10,FALSE)) -> 2.62 | O61: =M61*N61 -> 6550
B62: 4 | C62: 30214 | D62: Саморез остроконечный ТехноНИКОЛЬ 4,8х 50 мм | I62: 5 | J62: 1.03 | K62: шт. | L62: 1329 | M62: 1500 | N62: =IF(ISBLANK(C62),0,VLOOKUP(C62,Сводная_Объект!C14:L51,10,FALSE)) -> 4.66 | O62: =M62*N62 -> 6990
B63: Грунтовка | O63: =SUM(O64) -> 14361.9
B64: 1 | C64: 694295 | D64: Праймер полимерный ТЕХНОНИКОЛЬ №08 Быстросохнущий, 1 мм | I64: 0.35 | J64: 0.3 | K64: кг | L64: 27.09 | M64: 30 | N64: =IF(ISBLANK(C64),0,VLOOKUP(C64,Сводная_Объект!C14:L51,10,FALSE)) -> 478.73 | O64: =M64*N64 -> 14361.9
B65: Нижний слой кровельного ковра | O65: =SUM(O66) -> 51237
B66: 1 | C66: 100 | D66: Техноэласт ЭПП, 4 мм | I66: 0.47 | J66: 1.173 | K66: м² | L66: 142.23798 | M66: 150 | N66: =IF(ISBLANK(C66),0,VLOOKUP(C66,Сводная_Объект!C14:L51,10,FALSE)) -> 341.58 | O66: =M66*N66 -> 51237
B67: Пены, клеи, герметики, мастики | O67: =SUM(O68) -> 22765.0608
B68: 1 | C68: 450122 | D68: Мастика ТЕХНОНИКОЛЬ №71, 310 мл | I68: 0.15 | J68: 1 | K68: кг | L68: 38.7 | M68: 44.64 | N68: =IF(ISBLANK(C68),0,VLOOKUP(C68,Сводная_Объект!C14:L51,10,FALSE)) -> 509.97 | O68: =M68*N68 -> 22765.0608
B69: Слой усиления | O69: =SUM(O70) -> 29920
B70: 1 | C70: 691611 | D70: ТЕХНОБАРЬЕР, 2.8 мм | I70: 0.35 | J70: 1.155 | K70: м² | L70: 104.2965 | M70: 110 | N70: =IF(ISBLANK(C70),0,VLOOKUP(C70,Сводная_Объект!C14:L51,10,FALSE)) -> 272 | O70: =M70*N70 -> 29920
B71: Грунтовка | O71: =SUM(O72) -> 9574.6
B72: 1 | C72: 694295 | D72: Праймер полимерный ТЕХНОНИКОЛЬ №08 Быстросохнущий, 1 мм | I72: 0.2 | J72: 0.3 | K72: кг | L72: 15.48 | M72: 20 | N72: =IF(ISBLANK(C72),0,VLOOKUP(C72,Сводная_Объект!C14:L51,10,FALSE)) -> 478.73 | O72: =M72*N72 -> 9574.6
B73: Итоговая стоимость Примыкание к вертикальным поверхностям без утепления вертикали для шереховатой поверхности, H = 350 | O73: =SUM(O54,O56,O58,O63,O65,O67,O69,O71) -> 355338.3768
B74: Деформационный шов в примыкании к стене (Пользовательский узел примыкания), 168 м.
B75: Верхний слой кровельного ковра | O75: =SUM(O76) -> 60000
B76: 1 | C76: 22450 | D76: Техноэласт ПЛАМЯ СТОП ЭКП, 4.2 мм | I76: 0.81 | J76: 1.173 | K76: м² | L76: 159.62184 | M76: 160 | N76: =IF(ISBLANK(C76),0,VLOOKUP(C76,Сводная_Объект!C14:L51,10,FALSE)) -> 375 | O76: =M76*N76 -> 60000
B77: Нижний слой кровельного ковра | O77: =SUM(O78) -> 51237
B78: 1 | C78: 100 | D78: Техноэласт ЭПП, 4 мм | I78: 0.76 | J78: 1.173 | K78: м² | L78: 149.76864 | M78: 150 | N78: =IF(ISBLANK(C78),0,VLOOKUP(C78,Сводная_Объект!C14:L51,10,FALSE)) -> 341.58 | O78: =M78*N78 -> 51237
B79: Деформационный шов | O79: =SUM(O80) -> 109682
B80: 1 | C80: 85931 | D80: ТехноНИКОЛЬ Флекс 500, 4 мм | I80: 0.5 | J80: 1.173 | K80: м² | L80: 98.532 | M80: 100 | N80: =IF(ISBLANK(C80),0,VLOOKUP(C80,Сводная_Объект!C14:L51,10,FALSE)) -> 1096.82 | O80: =M80*N80 -> 109682
B81: Слой усиления | O81: =SUM(O82) -> 20494.8
B82: 1 | C82: 100 | D82: Техноэласт ЭПП, 4 мм | I82: 0.31 | J82: 1.122 | K82: м² | L82: 58.43376 | M82: 60 | N82: =IF(ISBLANK(C82),0,VLOOKUP(C82,Сводная_Объект!C14:L51,10,FALSE)) -> 341.58 | O82: =M82*N82 -> 20494.8
B83: Комплектация | O83: =SUM(O84:O86) -> 94369.616
B84: 1 | C84: 72871 | D84: ТЕХНОРУФ ПРОФ ГАЛТЕЛЬ, 100 мм | I84: 0.005 | J84: 1.03 | K84: м³ | L84: 0.8652 | M84: 2.88 | N84: =IF(ISBLANK(C84),0,VLOOKUP(C84,Сводная_Объект!C14:L51,10,FALSE)) -> 23364.45 | O84: =M84*N84 -> 67289.616
B85: 2 | C85: 124613 | D85: Анкерный элемент TERMOCLIP 8*45мм | I85: 15 | J85: 1.03 | K85: шт. | L85: 2596 | M85: 5000 | N85: =IF(ISBLANK(C85),0,VLOOKUP(C85,Сводная_Объект!C14:L51,10,FALSE)) -> 2.62 | O85: =M85*N85 -> 13100
B86: 3 | C86: 30214 | D86: Саморез остроконечный ТехноНИКОЛЬ 4,8х 50 мм | I86: 15 | J86: 1.03 | K86: шт. | L86: 2596 | M86: 3000 | N86: =IF(ISBLANK(C86),0,VLOOKUP(C86,Сводная_Объект!C14:L51,10,FALSE)) -> 4.66 | O86: =M86*N86 -> 13980
B87: Пены, клеи, герметики, мастики | O87: =SUM(O88) -> 15176.7072
B88: 1 | C88: 450122 | D88: Мастика ТЕХНОНИКОЛЬ №71, 310 мл | I88: 0.15 | J88: 1 | K88: кг | L88: 25.2 | M88: 29.76 | N88: =IF(ISBLANK(C88),0,VLOOKUP(C88,Сводная_Объект!C14:L51,10,FALSE)) -> 509.97 | O88: =M88*N88 -> 15176.7072
B89: Слой усиления | O89: =SUM(O90) -> 125120
B90: 1 | C90: 691611 | D90: ТЕХНОБАРЬЕР, 2.8 мм | I90: 2.35 | J90: 1.155 | K90: м² | L90: 455.994 | M90: 460 | N90: =IF(ISBLANK(C90),0,VLOOKUP(C90,Сводная_Объект!C14:L51,10,FALSE)) -> 272 | O90: =M90*N90 -> 125120
B91: Грунтовка | O91: =SUM(O92) -> 9574.6
B92: 1 | C92: 694295 | D92: Праймер полимерный ТЕХНОНИКОЛЬ №08 Быстросохнущий, 1 мм | I92: 0.25 | J92: 0.3 | K92: кг | L92: 12.6 | M92: 20 | N92: =IF(ISBLANK(C92),0,VLOOKUP(C92,Сводная_Объект!C14:L51,10,FALSE)) -> 478.73 | O92: =M92*N92 -> 9574.6
B93: Деформационный шов | O93: =SUM(O94) -> 55535.6088
B94: 1 | C94: 12202 | D94: ТЕХНОЛАЙТ ЭКСТРА, 100 мм | I94: 0.9 | J94: 1.03 | K94: м³ | L94: 15.5736 | M94: 15.984 | N94: =IF(ISBLANK(C94),0,VLOOKUP(C94,Сводная_Объект!C14:L51,10,FALSE)) -> 3474.45 | O94: =M94*N94 -> 55535.6088
B95: Итоговая стоимость Деформационный шов в примыкании к стене (Пользовательский узел примыкания) | O95: =SUM(O75,O77,O79,O81,O83,O87,O89,O91,O93) -> 541190.332
B96: Деформационный разделитель, 157 м.
B97: Верхний слой кровельного ковра | O97: =SUM(O98) -> 48750
B98: 1 | C98: 22450 | D98: Техноэласт ПЛАМЯ СТОП ЭКП, 4.2 мм | I98: 0.67 | J98: 1.173 | K98: м² | L98: 123.38787 | M98: 130 | N98: =IF(ISBLANK(C98),0,VLOOKUP(C98,Сводная_Объект!C14:L51,10,FALSE)) -> 375 | O98: =M98*N98 -> 48750
B99: Нижний слой кровельного ковра | O99: =SUM(O100) -> 58068.6
B100: 1 | C100: 100 | D100: Техноэласт ЭПП, 4 мм | I100: 0.89 | J100: 1.173 | K100: м² | L100: 163.90329 | M100: 170 | N100: =IF(ISBLANK(C100),0,VLOOKUP(C100,Сводная_Объект!C14:L51,10,FALSE)) -> 341.58 | O100: =M100*N100 -> 58068.6
B101: Слой усиления | O101: =SUM(O102) -> 17079
B102: 1 | C102: 100 | D102: Техноэласт ЭПП, 4 мм | I102: 0.25 | J102: 1.122 | K102: м² | L102: 44.0385 | M102: 50 | N102: =IF(ISBLANK(C102),0,VLOOKUP(C102,Сводная_Объект!C14:L51,10,FALSE)) -> 341.58 | O102: =M102*N102 -> 17079
B103: Деформационный шов | O103: =SUM(O104) -> 35098.24
B104: 1 | C104: 85931 | D104: ТехноНИКОЛЬ Флекс 500, 4 мм | I104: 0.17 | J104: 1.173 | K104: м² | L104: 31.30737 | M104: 32 | N104: =IF(ISBLANK(C104),0,VLOOKUP(C104,Сводная_Объект!C14:L51,10,FALSE)) -> 1096.82 | O104: =M104*N104 -> 35098.24
B105: Грунтовка | O105: =SUM(O106:O109) -> 34947.9
B106: 1 | C106: 694295 | D106: Праймер полимерный ТЕХНОНИКОЛЬ №08 Быстросохнущий, 1 мм | I106: 0.55 | J106: 0.3 | K106: кг | L106: 25.905 | M106: 30 | N106: =IF(ISBLANK(C106),0,VLOOKUP(C106,Сводная_Объект!C14:L51,10,FALSE)) -> 478.73 | O106: =M106*N106 -> 14361.9
B107: 2 | C107: 124613 | D107: Анкерный элемент TERMOCLIP 8*45мм | I107: 5 | J107: 1.03 | K107: шт. | L107: 809 | M107: 2500 | N107: =IF(ISBLANK(C107),0,VLOOKUP(C107,Сводная_Объект!C14:L51,10,FALSE)) -> 2.62 | O107: =M107*N107 -> 6550
B108: 3 | C108: 30214 | D108: Саморез остроконечный ТехноНИКОЛЬ 4,8х 50 мм | I108: 5 | J108: 1.03 | K108: шт. | L108: 809 | M108: 1000 | N108: =IF(ISBLANK(C108),0,VLOOKUP(C108,Сводная_Объект!C14:L51,10,FALSE)) -> 4.66 | O108: =M108*N108 -> 4660
B109: 4 | C109: 123737 | D109: Круглый тарельчатый держатель TERMOCLIP 1С Ø50 мм | I109: 5 | J109: 1.03 | K109: шт. | L109: 809 | M109: 1600 | N109: =IF(ISBLANK(C109),0,VLOOKUP(C109,Сводная_Объект!C14:L51,10,FALSE)) -> 5.86 | O109: =M109*N109 -> 9376
B110: Комплектация | O110: =SUM(O111:O113) -> 83159.616
B111: 1 | C111: 72871 | D111: ТЕХНОРУФ ПРОФ ГАЛТЕЛЬ, 100 мм | I111: 0.005 | J111: 1.03 | K111: м³ | L111: 0.80855 | M111: 2.88 | N111: =IF(ISBLANK(C111),0,VLOOKUP(C111,Сводная_Объект!C14:L51,10,FALSE)) -> 23364.45 | O111: =M111*N111 -> 67289.616
B112: 2 | C112: 124613 | D112: Анкерный элемент TERMOCLIP 8*45мм | I112: 10 | J112: 1.03 | K112: шт. | L112: 1618 | M112: 2500 | N112: =IF(ISBLANK(C112),0,VLOOKUP(C112,Сводная_Объект!C14:L51,10,FALSE)) -> 2.62 | O112: =M112*N112 -> 6550
B113: 3 | C113: 30214 | D113: Саморез остроконечный ТехноНИКОЛЬ 4,8х 50 мм | I113: 10 | J113: 1.03 | K113: шт. | L113: 1618 | M113: 2000 | N113: =IF(ISBLANK(C113),0,VLOOKUP(C113,Сводная_Объект!C14:L51,10,FALSE)) -> 4.66 | O113: =M113*N113 -> 9320
B114: Слой усиления | O114: =SUM(O115) -> 78880
B115: 1 | C115: 691611 | D115: ТЕХНОБАРЬЕР, 2.8 мм | I115: 1.57 | J115: 1.155 | K115: м² | L115: 284.69595 | M115: 290 | N115: =IF(ISBLANK(C115),0,VLOOKUP(C115,Сводная_Объект!C14:L51,10,FALSE)) -> 272 | O115: =M115*N115 -> 78880
B116: Деформационный шов | O116: =SUM(O117) -> 18011.5488
B117: 1 | C117: 12202 | D117: ТЕХНОЛАЙТ ЭКСТРА, 100 мм | I117: 0.3 | J117: 1.03 | K117: м³ | L117: 4.8513 | M117: 5.184 | N117: =IF(ISBLANK(C117),0,VLOOKUP(C117,Сводная_Объект!C14:L51,10,FALSE)) -> 3474.45 | O117: =M117*N117 -> 18011.5488
B118: Итоговая стоимость Деформационный разделитель | O118: =SUM(O97,O99,O101,O103,O105,O110,O114,O116) -> 373994.9048
B119: Примыкание к вертикальным поверхностям без утепления вертикали, H = 500, 159 м.
B120: Верхний слой кровельного ковра | O120: =SUM(O121) -> 52500
B121: 1 | C121: 22450 | D121: Техноэласт ПЛАМЯ СТОП ЭКП, 4.2 мм | I121: 0.75 | J121: 1.173 | K121: м² | L121: 139.88025 | M121: 140 | N121: =IF(ISBLANK(C121),0,VLOOKUP(C121,Сводная_Объект!C14:L51,10,FALSE)) -> 375 | O121: =M121*N121 -> 52500
B122: Нижний слой кровельного ковра | O122: =SUM(O123) -> 30742.2
B123: 1 | C123: 100 | D123: Техноэласт ЭПП, 4 мм | I123: 0.46 | J123: 1.173 | K123: м² | L123: 85.79322 | M123: 90 | N123: =IF(ISBLANK(C123),0,VLOOKUP(C123,Сводная_Объект!C14:L51,10,FALSE)) -> 341.58 | O123: =M123*N123 -> 30742.2
B124: Слой усиления | O124: =SUM(O125) -> 20494.8
B125: 1 | C125: 100 | D125: Техноэласт ЭПП, 4 мм | I125: 0.31 | J125: 1.122 | K125: м² | L125: 55.30338 | M125: 60 | N125: =IF(ISBLANK(C125),0,VLOOKUP(C125,Сводная_Объект!C14:L51,10,FALSE)) -> 341.58 | O125: =M125*N125 -> 20494.8
B126: Комплектация | O126: =SUM(O127:O129) -> 106561.616
B127: 1 | C127: 133879 | D127: Рейка краевая алюминиевая TERMOCLIP, 2 м | I127: 1 | J127: 1.03 | K127: м.п. | L127: 163.77 | M127: 200 | N127: =IF(ISBLANK(C127),0,VLOOKUP(C127,Сводная_Объект!C14:L51,10,FALSE)) -> 148.86 | O127: =M127*N127 -> 29772
B128: 2 | C128: 72871 | D128: ТЕХНОРУФ ПРОФ ГАЛТЕЛЬ, 100 мм | I128: 0.005 | J128: 1.03 | K128: м³ | L128: 0.81885 | M128: 2.88 | N128: =IF(ISBLANK(C128),0,VLOOKUP(C128,Сводная_Объект!C14:L51,10,FALSE)) -> 23364.45 | O128: =M128*N128 -> 67289.616
B129: 3 | C129: 629549 | D129: Саморез остроконечный ТехноНИКОЛЬ 5,5х35 | I129: 5 | J129: 1.03 | K129: шт. | L129: 819 | M129: 1000 | N129: =IF(ISBLANK(C129),0,VLOOKUP(C129,Сводная_Объект!C14:L51,10,FALSE)) -> 9.5 | O129: =M129*N129 -> 9500
B130: Пены, клеи, герметики, мастики | O130: =SUM(O131) -> 15176.7072
B131: 1 | C131: 450122 | D131: Мастика ТЕХНОНИКОЛЬ №71, 310 мл | I131: 0.15 | J131: 1 | K131: кг | L131: 23.85 | M131: 29.76 | N131: =IF(ISBLANK(C131),0,VLOOKUP(C131,Сводная_Объект!C14:L51,10,FALSE)) -> 509.97 | O131: =M131*N131 -> 15176.7072
B132: Слой усиления | O132: =SUM(O133) -> 19040
B133: 1 | C133: 691611 | D133: ТЕХНОБАРЬЕР, 2.8 мм | I133: 0.35 | J133: 1.155 | K133: м² | L133: 64.27575 | M133: 70 | N133: =IF(ISBLANK(C133),0,VLOOKUP(C133,Сводная_Объект!C14:L51,10,FALSE)) -> 272 | O133: =M133*N133 -> 19040
B134: Итоговая стоимость Примыкание к вертикальным поверхностям без утепления вертикали, H = 500 | O134: =SUM(O120,O122,O124,O126,O130,O132) -> 244515.3232
B135: Примыкание к вертикальным поверхностям без утепления вертикали, H = 350, 149 м.
B136: Верхний слой кровельного ковра | O136: =SUM(O137) -> 41250
B137: 1 | C137: 22450 | D137: Техноэласт ПЛАМЯ СТОП ЭКП, 4.2 мм | I137: 0.6 | J137: 1.173 | K137: м² | L137: 104.8662 | M137: 110 | N137: =IF(ISBLANK(C137),0,VLOOKUP(C137,Сводная_Объект!C14:L51,10,FALSE)) -> 375 | O137: =M137*N137 -> 41250
B138: Нижний слой кровельного ковра | O138: =SUM(O139) -> 30742.2
B139: 1 | C139: 100 | D139: Техноэласт ЭПП, 4 мм | I139: 0.46 | J139: 1.173 | K139: м² | L139: 80.39742 | M139: 90 | N139: =IF(ISBLANK(C139),0,VLOOKUP(C139,Сводная_Объект!C14:L51,10,FALSE)) -> 341.58 | O139: =M139*N139 -> 30742.2
B140: Слой усиления | O140: =SUM(O141) -> 20494.8
B141: 1 | C141: 100 | D141: Техноэласт ЭПП, 4 мм | I141: 0.31 | J141: 1.122 | K141: м² | L141: 51.82518 | M141: 60 | N141: =IF(ISBLANK(C141),0,VLOOKUP(C141,Сводная_Объект!C14:L51,10,FALSE)) -> 341.58 | O141: =M141*N141 -> 20494.8
B142: Комплектация | O142: =SUM(O143:O145) -> 106561.616
B143: 1 | C143: 133879 | D143: Рейка краевая алюминиевая TERMOCLIP, 2 м | I143: 1 | J143: 1.03 | K143: м.п. | L143: 153.47 | M143: 200 | N143: =IF(ISBLANK(C143),0,VLOOKUP(C143,Сводная_Объект!C14:L51,10,FALSE)) -> 148.86 | O143: =M143*N143 -> 29772
B144: 2 | C144: 72871 | D144: ТЕХНОРУФ ПРОФ ГАЛТЕЛЬ, 100 мм | I144: 0.005 | J144: 1.03 | K144: м³ | L144: 0.76735 | M144: 2.88 | N144: =IF(ISBLANK(C144),0,VLOOKUP(C144,Сводная_Объект!C14:L51,10,FALSE)) -> 23364.45 | O144: =M144*N144 -> 67289.616
B145: 3 | C145: 629549 | D145: Саморез остроконечный ТехноНИКОЛЬ 5,5х35 | I145: 5 | J145: 1.03 | K145: шт. | L145: 768 | M145: 1000 | N145: =IF(ISBLANK(C145),0,VLOOKUP(C145,Сводная_Объект!C14:L51,10,FALSE)) -> 9.5 | O145: =M145*N145 -> 9500
B146: Пены, клеи, герметики, мастики | O146: =SUM(O147) -> 15176.7072
B147: 1 | C147: 450122 | D147: Мастика ТЕХНОНИКОЛЬ №71, 310 мл | I147: 0.15 | J147: 1 | K147: кг | L147: 22.35 | M147: 29.76 | N147: =IF(ISBLANK(C147),0,VLOOKUP(C147,Сводная_Объект!C14:L51,10,FALSE)) -> 509.97 | O147: =M147*N147 -> 15176.7072
B148: Слой усиления | O148: =SUM(O149) -> 19040
B149: 1 | C149: 691611 | D149: ТЕХНОБАРЬЕР, 2.8 мм | I149: 0.35 | J149: 1.155 | K149: м² | L149: 60.23325 | M149: 70 | N149: =IF(ISBLANK(C149),0,VLOOKUP(C149,Сводная_Объект!C14:L51,10,FALSE)) -> 272 | O149: =M149*N149 -> 19040
B150: Итоговая стоимость Примыкание к вертикальным поверхностям без утепления вертикали, H = 350 | O150: =SUM(O136,O138,O140,O142,O146,O148) -> 233265.3232
B151: Примыкание к низкому парапету с утеплением и заведением гидроизоляции на парапет (Пользовательский узел примыкания), B = 140, Bут = 150, H = 350, 947 м.
B152: Верхний слой кровельного ковра | O152: =SUM(O153) -> 393750
B153: 1 | C153: 22450 | D153: Техноэласт ПЛАМЯ СТОП ЭКП, 4.2 мм | I153: 0.94 | J153: 1.173 | K153: м² | L153: 1044.18114 | M153: 1050 | N153: =IF(ISBLANK(C153),0,VLOOKUP(C153,Сводная_Объект!C14:L51,10,FALSE)) -> 375 | O153: =M153*N153 -> 393750
B154: Нижний слой кровельного ковра | O154: =SUM(O155) -> 321085.2
B155: 1 | C155: 100 | D155: Техноэласт ЭПП, 4 мм | I155: 0.84 | J155: 1.173 | K155: м² | L155: 933.09804 | M155: 940 | N155: =IF(ISBLANK(C155),0,VLOOKUP(C155,Сводная_Объект!C14:L51,10,FALSE)) -> 341.58 | O155: =M155*N155 -> 321085.2
B156: Слой усиления | O156: =SUM(O157) -> 112721.4
B157: 1 | C157: 100 | D157: Техноэласт ЭПП, 4 мм | I157: 0.31 | J157: 1.122 | K157: м² | L157: 329.38554 | M157: 330 | N157: =IF(ISBLANK(C157),0,VLOOKUP(C157,Сводная_Объект!C14:L51,10,FALSE)) -> 341.58 | O157: =M157*N157 -> 112721.4
B158: Грунтовка | O158: =SUM(O159) -> 90958.7
B159: 1 | C159: 694295 | D159: Праймер полимерный ТЕХНОНИКОЛЬ №08 Быстросохнущий, 1 мм | I159: 0.64 | J159: 0.3 | K159: кг | L159: 181.824 | M159: 190 | N159: =IF(ISBLANK(C159),0,VLOOKUP(C159,Сводная_Объект!C14:L51,10,FALSE)) -> 478.73 | O159: =M159*N159 -> 90958.7
B160: Комплектация | O160: =SUM(O161:O163) -> 166319.232
B161: 1 | C161: 72871 | D161: ТЕХНОРУФ ПРОФ ГАЛТЕЛЬ, 100 мм | I161: 0.005 | J161: 1.03 | K161: м³ | L161: 4.87705 | M161: 5.76 | N161: =IF(ISBLANK(C161),0,VLOOKUP(C161,Сводная_Объект!C14:L51,10,FALSE)) -> 23364.45 | O161: =M161*N161 -> 134579.232
B162: 2 | C162: 124613 | D162: Анкерный элемент TERMOCLIP 8*45мм | I162: 4 | J162: 1.03 | K162: шт. | L162: 3902 | M162: 5000 | N162: =IF(ISBLANK(C162),0,VLOOKUP(C162,Сводная_Объект!C14:L51,10,FALSE)) -> 2.62 | O162: =M162*N162 -> 13100
B163: 3 | C163: 30214 | D163: Саморез остроконечный ТехноНИКОЛЬ 4,8х 50 мм | I163: 4 | J163: 1.03 | K163: шт. | L163: 3902 | M163: 4000 | N163: =IF(ISBLANK(C163),0,VLOOKUP(C163,Сводная_Объект!C14:L51,10,FALSE)) -> 4.66 | O163: =M163*N163 -> 18640
B164: Слой усиления | O164: =SUM(O165) -> 106080
B165: 1 | C165: 691611 | D165: ТЕХНОБАРЬЕР, 2.8 мм | I165: 0.35 | J165: 1.155 | K165: м² | L165: 382.82475 | M165: 390 | N165: =IF(ISBLANK(C165),0,VLOOKUP(C165,Сводная_Объект!C14:L51,10,FALSE)) -> 272 | O165: =M165*N165 -> 106080
B166: Грунтовка | O166: =SUM(O167) -> 28723.8
B167: 1 | C167: 694295 | D167: Праймер полимерный ТЕХНОНИКОЛЬ №08 Быстросохнущий, 1 мм | I167: 0.2 | J167: 0.3 | K167: кг | L167: 56.82 | M167: 60 | N167: =IF(ISBLANK(C167),0,VLOOKUP(C167,Сводная_Объект!C14:L51,10,FALSE)) -> 478.73 | O167: =M167*N167 -> 28723.8
B168: Верхний слой теплоизоляции | O168: =SUM(O169:O172) -> 691885.8
B169: 1 | C169: 494776 | D169: ТЕХНОРУФ В ЭКСТРА, 50 мм | I169: 1.05 | J169: 1.03 | K169: м³ | L169: 51.20903 | M169: 51.264 | N169: =IF(ISBLANK(C169),0,VLOOKUP(C169,Сводная_Объект!C14:L51,10,FALSE)) -> 12700 | O169: =M169*N169 -> 651052.8
B170: 2 | C170: 124613 | D170: Анкерный элемент TERMOCLIP 8*45мм | I170: 2.45 | J170: 1.03 | K170: шт. | L170: 2390 | M170: 2500 | N170: =IF(ISBLANK(C170),0,VLOOKUP(C170,Сводная_Объект!C14:L51,10,FALSE)) -> 2.62 | O170: =M170*N170 -> 6550
B171: 3 | C171: 228669 | D171: Саморез остроконечный ТехноНИКОЛЬ 4,8х 80 мм | I171: 2.45 | J171: 1.03 | K171: шт. | L171: 2390 | M171: 2500 | N171: =IF(ISBLANK(C171),0,VLOOKUP(C171,Сводная_Объект!C14:L51,10,FALSE)) -> 6.59 | O171: =M171*N171 -> 16475
B172: 4 | C172: 124249 | D172: Телескопический крепеж TERMOCLIP 1, 130 мм | I172: 2.45 | J172: 1.03 | K172: шт. | L172: 2390 | M172: 2650 | N172: =IF(ISBLANK(C172),0,VLOOKUP(C172,Сводная_Объект!C14:L51,10,FALSE)) -> 6.72 | O172: =M172*N172 -> 17808
B173: Итоговая стоимость Примыкание к низкому парапету с утеплением и заведением гидроизоляции на парапет (Пользовательский узел примыкания), B = 140, Bут = 150, H = 350 | O173: =SUM(O152,O154,O156,O158,O160,O164,O166,O168) -> 1911524.132
B174: Примыкание к низкому парапету с утеплением и заведением гидроизоляции на парапет (Пользовательский узел примыкания), B = 140, Bут = 100, H = 400, 228 м.
B175: Верхний слой кровельного ковра | O175: =SUM(O176) -> 97500
B176: 1 | C176: 22450 | D176: Техноэласт ПЛАМЯ СТОП ЭКП, 4.2 мм | I176: 0.94 | J176: 1.173 | K176: м² | L176: 251.39736 | M176: 260 | N176: =IF(ISBLANK(C176),0,VLOOKUP(C176,Сводная_Объект!C14:L51,10,FALSE)) -> 375 | O176: =M176*N176 -> 97500
B177: Нижний слой кровельного ковра | O177: =SUM(O178) -> 78563.4
B178: 1 | C178: 100 | D178: Техноэласт ЭПП, 4 мм | I178: 0.84 | J178: 1.173 | K178: м² | L178: 224.65296 | M178: 230 | N178: =IF(ISBLANK(C178),0,VLOOKUP(C178,Сводная_Объект!C14:L51,10,FALSE)) -> 341.58 | O178: =M178*N178 -> 78563.4
B179: Слой усиления | O179: =SUM(O180) -> 27326.4
B180: 1 | C180: 100 | D180: Техноэласт ЭПП, 4 мм | I180: 0.31 | J180: 1.122 | K180: м² | L180: 79.30296 | M180: 80 | N180: =IF(ISBLANK(C180),0,VLOOKUP(C180,Сводная_Объект!C14:L51,10,FALSE)) -> 341.58 | O180: =M180*N180 -> 27326.4
B181: Грунтовка | O181: =SUM(O182) -> 23936.5
B182: 1 | C182: 694295 | D182: Праймер полимерный ТЕХНОНИКОЛЬ №08 Быстросохнущий, 1 мм | I182: 0.64 | J182: 0.3 | K182: кг | L182: 43.776 | M182: 50 | N182: =IF(ISBLANK(C182),0,VLOOKUP(C182,Сводная_Объект!C14:L51,10,FALSE)) -> 478.73 | O182: =M182*N182 -> 23936.5
B183: Комплектация | O183: =SUM(O184:O186) -> 78499.616
B184: 1 | C184: 72871 | D184: ТЕХНОРУФ ПРОФ ГАЛТЕЛЬ, 100 мм | I184: 0.005 | J184: 1.03 | K184: м³ | L184: 1.1742 | M184: 2.88 | N184: =IF(ISBLANK(C184),0,VLOOKUP(C184,Сводная_Объект!C14:L51,10,FALSE)) -> 23364.45 | O184: =M184*N184 -> 67289.616
B185: 2 | C185: 124613 | D185: Анкерный элемент TERMOCLIP 8*45мм | I185: 4 | J185: 1.03 | K185: шт. | L185: 940 | M185: 2500 | N185: =IF(ISBLANK(C185),0,VLOOKUP(C185,Сводная_Объект!C14:L51,10,FALSE)) -> 2.62 | O185: =M185*N185 -> 6550
B186: 3 | C186: 30214 | D186: Саморез остроконечный ТехноНИКОЛЬ 4,8х 50 мм | I186: 4 | J186: 1.03 | K186: шт. | L186: 940 | M186: 1000 | N186: =IF(ISBLANK(C186),0,VLOOKUP(C186,Сводная_Объект!C14:L51,10,FALSE)) -> 4.66 | O186: =M186*N186 -> 4660
B187: Слой усиления | O187: =SUM(O188) -> 27200
B188: 1 | C188: 691611 | D188: ТЕХНОБАРЬЕР, 2.8 мм | I188: 0.35 | J188: 1.155 | K188: м² | L188: 92.169 | M188: 100 | N188: =IF(ISBLANK(C188),0,VLOOKUP(C188,Сводная_Объект!C14:L51,10,FALSE)) -> 272 | O188: =M188*N188 -> 27200
B189: Грунтовка | O189: =SUM(O190) -> 9574.6
B190: 1 | C190: 694295 | D190: Праймер полимерный ТЕХНОНИКОЛЬ №08 Быстросохнущий, 1 мм | I190: 0.2 | J190: 0.3 | K190: кг | L190: 13.68 | M190: 20 | N190: =IF(ISBLANK(C190),0,VLOOKUP(C190,Сводная_Объект!C14:L51,10,FALSE)) -> 478.73 | O190: =M190*N190 -> 9574.6
B191: Верхний слой теплоизоляции | O191: =SUM(O192:O195) -> 139179
B192: 1 | C192: 494776 | D192: ТЕХНОРУФ В ЭКСТРА, 50 мм | I192: 0.8 | J192: 1.03 | K192: м³ | L192: 9.3936 | M192: 9.504 | N192: =IF(ISBLANK(C192),0,VLOOKUP(C192,Сводная_Объект!C14:L51,10,FALSE)) -> 12700 | O192: =M192*N192 -> 120700.8
B193: 2 | C193: 124613 | D193: Анкерный элемент TERMOCLIP 8*45мм | I193: 2.8 | J193: 1.03 | K193: шт. | L193: 658 | M193: 2500 | N193: =IF(ISBLANK(C193),0,VLOOKUP(C193,Сводная_Объект!C14:L51,10,FALSE)) -> 2.62 | O193: =M193*N193 -> 6550
B194: 3 | C194: 228669 | D194: Саморез остроконечный ТехноНИКОЛЬ 4,8х 80 мм | I194: 2.8 | J194: 1.03 | K194: шт. | L194: 658 | M194: 1000 | N194: =IF(ISBLANK(C194),0,VLOOKUP(C194,Сводная_Объект!C14:L51,10,FALSE)) -> 6.59 | O194: =M194*N194 -> 6590
B195: 4 | C195: 124246 | D195: Телескопический крепеж TERMOCLIP 1, 80 мм | I195: 2.8 | J195: 1.03 | K195: шт. | L195: 658 | M195: 930 | N195: =IF(ISBLANK(C195),0,VLOOKUP(C195,Сводная_Объект!C14:L51,10,FALSE)) -> 5.74 | O195: =M195*N195 -> 5338.2
B196: Итоговая стоимость Примыкание к низкому парапету с утеплением и заведением гидроизоляции на парапет (Пользовательский узел примыкания), B = 140, Bут = 100, H = 400 | O196: =SUM(O175,O177,O179,O181,O183,O187,O189,O191) -> 481779.516
B197: Примыкание к низкому парапету из сэндвич-панели с утеплением и заведением гидроизоляции на парапет (Пользовательский узел примыкания), H = 300, B = 200, Bут = 50, 149 м.
B198: Верхний слой теплоизоляции | O198: =SUM(O199:O201) -> 47251.03024
B199: 1 | C199: 524809 | D199: ТЕХНОРУФ Н ПРОФ, 50 мм | I199: 0.5 | J199: 1.03 | K199: м³ | L199: 3.83675 | M199: 3.888 | N199: =IF(ISBLANK(C199),0,VLOOKUP(C199,Сводная_Объект!C14:L51,10,FALSE)) -> 9222.23 | O199: =M199*N199 -> 35856.03024
B200: 2 | C200: 228683 | D200: Саморез сверлоконечный ТехноНИКОЛЬ 4,8х 80 мм | I200: 2.1 | J200: 1.03 | K200: шт. | L200: 323 | M200: 500 | N200: =IF(ISBLANK(C200),0,VLOOKUP(C200,Сводная_Объект!C14:L51,10,FALSE)) -> 7.99 | O200: =M200*N200 -> 3995
B201: 3 | C201: 124243 | D201: Телескопический крепеж TERMOCLIP 1, 20 мм | I201: 2.1 | J201: 1.03 | K201: шт. | L201: 323 | M201: 2000 | N201: =IF(ISBLANK(C201),0,VLOOKUP(C201,Сводная_Объект!C14:L51,10,FALSE)) -> 3.7 | O201: =M201*N201 -> 7400
B202: Верхний слой кровельного ковра | O202: =SUM(O203) -> 56250
B203: 1 | C203: 22450 | D203: Техноэласт ПЛАМЯ СТОП ЭКП, 4.2 мм | I203: 0.85 | J203: 1.173 | K203: м² | L203: 148.56045 | M203: 150 | N203: =IF(ISBLANK(C203),0,VLOOKUP(C203,Сводная_Объект!C14:L51,10,FALSE)) -> 375 | O203: =M203*N203 -> 56250
B204: Нижний слой кровельного ковра | O204: =SUM(O205) -> 47821.2
B205: 1 | C205: 100 | D205: Техноэласт ЭПП, 4 мм | I205: 0.75 | J205: 1.173 | K205: м² | L205: 131.08275 | M205: 140 | N205: =IF(ISBLANK(C205),0,VLOOKUP(C205,Сводная_Объект!C14:L51,10,FALSE)) -> 341.58 | O205: =M205*N205 -> 47821.2
B206: Слой усиления | O206: =SUM(O207) -> 20494.8
B207: 1 | C207: 100 | D207: Техноэласт ЭПП, 4 мм | I207: 0.31 | J207: 1.122 | K207: м² | L207: 51.82518 | M207: 60 | N207: =IF(ISBLANK(C207),0,VLOOKUP(C207,Сводная_Объект!C14:L51,10,FALSE)) -> 341.58 | O207: =M207*N207 -> 20494.8
B208: Грунтовка | O208: =SUM(O209) -> 9574.6
B209: 1 | C209: 694295 | D209: Праймер полимерный ТЕХНОНИКОЛЬ №08 Быстросохнущий, 1 мм | I209: 0.35 | J209: 0.3 | K209: кг | L209: 15.645 | M209: 20 | N209: =IF(ISBLANK(C209),0,VLOOKUP(C209,Сводная_Объект!C14:L51,10,FALSE)) -> 478.73 | O209: =M209*N209 -> 9574.6
B210: Комплектация | O210: =SUM(O211:O212) -> 76789.616
B211: 1 | C211: 72871 | D211: ТЕХНОРУФ ПРОФ ГАЛТЕЛЬ, 100 мм | I211: 0.005 | J211: 1.03 | K211: м³ | L211: 0.76735 | M211: 2.88 | N211: =IF(ISBLANK(C211),0,VLOOKUP(C211,Сводная_Объект!C14:L51,10,FALSE)) -> 23364.45 | O211: =M211*N211 -> 67289.616
... 59 more rows

Sheet Подробная_Объект
B7: 27.01.2026
B9: РАСЧЕТ МАТЕРИАЛОВ ПО УСТРОЙСТВУ КРОВЕЛЬНОГО ПОКРЫТИЯ
C11: Информация о объекте: | E11: «Проектирование строительных конструкция покрытия Цеха М10. АО Коломенский завод» по адресу: «Московская область, г.Коломна, ул.Партизан, д.42»
C12: Ссылка на калькуляцию: | E12: http://nav.tn.ru/calculators/flat-roof/?object=TPK9B6AA33C67D3B696FB2FED3B2F383319
C13: Ссылка на сметный расчёт:
B14: пп | C14: ЕКН/ ID | D14: Материалы для системы кровли | E14: Ед. изм. | F14: Количество | H14: Стоимость ед., руб. | I14: Сметная стоимость, руб.
F15: По расчету | G15: С учетом кратности упаковки
B17: 1. Устройство пароизоляции | I17: =SUM(I18:I19) -> 9911293.2
B18: 1 | C18: 694295 | D18: Праймер полимерный ТЕХНОНИКОЛЬ №08 Быстросохнущий, 1 мм | E18: кг | F18: 4834 | G18: 4840 | H18: =IF(ISBLANK(C18),0,VLOOKUP(C18,Сводная_Объект!C14:L51,10,FALSE)) -> 478.73 | I18: =G18*H18 -> 2317053.2
B19: 2 | C19: 691611 | D19: ТЕХНОБАРЬЕР, 2.8 мм | E19: м² | F19: 27916.35 | G19: 27920 | H19: =IF(ISBLANK(C19),0,VLOOKUP(C19,Сводная_Объект!C14:L51,10,FALSE)) -> 272 | I19: =G19*H19 -> 7594240
B20: 2. Устройство теплоизоляции | I20: =SUM(I21:I24) -> 
B21: 1 | C21: 494775 | D21: ТЕХНОРУФ В ЭКСТРА, 40 мм | E21: м³ | F21: 1991.608 | G21: 1991.664 | H21: =IF(ISBLANK(C21),0,VLOOKUP(C21,Сводная_Объект!C14:L51,10,FALSE)) ->  | I21: =G21*H21 -> 
B22: 2 | D22: Битум нефтяной кровельный БНК 90/30, 1 мм | E22: кг | F22: 193360 | G22: 193375 | H22: =IF(ISBLANK(C22),0,VLOOKUP(C22,Сводная_Объект!C14:L51,10,FALSE)) -> 0 | I22: =G22*H22 -> 0
B23: 3 | C23: 496475 | D23: ТЕХНОРУФ В ЭКСТРА, 30 мм | E23: м³ | F23: 746.853 | G23: 746.928 | H23: =IF(ISBLANK(C23),0,VLOOKUP(C23,Сводная_Объект!C14:L51,10,FALSE)) ->  | I23: =G23*H23 -> 
B24: 4 | C24: 494776 | D24: ТЕХНОРУФ В ЭКСТРА, 50 мм | E24: м³ | F24: 1244.755 | G24: 1244.88 | H24: =IF(ISBLANK(C24),0,VLOOKUP(C24,Сводная_Объект!C14:L51,10,FALSE)) -> 12700 | I24: =G24*H24 -> 15809976
B25: 3. Устройство гидроизоляции | I25: =SUM(I26:I27) -> 16773990
B26: 1 | C26: 90080 | D26: Унифлекс PRO, 4 мм | E26: м² | F26: 27858.342 | G26: 27870 | H26: =IF(ISBLANK(C26),0,VLOOKUP(C26,Сводная_Объект!C14:L51,10,FALSE)) -> 227 | I26: =G26*H26 -> 6326490
B27: 2 | C27: 22450 | D27: Техноэласт ПЛАМЯ СТОП ЭКП, 4.2 мм | E27: м² | F27: 27858.342 | G27: 27860 | H27: =IF(ISBLANK(C27),0,VLOOKUP(C27,Сводная_Объект!C14:L51,10,FALSE)) -> 375 | I27: =G27*H27 -> 10447500
B28: 4. Устройство примыканий | I28: =SUM(I29:I57) -> 12111745.92
B29: 1 | C29: 100 | D29: Техноэласт ЭПП, 4 мм | E29: м² | F29: 5917.0914 | G29: 5920 | H29: =IF(ISBLANK(C29),0,VLOOKUP(C29,Сводная_Объект!C14:L51,10,FALSE)) -> 341.58 | I29: =G29*H29 -> 2022153.6
B30: 2 | C30: 691611 | D30: ТЕХНОБАРЬЕР, 2.8 мм | E30: м² | F30: 2777.7057 | G30: 2780 | H30: =IF(ISBLANK(C30),0,VLOOKUP(C30,Сводная_Объект!C14:L51,10,FALSE)) -> 272 | I30: 756160
B31: 3 | C31: 694295 | D31: Праймер полимерный ТЕХНОНИКОЛЬ №08 Быстросохнущий, 1 мм | E31: кг | F31: 925.47 | G31: 930 | H31: =IF(ISBLANK(C31),0,VLOOKUP(C31,Сводная_Объект!C14:L51,10,FALSE)) -> 478.73 | I31: 445218.9
B32: 4 | C32: 22450 | D32: Техноэласт ПЛАМЯ СТОП ЭКП, 4.2 мм | E32: м² | F32: 3850.47807 | G32: 3860 | H32: =IF(ISBLANK(C32),0,VLOOKUP(C32,Сводная_Объект!C14:L51,10,FALSE)) -> 375 | I32: 1447500
B33: 5 | C33: 133879 | D33: Рейка краевая алюминиевая TERMOCLIP, 2 м | E33: м.п. | F33: 582.98 | G33: 600 | H33: =IF(ISBLANK(C33),0,VLOOKUP(C33,Сводная_Объект!C14:L51,10,FALSE)) -> 148.86 | I33: 89316
B34: 6 | C34: 72871 | D34: ТЕХНОРУФ ПРОФ ГАЛТЕЛЬ, 100 мм | E34: м³ | F34: 17.2422 | G34: 17.28 | H34: =IF(ISBLANK(C34),0,VLOOKUP(C34,Сводная_Объект!C14:L51,10,FALSE)) -> 23364.45 | I34: 403737.696
B35: 7 | C35: 450122 | D35: Мастика ТЕХНОНИКОЛЬ №71, 310 мл | E35: кг | F35: 146.4 | G35: 148.8 | H35: =IF(ISBLANK(C35),0,VLOOKUP(C35,Сводная_Объект!C14:L51,10,FALSE)) -> 509.97 | I35: 75883.536
B36: 8 | C36: 85931 | D36: ТехноНИКОЛЬ Флекс 500, 4 мм | E36: м² | F36: 129.83937 | G36: 132 | H36: =IF(ISBLANK(C36),0,VLOOKUP(C36,Сводная_Объект!C14:L51,10,FALSE)) -> 1096.82 | I36: 144780.24
B37: 9 | C37: 12202 | D37: ТЕХНОЛАЙТ ЭКСТРА, 100 мм | E37: м³ | F37: 20.4249 | G37: 20.736 | H37: =IF(ISBLANK(C37),0,VLOOKUP(C37,Сводная_Объект!C14:L51,10,FALSE)) -> 3474.45 | I37: 72046.1952
B38: 10 | C38: 494776 | D38: ТЕХНОРУФ В ЭКСТРА, 50 мм | E38: м³ | F38: 60.60263 | G38: 60.624 | H38: =IF(ISBLANK(C38),0,VLOOKUP(C38,Сводная_Объект!C14:L51,10,FALSE)) -> 12700 | I38: 769924.8
B39: 11 | C39: 524809 | D39: ТЕХНОРУФ Н ПРОФ, 50 мм | E39: м³ | F39: 3.83675 | G39: 3.888 | H39: =IF(ISBLANK(C39),0,VLOOKUP(C39,Сводная_Объект!C14:L51,10,FALSE)) -> 9222.23 | I39: 35856.03024
B40: 12 | C40: 125336 | D40: Воронка кровельная с обогревом TERMOCLIP ВФО Ø110х700 мм | E40: шт. | F40: 154 | G40: 154 | H40: =IF(ISBLANK(C40),0,VLOOKUP(C40,Сводная_Объект!C14:L51,10,FALSE)) -> 4756.75 | I40: 732539.5
B41: 13 | C41: 128873 | D41: Надставной элемент с манжетой TERMOCLIP | E41: шт. | F41: 154 | G41: 154 | H41: =IF(ISBLANK(C41),0,VLOOKUP(C41,Сводная_Объект!C14:L51,10,FALSE)) -> 3854.19 | I41: 593545.26
B42: 14 | C42: 528369 | D42: Пена монтажная ТЕХНОНИКОЛЬ 70 PROFESSIONAL всесезонная | E42: шт. | F42: 30.8 | G42: 31 | H42: =IF(ISBLANK(C42),0,VLOOKUP(C42,Сводная_Объект!C14:L51,10,FALSE)) -> 486.83 | I42: 15091.73
B43: 15 | C43: 125341 | D43: Аэратор кровельный TERMOCLIP D160 | E43: шт. | F43: 242 | G43: 242 | H43: =IF(ISBLANK(C43),0,VLOOKUP(C43,Сводная_Объект!C14:L51,10,FALSE)) -> 647.71 | I43: 156745.82
B44: 16 | C44: 644869 | D44: Плиты теплоизоляционные LOGICPIR PROF СХМ/СХМ, 50 мм | E44: м² | F44: 202.91 | G44: 203.4882 | H44: =IF(ISBLANK(C44),0,VLOOKUP(C44,Сводная_Объект!C14:L51,10,FALSE)) -> 1298.18 | I44: 264164.3115
B45: 17 | C45: 659573 | D45: Кровельное ограждение ТехноНИКОЛЬ КО/PRO/PL/1200-3 | E45: шт. | F45: 365.6301 | G45: 366 | H45: =IF(ISBLANK(C45),0,VLOOKUP(C45,Сводная_Объект!C14:L51,10,FALSE)) -> 8408.08 | I45: 3077357.28
B46: 18 | C46: 88843 | D46: Приемное устройство системы мониторинга снеговой нагрузки | E46: шт. | F46: 1 | G46: 1 | H46: =IF(ISBLANK(C46),0,VLOOKUP(C46,Сводная_Объект!C14:L51,10,FALSE)) -> 16866.52 | I46: 16866.52
B47: 19 | C47: 88841 | D47: Щиток системы мониторинга снеговой нагрузки (WiFi) | E47: шт. | F47: 1 | G47: 1 | H47: =IF(ISBLANK(C47),0,VLOOKUP(C47,Сводная_Объект!C14:L51,10,FALSE)) -> 61503.26 | I47: 61503.26
B48: 20 | C48: 71311 | D48: Датчик снега DW | E48: шт. | F48: 8 | G48: 8 | H48: =IF(ISBLANK(C48),0,VLOOKUP(C48,Сводная_Объект!C14:L51,10,FALSE)) -> 79514.13 | I48: 636113.04
B49: 21 | C49: 30214 | D49: Саморез остроконечный ТехноНИКОЛЬ 4,8х 50 мм | E49: шт. | F49: 25610 | G49: 26000 | H49: =IF(ISBLANK(C49),0,VLOOKUP(C49,Сводная_Объект!C14:L51,10,FALSE)) -> 4.66 | I49: 121160
B50: 22 | C50: 124613 | D50: Анкерный элемент TERMOCLIP 8*45мм | E50: шт. | F50: 28658 | G50: 30000 | H50: =IF(ISBLANK(C50),0,VLOOKUP(C50,Сводная_Объект!C14:L51,10,FALSE)) -> 2.62 | I50: 78600
B51: 23 | C51: 123737 | D51: Круглый тарельчатый держатель TERMOCLIP 1С Ø50 мм | E51: шт. | F51: 809 | G51: 1600 | H51: =IF(ISBLANK(C51),0,VLOOKUP(C51,Сводная_Объект!C14:L51,10,FALSE)) -> 5.86 | I51: 9376
B52: 24 | C52: 629549 | D52: Саморез остроконечный ТехноНИКОЛЬ 5,5х35 | E52: шт. | F52: 2201 | G52: 3000 | H52: =IF(ISBLANK(C52),0,VLOOKUP(C52,Сводная_Объект!C14:L51,10,FALSE)) -> 9.5 | I52: 28500
B53: 25 | C53: 124249 | D53: Телескопический крепеж TERMOCLIP 1, 130 мм | E53: шт. | F53: 2390 | G53: 2650 | H53: =IF(ISBLANK(C53),0,VLOOKUP(C53,Сводная_Объект!C14:L51,10,FALSE)) -> 6.72 | I53: 17808
B54: 26 | C54: 228669 | D54: Саморез остроконечный ТехноНИКОЛЬ 4,8х 80 мм | E54: шт. | F54: 3048 | G54: 3500 | H54: =IF(ISBLANK(C54),0,VLOOKUP(C54,Сводная_Объект!C14:L51,10,FALSE)) -> 6.59 | I54: 23065
B55: 27 | C55: 124246 | D55: Телескопический крепеж TERMOCLIP 1, 80 мм | E55: шт. | F55: 658 | G55: 930 | H55: =IF(ISBLANK(C55),0,VLOOKUP(C55,Сводная_Объект!C14:L51,10,FALSE)) -> 5.74 | I55: 5338.2
B56: 28 | C56: 124243 | D56: Телескопический крепеж TERMOCLIP 1, 20 мм | E56: шт. | F56: 323 | G56: 2000 | H56: =IF(ISBLANK(C56),0,VLOOKUP(C56,Сводная_Объект!C14:L51,10,FALSE)) -> 3.7 | I56: 7400
B57: 29 | C57: 228683 | D57: Саморез сверлоконечный ТехноНИКОЛЬ 4,8х 80 мм | E57: шт. | F57: 323 | G57: 500 | H57: =IF(ISBLANK(C57),0,VLOOKUP(C57,Сводная_Объект!C14:L51,10,FALSE)) -> 7.99 | I57: 3995
B58: 5. Клиновидная изоляция, крепление теплоизоляции и мембраны к основанию | I58: =SUM(I59:I62) -> 5488708.314
B59: 1 | C59: 72856 | D59: ТЕХНОРУФ В ЭКСТРА КЛИН 4,2 % (15-65 мм), плита А | E59: м³ | F59: 108.702 | G59: 110.88 | H59: =IF(ISBLANK(C59),0,VLOOKUP(C59,Сводная_Объект!C14:L51,10,FALSE)) -> 19375.56 | I59: =G59*H59 -> 2148362.093
B60: 2 | C60: 72861 | D60: ТЕХНОРУФ В ЭКСТРА КЛИН 4,2 % (15-65 мм), плита Б | E60: м³ | F60: 169.4952 | G60: 172.368 | H60: =IF(ISBLANK(C60),0,VLOOKUP(C60,Сводная_Объект!C14:L51,10,FALSE)) -> 18065.56 | I60: =G60*H60 -> 3113924.446
B61: 3 | C61: 617800 | D61: ТЕХНОРУФ В ЭКСТРА КЛИН 4,2 % (15-65 мм), плита C | E61: м³ | F61: 7.74 | G61: 13.824 | H61: =IF(ISBLANK(C61),0,VLOOKUP(C61,Сводная_Объект!C14:L51,10,FALSE)) -> 16378.89 | I61: =G61*H61 -> 226421.7754
B62: 4 | D62: Битум нефтяной кровельный БНК 90/30, 1 мм | E62: кг | F62: 10489.04 | G62: 10500 | H62: =IF(ISBLANK(C62),0,VLOOKUP(C62,Сводная_Объект!C14:L51,10,FALSE)) -> 0 | I62: =G62*H62 -> 0
B63: Итоговая стоимость | I63: =SUM(I17,I20,I25,I28,I58) -> 
B64: * для линейных примыканий расход указан на 1 м.п., для точечных примыканий- расход на 1 узел.
B66: Результаты расчета носят рекомендательный характер. Методика расчета разработана сотрудниками компании ТЕХНОНИКОЛЬ на основе многолетнего опыта. Расходы материалов непосредственно зависят от квалификации сотрудников подрядной организации.

Sheet ПРИМЕЧАНИЯ
B7: 27.01.2026
B9: Примечания к расчету
C11: Информация о объекте: | E11: «Проектирование строительных конструкция покрытия Цеха М10. АО Коломенский завод» по адресу: «Московская область, г.Коломна, ул.Партизан, д.42»
C12: Ссылка на калькуляцию: | E12: http://nav.tn.ru/calculators/flat-roof/?object=TPK9B6AA33C67D3B696FB2FED3B2F383319
B13: 1. Общие сведения
B15: Принимая в работу данную спецификацию, Вы соглашаетесь с правилами выполнения расчетов в Проектно-Расчетном центре.
B16: Пояснения к расчётам ПРЦ можно получить по ссылке
B18: Примечания к участкам
B19: № уч-ка | C19: Название участка | E19: Система | F19: Основание | G19: Тип профлиста | H19: Площадь, м2 | I19: Толщина пирога, мм | J19: ОУ | K19: КУ | L19: ГИ
B20: Участок 1 | C20: Участок 1 | E20: Пользовательская система | F20: Железобетонное основание | G20: - | H20: 24170 | I20: 160 | J20: - | K20: Каменная вата | L20: Битумно-полимерная 2 слоя
B23: Альбом с примерами раскладки клиновидной теплоизоляции из КВ можно скачать по этой ссылке
B26: 2. Расчет крепежа
B28: № уч-ка | C28: Площадь, м2 | D28: Общее кол-во крепежа, шт. | E28: Общий расход, шт/м2. | F28: Расход ТИ, шт/м2. | G28: Расход ГИ, шт/м2. | H28: Примечание
B29: Участок 1 | C29: 24170 | D29: 0 | E29: 0 | F29: 0 | G29: 0
B32: 3. Кратность материалов
B34: Каменная вата | E34: Пачки
B35: XPS ТехноНИКОЛЬ CARBON ECO | E35: 6 пачек
B36: XPS ТехноНИКОЛЬ CARBON PROF | E36: 6 пачек
B37: Плиты теплоизоляционные PIR | E37: Поддоны
B38: Битумно-полимерная гидроизоляция | E38: Рулоны
B39: ПВХ мембрана | E39: Рулоны
B40: Крепежные элементы | E40: Коробки

Sheet Выгрузка (hidden)
A1: Год | B1: Месяц | C1: № сотр | D1: № | E1: Шифр | F1: CRM | G1: Название объекта | H1: =ОБЩИЕ_ДАННЫЕ!B9 -> Адрес объекта/ Регион объекта | I1: Регион объекта | J1: =ОБЩИЕ_ДАННЫЕ!B16 -> Текущая стадия | K1: Тип расчета | L1: Кол-во вариантов | M1: № Варианта | N1: Кол-во типов | O1: Номер типа | P1: Площадь | Q1: Сложность | R1: Тип расчета | S1: КВ | T1: XPS | U1: ПИР | V1: ПМ | W1: РМ | X1: МиСХ | Y1: Плантер | Z1: СК | AA1: ТИ и ОГН | AB1: Стоимость | AC1: Дата поступ. | AD1: Дата выдачи | AE1: Срок выполн. | AF1: Тип заказчика | AG1: Регион заказчика | AH1: =ОБЩИЕ_ДАННЫЕ!B11 -> Организация/Для кого | AI1: Заказчик | AJ1: =ОБЩИЕ_ДАННЫЕ!B13 -> Должность | AK1: Контакты заказчика | AL1: Базовая ставка | AM1: Фриланс | AN1: Бух 1 | AO1: Бух 2 | AP1: =ОБЩИЕ_ДАННЫЕ!H26 -> Примечание: | AQ1: ОУ | AR1: КУ | AS1: КУ как ОУ | AT1: Номер заявки | AU1: Контакты заказчика (E-mail) | AV1: Материал (СК) | AW1: Тип конструкции | AX1: Примечание 2 | AY1: ТИП1 | AZ1: ТИП2 | BA1: ТИП3 | BB1: ТИП4 | BC1: ТИП5 | BD1: ТИП6 | BE1: ТИП7 | BF1: ТИП8 | BG1: ТИП9 | BH1: ТИП10 | BI1: Промокод | BJ1: Для кого ТИП заказчика | BK1: Для кого Наименование организации | BL1: ИНН | BM1: КПП | BN1: Тип основания | BO1: Ссылки на ИД | BW1: Расчет материалов | BX1: КВ | BY1: XPS | BZ1: PIR | CA1: ПМ | CB1: РМ | CC1: МиСХ | CD1: Плантер
E2: =ОБЩИЕ_ДАННЫЕ!C6 -> 9-9075-МПККИТ-01.26 | F2: =IFERROR(LEFT(ОБЩИЕ_ДАННЫЕ!C7,SEARCH("/",ОБЩИЕ_ДАННЫЕ!C7)-1),ОБЩИЕ_ДАННЫЕ!C7) -> 303297 | G2: =ОБЩИЕ_ДАННЫЕ!C8 -> Проектирование строительных конструкция покрытия Цеха М10. АО Коломенский завод | H2: =ОБЩИЕ_ДАННЫЕ!C9 -> Московская область, г.Коломна, ул.Партизан, д.42 | I2: =ОБЩИЕ_ДАННЫЕ!F9 -> ЦФО | J2: =ОБЩИЕ_ДАННЫЕ!C16 -> Нет данных | K2: =ОБЩИЕ_ДАННЫЕ!C17 -> Новый расчет | L2: =ОБЩИЕ_ДАННЫЕ!C18 -> 1 | M2: =ОБЩИЕ_ДАННЫЕ!F18 -> 1 | N2: =Прайс!AD6 -> 1 | O2: 0 | P2: =Прайс!AC5 -> 24170 | Q2: =Прайс!AC7 -> 2 | R2: =IF(Q2=0,"Клины",Прайс!F133) -> КИ | S2: ='Деление по СБЕ'!C6 -> 1800 | T2: ='Деление по СБЕ'!D6 -> 0 | U2: ='Деление по СБЕ'!E6 -> 0 | V2: 0 | W2: 0 | X2: 0 | Y2: 0 | Z2: 0 | AA2: 0 | AB2: =SUM(S2:AA2) -> 1800 | AC2: =IF(ISBLANK(ОБЩИЕ_ДАННЫЕ!C3),"0",ОБЩИЕ_ДАННЫЕ!C3) -> 2026-01-21 | AD2: =IF(ISBLANK(ОБЩИЕ_ДАННЫЕ!C4),"0",ОБЩИЕ_ДАННЫЕ!C4) -> 2026-01-27 | AE2: =IFERROR(AD2-AC2,0) -> 6 | AF2: =ОБЩИЕ_ДАННЫЕ!C10 -> РТП | AG2: =ОБЩИЕ_ДАННЫЕ!F10 -> ПФО | AH2: =IF(ОБЩИЕ_ДАННЫЕ!C10="РТП",0,ОБЩИЕ_ДАННЫЕ!C11) -> 0 | AI2: =ОБЩИЕ_ДАННЫЕ!C12 -> Трофимов Роман Олегович | AJ2: =ОБЩИЕ_ДАННЫЕ!C13 ->  | AK2: =ОБЩИЕ_ДАННЫЕ!C14 -> +7 (980) 164-03-99 | AL2: =MROUND(ОБЩИЕ_ДАННЫЕ!O120,0.25) -> 450 | AM2: =MROUND(AB2/4*Регион,0.25) -> 450 | AN2: =AM2 -> 450 | AO2: =AN2/0.87 -> 517.2413793 | AP2: =ОБЩИЕ_ДАННЫЕ!J26 -> - | AQ2: =Свойства_расчета!K3 -> 0 | AR2: =Свойства_расчета!K4 -> 175 | AS2: =Свойства_расчета!K5 -> 4 | AT2: =ОБЩИЕ_ДАННЫЕ!C5 -> 235601 | AU2: =ОБЩИЕ_ДАННЫЕ!E14 -> trofimov@tn.ru | AV2: 0 | AX2: =ОБЩИЕ_ДАННЫЕ!L26 -> 0 | AY2: 0 | AZ2: 0 | BA2: 0 | BB2: 0 | BC2: 0 | BD2: 0 | BE2: 0 | BF2: 0 | BG2: 0 | BH2: 0 | BI2: =ОБЩИЕ_ДАННЫЕ!C226 -> 0 | BJ2: =ОБЩИЕ_ДАННЫЕ!E11 -> ОЦО КП | BK2: =ОБЩИЕ_ДАННЫЕ!$C$217 -> 0 | BL2: =ОБЩИЕ_ДАННЫЕ!C221 -> 0 | BM2: =ОБЩИЕ_ДАННЫЕ!C222 -> 0 | BN2: 0 | BO2: =Сводная_Объект!E12 -> http://nav.tn.ru/calculators/flat-roof/?object=TPK9B6AA33C67D3B696FB2FED3B2F383319 | BW2: Материалы_основные | BX2: =SUMIF(Сводная_Объект!$O:$O,"КВ_осн",Сводная_Объект!J:J) -> 3321.22728 | BY2: =SUMIF(Сводная_Объект!$O:$O,"XPS_осн",Сводная_Объект!$J:$J) -> 0 | BZ2: =SUMIF(Сводная_Объект!$O:$O,"PIR_осн",Сводная_Объект!$J:$J) -> 202.91 | CA2: =SUMIF(Сводная_Объект!$O:$O,"ПМ_осн",Сводная_Объект!$J:$J) -> 0 | CB2: =SUMIF(Сводная_Объект!$O:$O,"РМ_осн",Сводная_Объект!$J:$J) -> 65614.09284 | CC2: =SUMIF(Сводная_Объект!$O:$O,"МиСХ_осн",Сводная_Объект!$J:$J) -> 5759.47 | CD2: =SUMIF(Сводная_Объект!$O:$O,"Плантер",Сводная_Объект!$J:$J) -> 0
E3: =$E$2 -> 9-9075-МПККИТ-01.26 | F3: =$F$2 -> 303297 | G3: =$G$2 -> Проектирование строительных конструкция покрытия Цеха М10. АО Коломенский завод | H3: =$H$2 -> Московская область, г.Коломна, ул.Партизан, д.42 | I3: =$I$2 -> ЦФО | J3: =$J$2 -> Нет данных | K3: =$K$2 -> Новый расчет | L3: =$L$2 -> 1 | M3: =$M$2 -> 1 | N3: =ОБЩИЕ_ДАННЫЕ!O97 -> 0 | O3: 0 | P3: =ОБЩИЕ_ДАННЫЕ!N97 -> 0 | Q3: =ОБЩИЕ_ДАННЫЕ!O34 -> 0 | R3: =Прайс!F134 -> МПК ПМ | S3: ='Деление по СБЕ'!C21 -> 0 | T3: ='Деление по СБЕ'!D21 -> 0 | U3: ='Деление по СБЕ'!E21 -> 0 | V3: ='Деление по СБЕ'!F21 -> 0 | W3: ='Деление по СБЕ'!G21 -> 0 | X3: ='Деление по СБЕ'!H21 -> 0 | Y3: 0 | Z3: 0 | AA3: 0 | AB3: 0 | AC3: =$AC$2 -> 2026-01-21 | AD3: =$AD$2 -> 2026-01-27 | AE3: =IFERROR(AD3-AC3,0) -> 6 | AF3: =$AF$2 -> РТП | AG3: =$AG$2 -> ПФО | AH3: =$AH$2 -> 0 | AI3: =$AI$2 -> Трофимов Роман Олегович | AJ3: =$AJ$2 ->  | AK3: =$AK$2 -> +7 (980) 164-03-99 | AL3: =MROUND(ОБЩИЕ_ДАННЫЕ!L121,0.25) -> 0 | AM3: 0 | AN3: =AM3 -> 0 | AO3: =AN3/0.87 -> 0 | AP3: =$AP$2 -> - | AQ3: 0 | AR3: 0 | AS3: 0 | AT3: =$AT$2 -> 235601 | AU3: =$AU$2 -> trofimov@tn.ru | AV3: 0 | AX3: =$AX$2 -> 0 | AY3: 0 | AZ3: 0 | BA3: 0 | BB3: 0 | BC3: 0 | BD3: 0 | BE3: 0 | BF3: 0 | BG3: 0 | BH3: 0 | BI3: =$BI$2 -> 0 | BJ3: =$BJ$2 -> ОЦО КП | BK3: =ОБЩИЕ_ДАННЫЕ!$C$217 -> 0 | BL3: =$BL$2 -> 0 | BM3: =$BM$2 -> 0 | BN3: =INDIRECT("ТИП1!"&"R5") ->  | BO3: =$BO$2 -> http://nav.tn.ru/calculators/flat-roof/?object=TPK9B6AA33C67D3B696FB2FED3B2F383319 | BW3: материалы_паробарьер | BX3: 0 | BY3: 0 | BZ3: 0 | CA3: 0 | CB3: =SUMIF(Сводная_Объект!$O:$O,"РМ_пар",Сводная_Объект!$J:$J) -> 30694.0557 | CC3: 0 | CD3: 0
E4: =$E$2 -> 9-9075-МПККИТ-01.26 | F4: =$F$2 -> 303297 | G4: =$G$2 -> Проектирование строительных конструкция покрытия Цеха М10. АО Коломенский завод | H4: =$H$2 -> Московская область, г.Коломна, ул.Партизан, д.42 | I4: =$I$2 -> ЦФО | J4: =$J$2 -> Нет данных | K4: =$K$2 -> Новый расчет | L4: =$L$2 -> 1 | M4: =$M$2 -> 1 | N4: =ОБЩИЕ_ДАННЫЕ!O96 -> 1 | O4: 0 | P4: =ОБЩИЕ_ДАННЫЕ!N96 -> 24170 | Q4: =ОБЩИЕ_ДАННЫЕ!O35 -> 3 | R4: =Прайс!F135 -> МПК РМ | S4: ='Деление по СБЕ'!C26 -> 1056 | T4: ='Деление по СБЕ'!D26 -> 0 | U4: ='Деление по СБЕ'!E26 -> 1056 | V4: 0 | W4: ='Деление по СБЕ'!G26 -> 0 | X4: ='Деление по СБЕ'!H26 -> 288 | Y4: 0 | Z4: 0 | AA4: 0 | AB4: 2400 | AC4: =$AC$2 -> 2026-01-21 | AD4: =$AD$2 -> 2026-01-27 | AE4: 6 | AF4: =$AF$2 -> РТП | AG4: =$AG$2 -> ПФО | AH4: =$AH$2 -> 0 | AI4: =$AI$2 -> Трофимов Роман Олегович | AJ4: =$AJ$2 ->  | AK4: =$AK$2 -> +7 (980) 164-03-99 | AL4: =MROUND(ОБЩИЕ_ДАННЫЕ!L120,0.25) -> 600 | AM4: 600 | AN4: 600 | AO4: 689.6551724 | AP4: =$AP$2 -> - | AQ4: 0 | AR4: 0 | AS4: 0 | AT4: =$AT$2 -> 235601 | AU4: =$AU$2 -> trofimov@tn.ru | AV4: 0 | AX4: =$AX$2 -> 0 | AY4: 0 | AZ4: 0 | BA4: 0 | BB4: 0 | BC4: 0 | BD4: 0 | BE4: 0 | BF4: 0 | BG4: 0 | BH4: 0 | BI4: =$BI$2 -> 0 | BJ4: =$BJ$2 -> ОЦО КП | BK4: =ОБЩИЕ_ДАННЫЕ!$C$217 -> 0 | BL4: =$BL$2 -> 0 | BM4: =$BM$2 -> 0 | BN4: =INDIRECT("ТИП1!"&"R5") ->  | BO4: =$BO$2 -> http://nav.tn.ru/calculators/flat-roof/?object=TPK9B6AA33C67D3B696FB2FED3B2F383319 | BW4: материалы_фикс и соло | BX4: 0 | BY4: 0 | BZ4: 0 | CA4: 0 | CB4: =SUMIF(Сводная_Объект!$O:$O,"РМ_фикс",Сводная_Объект!$J:$J) -> 0 | CC4: 0 | CD4: 0
E5: 9-9075-МПККИТ-01.26 | F5: 303297 | G5: Проектирование строительных конструкция покрытия Цеха М10. АО Коломенский завод | H5: Московская область, г.Коломна, ул.Партизан, д.42 | I5: ЦФО | J5: Нет данных | K5: Новый расчет | L5: 1 | M5: 1 | N5: =ОБЩИЕ_ДАННЫЕ!N36 -> 0 | O5: 0 | P5: =ОБЩИЕ_ДАННЫЕ!N97 -> 0 | Q5: =ОБЩИЕ_ДАННЫЕ!O36 -> 0 | R5: =IF(Q5=0,"Ветер",Прайс!F136) -> Ветер | S5: 0 | T5: 0 | U5: 0 | V5: ='Деление по СБЕ'!F31 -> 0 | W5: 0 | X5: 0 | Y5: 0 | Z5: 0 | AA5: 0 | AB5: =SUM(S5:AA5) -> 0 | AC5: 2026-01-21 | AD5: 2026-01-27 | AE5: 6 | AF5: РТП | AG5: ПФО | AH5: 0 | AI5: Трофимов Роман Олегович | AK5: +7 (980) 164-03-99 | AL5: =MROUND(ОБЩИЕ_ДАННЫЕ!L122,0.25) -> 0 | AM5: 0 | AN5: 0 | AO5: 0 | AP5: - | AQ5: 0 | AR5: 0 | AS5: 0 | AT5: 235601 | AU5: trofimov@tn.ru | AV5: 0 | AX5: 0 | AY5: 0 | AZ5: 0 | BA5: 0 | BB5: 0 | BC5: 0 | BD5: 0 | BE5: 0 | BF5: 0 | BG5: 0 | BH5: 0 | BI5: 0 | BJ5: ОЦО КП | BK5: =ОБЩИЕ_ДАННЫЕ!$C$217 -> 0 | BL5: 0 | BM5: 0 | BN5: 0 | BO5: http://nav.tn.ru/calculators/flat-roof/?object=TPK9B6AA33C67D3B696FB2FED3B2F383319 | BW5: Клины | BX5: =SUMIF(Сводная_Объект!$O:$O,"КВ_клин",Сводная_Объект!J:J) -> 285.9372 | BY5: =SUMIF(Сводная_Объект!$O:$O,"XPS_клин",Сводная_Объект!$J:$J) -> 0 | BZ5: =SUMIF(Сводная_Объект!$O:$O,"PIR_клин",Сводная_Объект!$J:$J) -> 0 | CA5: 0 | CB5: 0 | CC5: 0 | CD5: 0
E6: 9-9075-МПККИТ-01.26 | F6: 303297 | G6: Проектирование строительных конструкция покрытия Цеха М10. АО Коломенский завод | H6: Московская область, г.Коломна, ул.Партизан, д.42 | I6: ЦФО | J6: Нет данных | K6: Новый расчет | L6: 1 | M6: 1 | N6: =ОБЩИЕ_ДАННЫЕ!N37 -> 0 | O6: 0 | P6: =ОБЩИЕ_ДАННЫЕ!N96 -> 24170 | Q6: =ОБЩИЕ_ДАННЫЕ!O37 -> 0 | R6: =IF(Q6=0,"Ветер",Прайс!F137) -> Ветер | S6: 0 | T6: 0 | U6: 0 | V6: 0 | W6: ='Деление по СБЕ'!G36 -> 0 | X6: 0 | Y6: 0 | Z6: 0 | AA6: 0 | AB6: =SUM(S6:AA6) -> 0 | AC6: 2026-01-21 | AD6: 2026-01-27 | AE6: =IFERROR(AD6-AC6,0) -> 6 | AF6: РТП | AG6: ПФО | AH6: 0 | AI6: Трофимов Роман Олегович | AK6: +7 (980) 164-03-99 | AL6: =MROUND(ОБЩИЕ_ДАННЫЕ!L122,0.25) -> 0 | AM6: 0 | AN6: 0 | AO6: 0 | AP6: - | AQ6: 0 | AR6: 0 | AS6: 0 | AT6: 235601 | AU6: trofimov@tn.ru | AV6: 0 | AX6: 0 | AY6: 0 | AZ6: 0 | BA6: 0 | BB6: 0 | BC6: 0 | BD6: 0 | BE6: 0 | BF6: 0 | BG6: 0 | BH6: 0 | BI6: 0 | BJ6: ОЦО КП | BK6: =ОБЩИЕ_ДАННЫЕ!$C$217 -> 0 | BL6: 0 | BM6: 0 | BN6: 0 | BO6: http://nav.tn.ru/calculators/flat-roof/?object=TPK9B6AA33C67D3B696FB2FED3B2F383319 | BW6: крепеж | BX6: =SUMIF(Сводная_Объект!$O:$O,"Креп_осн",Сводная_Объект!$J:$J) -> 64020 | BY6: =SUMIF(Сводная_Объект!$O:$O,"Креп_сверх",Сводная_Объект!$J:$J) -> 0 | BZ6: 0 | CA6: 0 | CB6: 0 | CC6: 0 | CD6: 0
E7: 9-9075-МПККИТ-01.26 | F7: 303297 | G7: Проектирование строительных конструкция покрытия Цеха М10. АО Коломенский завод | H7: Московская область, г.Коломна, ул.Партизан, д.42 | I7: ЦФО | J7: Нет данных | K7: Новый расчет | L7: 1 | M7: 1 | N7: =ОБЩИЕ_ДАННЫЕ!O38 -> 2 | O7: 0 | P7: =$P$3+$P$4 -> 24170 | Q7: 0 | R7: =IF(N7=0,"Т",Прайс!F138) -> Т | S7: ='Деление по СБЕ'!C41 -> 300 | T7: ='Деление по СБЕ'!D41 -> 0 | U7: ='Деление по СБЕ'!E41 -> 300 | V7: 0 | W7: 0 | X7: 0 | Y7: 0 | Z7: 0 | AA7: 0 | AB7: 600 | AC7: 2026-01-21 | AD7: 2026-01-27 | AE7: 6 | AF7: РТП | AG7: ПФО | AH7: 0 | AI7: Трофимов Роман Олегович | AK7: +7 (980) 164-03-99 | AL7: =MROUND(ОБЩИЕ_ДАННЫЕ!L123,0.25) -> 75 | AM7: 150 | AN7: 150 | AO7: 172.4137931 | AP7: - | AQ7: 0 | AR7: 0 | AS7: 0 | AT7: 235601 | AU7: trofimov@tn.ru | AV7: 0 | AX7: 0 | AY7: 0 | AZ7: 0 | BA7: 0 | BB7: 0 | BC7: 0 | BD7: 0 | BE7: 0 | BF7: 0 | BG7: 0 | BH7: 0 | BI7: 0 | BJ7: ОЦО КП | BK7: =ОБЩИЕ_ДАННЫЕ!$C$217 -> 0 | BL7: 0 | BM7: 0 | BN7: 0 | BO7: http://nav.tn.ru/calculators/flat-roof/?object=TPK9B6AA33C67D3B696FB2FED3B2F383319
E8: 9-9075-МПККИТ-01.26 | F8: 303297 | G8: Проектирование строительных конструкция покрытия Цеха М10. АО Коломенский завод | H8: Московская область, г.Коломна, ул.Партизан, д.42 | I8: ЦФО | J8: Нет данных | K8: Новый расчет | L8: =$L$2 -> 1 | M8: =$M$2 -> 1 | N8: =ОБЩИЕ_ДАННЫЕ!C19 -> 1 | O8: 0 | P8: =$P$3+$P$4 -> 24170 | Q8: =ОБЩИЕ_ДАННЫЕ!O39 -> 0 | R8: =IF(N8=0,"Тепло",Прайс!F139) -> Тепло | S8: ='Деление по СБЕ'!C71 -> 0 | T8: ='Деление по СБЕ'!D71 -> 0 | U8: ='Деление по СБЕ'!E71 -> 0 | V8: 0 | W8: 0 | X8: 0 | Y8: 0 | Z8: 0 | AA8: 0 | AB8: 0 | AC8: 2026-01-21 | AD8: 2026-01-27 | AE8: 6 | AF8: РТП | AG8: ПФО | AH8: 0 | AI8: Трофимов Роман Олегович | AK8: +7 (980) 164-03-99 | AL8: =MROUND(ОБЩИЕ_ДАННЫЕ!L124,0.25) -> 0 | AM8: 0 | AN8: =AM8 -> 0 | AO8: =AN8/0.87 -> 0 | AP8: - | AQ8: 0 | AR8: 0 | AS8: 0 | AT8: 235601 | AU8: trofimov@tn.ru | AV8: 0 | AX8: 0 | AY8: 0 | AZ8: 0 | BA8: 0 | BB8: 0 | BC8: 0 | BD8: 0 | BE8: 0 | BF8: 0 | BG8: 0 | BH8: 0 | BI8: 0 | BJ8: ОЦО КП | BK8: =ОБЩИЕ_ДАННЫЕ!$C$217 -> 0 | BL8: 0 | BM8: 0 | BN8: 0 | BO8: http://nav.tn.ru/calculators/flat-roof/?object=TPK9B6AA33C67D3B696FB2FED3B2F383319
E9: 9-9075-МПККИТ-01.26 | F9: 303297 | G9: Проектирование строительных конструкция покрытия Цеха М10. АО Коломенский завод | H9: Московская область, г.Коломна, ул.Партизан, д.42 | I9: ЦФО | J9: Нет данных | K9: Новый расчет | L9: 1 | M9: 1 | N9: =ОБЩИЕ_ДАННЫЕ!O40 -> 0 | O9: 0 | P9: =$P$3+$P$4 -> 24170 | Q9: 0 | R9: =IF(N9=0,"ПАР",Прайс!F140) -> ПАР | S9: 0 | T9: 0 | U9: 0 | V9: 0 | W9: ='Деление по СБЕ'!G61 -> 0 | X9: 0 | Y9: 0 | Z9: 0 | AA9: 0 | AB9: 0 | AC9: 2026-01-21 | AD9: 2026-01-27 | AE9: 6 | AF9: РТП | AG9: ПФО | AH9: 0 | AI9: Трофимов Роман Олегович | AK9: +7 (980) 164-03-99 | AL9: =MROUND(IFERROR(AM9/N9,0),0.25) -> 0 | AM9: 0 | AN9: 0 | AO9: 0 | AP9: - | AQ9: 0 | AR9: 0 | AS9: 0 | AT9: 235601 | AU9: trofimov@tn.ru | AV9: 0 | AX9: 0 | AY9: 0 | AZ9: 0 | BA9: 0 | BB9: 0 | BC9: 0 | BD9: 0 | BE9: 0 | BF9: 0 | BG9: 0 | BH9: 0 | BI9: 0 | BJ9: ОЦО КП | BK9: =ОБЩИЕ_ДАННЫЕ!$C$217 -> 0 | BL9: 0 | BM9: 0 | BN9: 0 | BO9: http://nav.tn.ru/calculators/flat-roof/?object=TPK9B6AA33C67D3B696FB2FED3B2F383319
E10: 9-9075-МПККИТ-01.26 | F10: 303297 | G10: Проектирование строительных конструкция покрытия Цеха М10. АО Коломенский завод | H10: Московская область, г.Коломна, ул.Партизан, д.42 | I10: ЦФО | J10: Нет данных | K10: Новый расчет | L10: 1 | M10: 1 | N10: =ОБЩИЕ_ДАННЫЕ!C19 -> 1 | O10: 0 | P10: =$P$3+$P$4 -> 24170 | Q10: =ОБЩИЕ_ДАННЫЕ!O32 -> 3 | R10: =IF(Q10=0,"Анализ",Прайс!F141) -> А | S10: ='Деление по СБЕ'!C46 -> 883.7209302 | T10: ='Деление по СБЕ'!D46 -> 0 | U10: ='Деление по СБЕ'!E46 -> 883.7209302 | V10: ='Деление по СБЕ'!F46 -> 0 | W10: ='Деление по СБЕ'!G46 -> 0 | X10: ='Деление по СБЕ'!H46 -> 232.5581395 | Y10: 0 | Z10: 0 | AA10: 0 | AB10: 2000 | AC10: 2026-01-21 | AD10: 2026-01-27 | AE10: 6 | AF10: РТП | AG10: ПФО | AH10: 0 | AI10: Трофимов Роман Олегович | AK10: +7 (980) 164-03-99 | AL10: =AM10 -> 500 | AM10: 500 | AN10: =AM10 -> 500 | AO10: 574.7126437 | AP10: - | AQ10: 0 | AR10: 0 | AS10: 0 | AT10: 235601 | AU10: trofimov@tn.ru | AV10: 0 | AX10: 0 | AY10: 0 | AZ10: 0 | BA10: 0 | BB10: 0 | BC10: 0 | BD10: 0 | BE10: 0 | BF10: 0 | BG10: 0 | BH10: 0 | BI10: 0 | BJ10: ОЦО КП | BK10: =ОБЩИЕ_ДАННЫЕ!$C$217 -> 0 | BL10: 0 | BM10: 0 | BN10: 0 | BO10: http://nav.tn.ru/calculators/flat-roof/?object=TPK9B6AA33C67D3B696FB2FED3B2F383319
E11: 9-9075-МПККИТ-01.26 | F11: 303297 | G11: Проектирование строительных конструкция покрытия Цеха М10. АО Коломенский завод | H11: Московская область, г.Коломна, ул.Партизан, д.42 | I11: ЦФО | J11: Нет данных | K11: Новый расчет | L11: 1 | M11: 1 | N11: =ОБЩИЕ_ДАННЫЕ!R97 -> 1 | O11: 0 | P11: =$P$3+$P$4 -> 24170 | Q11: =ОБЩИЕ_ДАННЫЕ!O41 -> 3 | R11: =IF(N11=0,"Огражд",Прайс!F142) -> ОГР | S11: 0 | T11: 0 | U11: 0 | V11: ='Деление по СБЕ'!F66 -> 800 | W11: 0 | X11: 0 | Y11: 0 | Z11: 0 | AA11: 0 | AB11: 800 | AC11: 2026-01-21 | AD11: 2026-01-27 | AE11: 6 | AF11: РТП | AG11: ПФО | AH11: 0 | AI11: Трофимов Роман Олегович | AK11: +7 (980) 164-03-99 | AL11: =AM11 -> 200 | AM11: 200 | AN11: 200 | AO11: 229.8850575 | AP11: - | AQ11: 0 | AR11: 0 | AS11: 0 | AT11: 235601 | AU11: trofimov@tn.ru | AV11: 0 | AX11: 0 | AY11: 0 | AZ11: 0 | BA11: 0 | BB11: 0 | BC11: 0 | BD11: 0 | BE11: 0 | BF11: 0 | BG11: 0 | BH11: 0 | BI11: 0 | BJ11: ОЦО КП | BK11: =ОБЩИЕ_ДАННЫЕ!$C$217 -> 0 | BL11: 0 | BM11: 0 | BN11: 0 | BO11: http://nav.tn.ru/calculators/flat-roof/?object=TPK9B6AA33C67D3B696FB2FED3B2F383319
E12: 9-9075-МПККИТ-01.26 | F12: 303297 | G12: Проектирование строительных конструкция покрытия Цеха М10. АО Коломенский завод | H12: Московская область, г.Коломна, ул.Партизан, д.42 | I12: ЦФО | J12: Нет данных | K12: Новый расчет | L12: 1 | M12: 1 | N12: =ОБЩИЕ_ДАННЫЕ!N44 -> 0 | O12: 0 | P12: =ОБЩИЕ_ДАННЫЕ!N97 -> 0 | Q12: =ОБЩИЕ_ДАННЫЕ!O44 -> 0 | R12: =IF(N12=0,"Воронки ПМ",Прайс!F145) -> Воронки ПМ | S12: 0 | T12: 0 | U12: 0 | V12: ='Деление по СБЕ'!F76 -> 0 | W12: 0 | X12: 0 | Y12: 0 | Z12: 0 | AA12: 0 | AB12: 0 | AC12: 2026-01-21 | AD12: 2026-01-27 | AE12: 6 | AF12: РТП | AG12: ПФО | AH12: 0 | AI12: Трофимов Роман Олегович | AK12: +7 (980) 164-03-99 | AL12: =IF(AB12=0,0,INDEX(Прайс!J51:M53,ОБЩИЕ_ДАННЫЕ!O44,ОБЩИЕ_ДАННЫЕ!N91)/4) -> 0 | AM12: 0 | AN12: 0 | AO12: 0 | AP12: - | AQ12: 0 | AR12: 0 | AS12: 0 | AT12: 235601 | AU12: trofimov@tn.ru | AV12: 0 | AX12: 0 | AY12: 0 | AZ12: 0 | BA12: 0 | BB12: 0 | BC12: 0 | BD12: 0 | BE12: 0 | BF12: 0 | BG12: 0 | BH12: 0 | BI12: 0 | BJ12: ОЦО КП | BK12: =ОБЩИЕ_ДАННЫЕ!$C$217 -> 0 | BL12: 0 | BM12: 0 | BN12: 0 | BO12: http://nav.tn.ru/calculators/flat-roof/?object=TPK9B6AA33C67D3B696FB2FED3B2F383319
E13: 9-9075-МПККИТ-01.26 | F13: 303297 | G13: Проектирование строительных конструкция покрытия Цеха М10. АО Коломенский завод | H13: Московская область, г.Коломна, ул.Партизан, д.42 | I13: ЦФО | J13: Нет данных | K13: Новый расчет | L13: 1 | M13: 1 | N13: =ОБЩИЕ_ДАННЫЕ!N45 -> 0 | O13: 0 | P13: =ОБЩИЕ_ДАННЫЕ!N96 -> 24170 | Q13: =ОБЩИЕ_ДАННЫЕ!O45 -> 0 | R13: =IF(N13=0,"Воронки РМ",Прайс!F146) -> Воронки РМ | S13: 0 | T13: 0 | U13: 0 | V13: 0 | W13: ='Деление по СБЕ'!G81 -> 0 | X13: 0 | Y13: 0 | Z13: 0 | AA13: 0 | AB13: 0 | AC13: 2026-01-21 | AD13: 2026-01-27 | AE13: 6 | AF13: РТП | AG13: ПФО | AH13: 0 | AI13: Трофимов Роман Олегович | AK13: +7 (980) 164-03-99 | AL13: =IF(AB13=0,0,INDEX(Прайс!J51:M53,ОБЩИЕ_ДАННЫЕ!O45,ОБЩИЕ_ДАННЫЕ!O91)/4) -> 0 | AM13: 0 | AN13: 0 | AO13: 0 | AP13: - | AQ13: 0 | AR13: 0 | AS13: 0 | AT13: 235601 | AU13: trofimov@tn.ru | AV13: 0 | AX13: 0 | AY13: 0 | AZ13: 0 | BA13: 0 | BB13: 0 | BC13: 0 | BD13: 0 | BE13: 0 | BF13: 0 | BG13: 0 | BH13: 0 | BI13: 0 | BJ13: ОЦО КП | BK13: =ОБЩИЕ_ДАННЫЕ!$C$217 -> 0 | BL13: 0 | BM13: 0 | BN13: 0 | BO13: http://nav.tn.ru/calculators/flat-roof/?object=TPK9B6AA33C67D3B696FB2FED3B2F383319
E14: 9-9075-МПККИТ-01.26 | F14: 303297 | G14: Проектирование строительных конструкция покрытия Цеха М10. АО Коломенский завод | H14: Московская область, г.Коломна, ул.Партизан, д.42 | I14: ЦФО | J14: Нет данных | K14: Новый расчет | L14: 1 | M14: 1 | N14: =COUNTIF(ОБЩИЕ_ДАННЫЕ!$J$142:$J$151,">0") -> 0 | O14: 1 | P14: =ОБЩИЕ_ДАННЫЕ!J142 -> 0 | Q14: =ОБЩИЕ_ДАННЫЕ!K142 -> 0 | R14: =IF(Q14=0,"Схемы Ветровых Зон",Прайс!F143) -> Схемы Ветровых Зон | S14: 0 | T14: 0 | U14: 0 | V14: =IF(AND(ОБЩИЕ_ДАННЫЕ!K142>0,ОБЩИЕ_ДАННЫЕ!M142>0),ОБЩИЕ_ДАННЫЕ!L142*0.25,0) -> 0 | W14: =IF(AND(ОБЩИЕ_ДАННЫЕ!K142>0,ОБЩИЕ_ДАННЫЕ!N142>0),ОБЩИЕ_ДАННЫЕ!L142*0.25,0) -> 0 | X14: 0 | Y14: 0 | Z14: 0 | AA14: 0 | AB14: 0 | AC14: 2026-01-21 | AD14: 2026-01-27 | AE14: 6 | AF14: РТП | AG14: ПФО | AH14: 0 | AI14: Трофимов Роман Олегович | AK14: +7 (980) 164-03-99 | AL14: =AM14 -> 0 | AM14: 0 | AN14: 0 | AO14: 0 | AP14: - | AQ14: 0 | AR14: 0 | AS14: 0 | AT14: 235601 | AU14: trofimov@tn.ru | AV14: 0 | AX14: 0 | AY14: 0 | AZ14: 0 | BA14: 0 | BB14: 0 | BC14: 0 | BD14: 0 | BE14: 0 | BF14: 0 | BG14: 0 | BH14: 0 | BI14: 0 | BJ14: ОЦО КП | BK14: =ОБЩИЕ_ДАННЫЕ!$C$217 -> 0 | BL14: 0 | BM14: 0 | BN14: 0 | BO14: http://nav.tn.ru/calculators/flat-roof/?object=TPK9B6AA33C67D3B696FB2FED3B2F383319
E15: 9-9075-МПККИТ-01.26 | F15: 303297 | G15: Проектирование строительных конструкция покрытия Цеха М10. АО Коломенский завод | H15: Московская область, г.Коломна, ул.Партизан, д.42 | I15: ЦФО | J15: Нет данных | K15: Новый расчет | L15: 1 | M15: 1 | N15: =COUNTIF(ОБЩИЕ_ДАННЫЕ!$J$142:$J$151,">0") -> 0 | O15: 2 | P15: =ОБЩИЕ_ДАННЫЕ!J143 -> 0 | Q15: =ОБЩИЕ_ДАННЫЕ!K143 -> 0 | R15: =IF(Q15=0,"Схемы Ветровых Зон",Прайс!F143) -> Схемы Ветровых Зон | S15: 0 | T15: 0 | U15: 0 | V15: =IF(AND(ОБЩИЕ_ДАННЫЕ!K143>0,ОБЩИЕ_ДАННЫЕ!M143>0),ОБЩИЕ_ДАННЫЕ!L143*0.25,0) -> 0 | W15: =IF(AND(ОБЩИЕ_ДАННЫЕ!K143>0,ОБЩИЕ_ДАННЫЕ!N143>0),ОБЩИЕ_ДАННЫЕ!L143*0.25,0) -> 0 | X15: 0 | Y15: 0 | Z15: 0 | AA15: 0 | AB15: =SUM(S15:AA15) -> 0 | AC15: 2026-01-21 | AD15: 2026-01-27 | AE15: 6 | AF15: РТП | AG15: ПФО | AH15: 0 | AI15: Трофимов Роман Олегович | AK15: +7 (980) 164-03-99 | AL15: =AM15 -> 0 | AM15: 0 | AN15: =AM15 -> 0 | AO15: =AN15/0.87 -> 0 | AP15: - | AQ15: 0 | AR15: 0 | AS15: 0 | AT15: 235601 | AU15: trofimov@tn.ru | AV15: 0 | AX15: 0 | AY15: 0 | AZ15: 0 | BA15: 0 | BB15: 0 | BC15: 0 | BD15: 0 | BE15: 0 | BF15: 0 | BG15: 0 | BH15: 0 | BI15: 0 | BJ15: ОЦО КП | BK15: =ОБЩИЕ_ДАННЫЕ!$C$217 -> 0 | BL15: 0 | BM15: 0 | BN15: 0 | BO15: http://nav.tn.ru/calculators/flat-roof/?object=TPK9B6AA33C67D3B696FB2FED3B2F383319
E16: 9-9075-МПККИТ-01.26 | F16: 303297 | G16: Проектирование строительных конструкция покрытия Цеха М10. АО Коломенский завод | H16: Московская область, г.Коломна, ул.Партизан, д.42 | I16: ЦФО | J16: Нет данных | K16: Новый расчет | L16: 1 | M16: 1 | N16: =COUNTIF(ОБЩИЕ_ДАННЫЕ!$J$142:$J$151,">0") -> 0 | O16: 3 | P16: =ОБЩИЕ_ДАННЫЕ!J144 -> 0 | Q16: =ОБЩИЕ_ДАННЫЕ!K144 -> 0 | R16: =IF(Q16=0,"Схемы Ветровых Зон",Прайс!F143) -> Схемы Ветровых Зон | S16: 0 | T16: 0 | U16: 0 | V16: =IF(AND(ОБЩИЕ_ДАННЫЕ!K144>0,ОБЩИЕ_ДАННЫЕ!M144>0),ОБЩИЕ_ДАННЫЕ!L144*0.25,0) -> 0 | W16: =IF(AND(ОБЩИЕ_ДАННЫЕ!K144>0,ОБЩИЕ_ДАННЫЕ!N144>0),ОБЩИЕ_ДАННЫЕ!L144*0.25,0) -> 0 | X16: 0 | Y16: 0 | Z16: 0 | AA16: 0 | AB16: 0 | AC16: 2026-01-21 | AD16: 2026-01-27 | AE16: 6 | AF16: РТП | AG16: ПФО | AH16: 0 | AI16: Трофимов Роман Олегович | AK16: +7 (980) 164-03-99 | AL16: =AM16 -> 0 | AM16: 0 | AN16: 0 | AO16: 0 | AP16: - | AQ16: 0 | AR16: 0 | AS16: 0 | AT16: 235601 | AU16: trofimov@tn.ru | AV16: 0 | AX16: 0 | AY16: 0 | AZ16: 0 | BA16: 0 | BB16: 0 | BC16: 0 | BD16: 0 | BE16: 0 | BF16: 0 | BG16: 0 | BH16: 0 | BI16: 0 | BJ16: ОЦО КП | BK16: =ОБЩИЕ_ДАННЫЕ!$C$217 -> 0 | BL16: 0 | BM16: 0 | BN16: 0 | BO16: http://nav.tn.ru/calculators/flat-roof/?object=TPK9B6AA33C67D3B696FB2FED3B2F383319
E17: 9-9075-МПККИТ-01.26 | F17: 303297 | G17: Проектирование строительных конструкция покрытия Цеха М10. АО Коломенский завод | H17: Московская область, г.Коломна, ул.Партизан, д.42 | I17: ЦФО | J17: Нет данных | K17: Новый расчет | L17: 1 | M17: 1 | N17: =COUNTIF(ОБЩИЕ_ДАННЫЕ!$J$142:$J$151,">0") -> 0 | O17: 4 | P17: =ОБЩИЕ_ДАННЫЕ!J145 -> 0 | Q17: =ОБЩИЕ_ДАННЫЕ!K145 -> 0 | R17: =IF(Q17=0,"Схемы Ветровых Зон",Прайс!F143) -> Схемы Ветровых Зон | S17: 0 | T17: 0 | U17: 0 | V17: =IF(AND(ОБЩИЕ_ДАННЫЕ!K145>0,ОБЩИЕ_ДАННЫЕ!M145>0),ОБЩИЕ_ДАННЫЕ!L145*0.25,0) -> 0 | W17: =IF(AND(ОБЩИЕ_ДАННЫЕ!K145>0,ОБЩИЕ_ДАННЫЕ!N145>0),ОБЩИЕ_ДАННЫЕ!L145*0.25,0) -> 0 | X17: 0 | Y17: 0 | Z17: 0 | AA17: 0 | AB17: 0 | AC17: 2026-01-21 | AD17: 2026-01-27 | AE17: 6 | AF17: РТП | AG17: ПФО | AH17: 0 | AI17: Трофимов Роман Олегович | AK17: +7 (980) 164-03-99 | AL17: 0 | AM17: 0 | AN17: 0 | AO17: 0 | AP17: - | AQ17: 0 | AR17: 0 | AS17: 0 | AT17: 235601 | AU17: trofimov@tn.ru | AV17: 0 | AX17: 0 | AY17: 0 | AZ17: 0 | BA17: 0 | BB17: 0 | BC17: 0 | BD17: 0 | BE17: 0 | BF17: 0 | BG17: 0 | BH17: 0 | BI17: 0 | BJ17: ОЦО КП | BK17: =ОБЩИЕ_ДАННЫЕ!$C$217 -> 0 | BL17: 0 | BM17: 0 | BN17: 0 | BO17: http://nav.tn.ru/calculators/flat-roof/?object=TPK9B6AA33C67D3B696FB2FED3B2F383319
E18: 9-9075-МПККИТ-01.26 | F18: 303297 | G18: Проектирование строительных конструкция покрытия Цеха М10. АО Коломенский завод | H18: Московская область, г.Коломна, ул.Партизан, д.42 | I18: ЦФО | J18: Нет данных | K18: Новый расчет | L18: 1 | M18: 1 | N18: =COUNTIF(ОБЩИЕ_ДАННЫЕ!$J$142:$J$151,">0") -> 0 | O18: 5 | P18: =ОБЩИЕ_ДАННЫЕ!J146 -> 0 | Q18: =ОБЩИЕ_ДАННЫЕ!K146 -> 0 | R18: =IF(Q18=0,"Схемы Ветровых Зон",Прайс!F143) -> Схемы Ветровых Зон | S18: 0 | T18: 0 | U18: 0 | V18: =IF(AND(ОБЩИЕ_ДАННЫЕ!K146>0,ОБЩИЕ_ДАННЫЕ!M146>0),ОБЩИЕ_ДАННЫЕ!L146*0.25,0) -> 0 | W18: =IF(AND(ОБЩИЕ_ДАННЫЕ!K146>0,ОБЩИЕ_ДАННЫЕ!N146>0),ОБЩИЕ_ДАННЫЕ!L146*0.25,0) -> 0 | X18: 0 | Y18: 0 | Z18: 0 | AA18: 0 | AB18: 0 | AC18: 2026-01-21 | AD18: 2026-01-27 | AE18: 6 | AF18: РТП | AG18: ПФО | AH18: 0 | AI18: Трофимов Роман Олегович | AK18: +7 (980) 164-03-99 | AL18: 0 | AM18: 0 | AN18: 0 | AO18: 0 | AP18: - | AQ18: 0 | AR18: 0 | AS18: 0 | AT18: 235601 | AU18: trofimov@tn.ru | AV18: 0 | AX18: 0 | AY18: 0 | AZ18: 0 | BA18: 0 | BB18: 0 | BC18: 0 | BD18: 0 | BE18: 0 | BF18: 0 | BG18: 0 | BH18: 0 | BI18: 0 | BJ18: ОЦО КП | BK18: =ОБЩИЕ_ДАННЫЕ!$C$217 -> 0 | BL18: 0 | BM18: 0 | BN18: 0 | BO18: http://nav.tn.ru/calculators/flat-roof/?object=TPK9B6AA33C67D3B696FB2FED3B2F383319
E19: 9-9075-МПККИТ-01.26 | F19: 303297 | G19: Проектирование строительных конструкция покрытия Цеха М10. АО Коломенский завод | H19: Московская область, г.Коломна, ул.Партизан, д.42 | I19: ЦФО | J19: Нет данных | K19: Новый расчет | L19: 1 | M19: 1 | N19: =COUNTIF(ОБЩИЕ_ДАННЫЕ!$J$142:$J$151,">0") -> 0 | O19: 6 | P19: =ОБЩИЕ_ДАННЫЕ!J147 -> 0 | Q19: =ОБЩИЕ_ДАННЫЕ!K147 -> 0 | R19: =IF(Q19=0,"Схемы Ветровых Зон",Прайс!F143) -> Схемы Ветровых Зон | S19: 0 | T19: 0 | U19: 0 | V19: =IF(AND(ОБЩИЕ_ДАННЫЕ!K147>0,ОБЩИЕ_ДАННЫЕ!M147>0),ОБЩИЕ_ДАННЫЕ!L147*0.25,0) -> 0 | W19: =IF(AND(ОБЩИЕ_ДАННЫЕ!K147>0,ОБЩИЕ_ДАННЫЕ!N147>0),ОБЩИЕ_ДАННЫЕ!L147*0.25,0) -> 0 | X19: 0 | Y19: 0 | Z19: 0 | AA19: 0 | AB19: 0 | AC19: 2026-01-21 | AD19: 2026-01-27 | AE19: 6 | AF19: РТП | AG19: ПФО | AH19: 0 | AI19: Трофимов Роман Олегович | AK19: +7 (980) 164-03-99 | AL19: 0 | AM19: 0 | AN19: 0 | AO19: 0 | AP19: - | AQ19: 0 | AR19: 0 | AS19: 0 | AT19: 235601 | AU19: trofimov@tn.ru | AV19: 0 | AX19: 0 | AY19: 0 | AZ19: 0 | BA19: 0 | BB19: 0 | BC19: 0 | BD19: 0 | BE19: 0 | BF19: 0 | BG19: 0 | BH19: 0 | BI19: 0 | BJ19: ОЦО КП | BK19: =ОБЩИЕ_ДАННЫЕ!$C$217 -> 0 | BL19: 0 | BM19: 0 | BN19: 0 | BO19: http://nav.tn.ru/calculators/flat-roof/?object=TPK9B6AA33C67D3B696FB2FED3B2F383319
E20: 9-9075-МПККИТ-01.26 | F20: 303297 | G20: Проектирование строительных конструкция покрытия Цеха М10. АО Коломенский завод | H20: Московская область, г.Коломна, ул.Партизан, д.42 | I20: ЦФО | J20: Нет данных | K20: Новый расчет | L20: 1 | M20: 1 | N20: =COUNTIF(ОБЩИЕ_ДАННЫЕ!$J$142:$J$151,">0") -> 0 | O20: 7 | P20: =ОБЩИЕ_ДАННЫЕ!J148 -> 0 | Q20: =ОБЩИЕ_ДАННЫЕ!K148 -> 0 | R20: =IF(Q20=0,"Схемы Ветровых Зон",Прайс!F143) -> Схемы Ветровых Зон | S20: 0 | T20: 0 | U20: 0 | V20: =IF(AND(ОБЩИЕ_ДАННЫЕ!K148>0,ОБЩИЕ_ДАННЫЕ!M148>0),ОБЩИЕ_ДАННЫЕ!L148*0.25,0) -> 0 | W20: =IF(AND(ОБЩИЕ_ДАННЫЕ!K148>0,ОБЩИЕ_ДАННЫЕ!N148>0),ОБЩИЕ_ДАННЫЕ!L148*0.25,0) -> 0 | X20: 0 | Y20: 0 | Z20: 0 | AA20: 0 | AB20: =SUM(S20:AA20) -> 0 | AC20: 2026-01-21 | AD20: 2026-01-27 | AE20: 6 | AF20: РТП | AG20: ПФО | AH20: 0 | AI20: Трофимов Роман Олегович | AK20: +7 (980) 164-03-99 | AL20: =AM20 -> 0 | AM20: 0 | AN20: =AM20 -> 0 | AO20: =AN20/0.87 -> 0 | AP20: - | AQ20: 0 | AR20: 0 | AS20: 0 | AT20: 235601 | AU20: trofimov@tn.ru | AV20: 0 | AX20: 0 | AY20: 0 | AZ20: 0 | BA20: 0 | BB20: 0 | BC20: 0 | BD20: 0 | BE20: 0 | BF20: 0 | BG20: 0 | BH20: 0 | BI20: 0 | BJ20: ОЦО КП | BK20: =ОБЩИЕ_ДАННЫЕ!$C$217 -> 0 | BL20: 0 | BM20: 0 | BN20: 0 | BO20: http://nav.tn.ru/calculators/flat-roof/?object=TPK9B6AA33C67D3B696FB2FED3B2F383319
E21: 9-9075-МПККИТ-01.26 | F21: 303297 | G21: Проектирование строительных конструкция покрытия Цеха М10. АО Коломенский завод | H21: Московская область, г.Коломна, ул.Партизан, д.42 | I21: ЦФО | J21: Нет данных | K21: Новый расчет | L21: 1 | M21: 1 | N21: =COUNTIF(ОБЩИЕ_ДАННЫЕ!$J$142:$J$151,">0") -> 0 | O21: 8 | P21: =ОБЩИЕ_ДАННЫЕ!J149 -> 0 | Q21: =ОБЩИЕ_ДАННЫЕ!K149 -> 0 | R21: =IF(Q21=0,"Схемы Ветровых Зон",Прайс!F143) -> Схемы Ветровых Зон | S21: 0 | T21: 0 | U21: 0 | V21: =IF(AND(ОБЩИЕ_ДАННЫЕ!K149>0,ОБЩИЕ_ДАННЫЕ!M149>0),ОБЩИЕ_ДАННЫЕ!L149*0.25,0) -> 0 | W21: =IF(AND(ОБЩИЕ_ДАННЫЕ!K149>0,ОБЩИЕ_ДАННЫЕ!N149>0),ОБЩИЕ_ДАННЫЕ!L149*0.25,0) -> 0 | X21: 0 | Y21: 0 | Z21: 0 | AA21: 0 | AB21: 0 | AC21: 2026-01-21 | AD21: 2026-01-27 | AE21: 6 | AF21: РТП | AG21: ПФО | AH21: 0 | AI21: Трофимов Роман Олегович | AK21: +7 (980) 164-03-99 | AL21: 0 | AM21: 0 | AN21: 0 | AO21: 0 | AP21: - | AQ21: 0 | AR21: 0 | AS21: 0 | AT21: 235601 | AU21: trofimov@tn.ru | AV21: 0 | AX21: 0 | AY21: 0 | AZ21: 0 | BA21: 0 | BB21: 0 | BC21: 0 | BD21: 0 | BE21: 0 | BF21: 0 | BG21: 0 | BH21: 0 | BI21: 0 | BJ21: ОЦО КП | BK21: =ОБЩИЕ_ДАННЫЕ!$C$217 -> 0 | BL21: 0 | BM21: 0 | BN21: 0 | BO21: http://nav.tn.ru/calculators/flat-roof/?object=TPK9B6AA33C67D3B696FB2FED3B2F383319
E22: 9-9075-МПККИТ-01.26 | F22: 303297 | G22: Проектирование строительных конструкция покрытия Цеха М10. АО Коломенский завод | H22: Московская область, г.Коломна, ул.Партизан, д.42 | I22: ЦФО | J22: Нет данных | K22: Новый расчет | L22: 1 | M22: 1 | N22: =COUNTIF(ОБЩИЕ_ДАННЫЕ!$J$142:$J$151,">0") -> 0 | O22: 9 | P22: =ОБЩИЕ_ДАННЫЕ!J150 -> 0 | Q22: =ОБЩИЕ_ДАННЫЕ!K150 -> 0 | R22: =IF(Q22=0,"Схемы Ветровых Зон",Прайс!F143) -> Схемы Ветровых Зон | S22: 0 | T22: 0 | U22: 0 | V22: =IF(AND(ОБЩИЕ_ДАННЫЕ!K150>0,ОБЩИЕ_ДАННЫЕ!M150>0),ОБЩИЕ_ДАННЫЕ!L150*0.25,0) -> 0 | W22: =IF(AND(ОБЩИЕ_ДАННЫЕ!K150>0,ОБЩИЕ_ДАННЫЕ!N150>0),ОБЩИЕ_ДАННЫЕ!L150*0.25,0) -> 0 | X22: 0 | Y22: 0 | Z22: 0 | AA22: 0 | AB22: 0 | AC22: 2026-01-21 | AD22: 2026-01-27 | AE22: 6 | AF22: РТП | AG22: ПФО | AH22: 0 | AI22: Трофимов Роман Олегович | AK22: +7 (980) 164-03-99 | AL22: 0 | AM22: 0 | AN22: 0 | AO22: 0 | AP22: - | AQ22: 0 | AR22: 0 | AS22: 0 | AT22: 235601 | AU22: trofimov@tn.ru | AV22: 0 | AX22: 0 | AY22: 0 | AZ22: 0 | BA22: 0 | BB22: 0 | BC22: 0 | BD22: 0 | BE22: 0 | BF22: 0 | BG22: 0 | BH22: 0 | BI22: 0 | BJ22: ОЦО КП | BK22: =ОБЩИЕ_ДАННЫЕ!$C$217 -> 0 | BL22: 0 | BM22: 0 | BN22: 0 | BO22: http://nav.tn.ru/calculators/flat-roof/?object=TPK9B6AA33C67D3B696FB2FED3B2F383319
E23: 9-9075-МПККИТ-01.26 | F23: 303297 | G23: Проектирование строительных конструкция покрытия Цеха М10. АО Коломенский завод | H23: Московская область, г.Коломна, ул.Партизан, д.42 | I23: ЦФО | J23: Нет данных | K23: Новый расчет | L23: 1 | M23: 1 | N23: =COUNTIF(ОБЩИЕ_ДАННЫЕ!$J$142:$J$151,">0") -> 0 | O23: 10 | P23: =ОБЩИЕ_ДАННЫЕ!J151 -> 0 | Q23: =ОБЩИЕ_ДАННЫЕ!K151 -> 0 | R23: =IF(Q23=0,"Схемы Ветровых Зон",Прайс!F143) -> Схемы Ветровых Зон | S23: 0 | T23: 0 | U23: 0 | V23: =IF(AND(ОБЩИЕ_ДАННЫЕ!K151>0,ОБЩИЕ_ДАННЫЕ!M151>0),ОБЩИЕ_ДАННЫЕ!L151*0.25,0) -> 0 | W23: =IF(AND(ОБЩИЕ_ДАННЫЕ!K151>0,ОБЩИЕ_ДАННЫЕ!N151>0),ОБЩИЕ_ДАННЫЕ!L151*0.25,0) -> 0 | X23: 0 | Y23: 0 | Z23: 0 | AA23: 0 | AB23: =SUM(S23:AA23) -> 0 | AC23: 2026-01-21 | AD23: 2026-01-27 | AE23: 6 | AF23: РТП | AG23: ПФО | AH23: 0 | AI23: Трофимов Роман Олегович | AK23: +7 (980) 164-03-99 | AL23: =AM23 -> 0 | AM23: 0 | AN23: =AM23 -> 0 | AO23: =AN23/0.87 -> 0 | AP23: - | AQ23: 0 | AR23: 0 | AS23: 0 | AT23: 235601 | AU23: trofimov@tn.ru | AV23: 0 | AX23: 0 | AY23: 0 | AZ23: 0 | BA23: 0 | BB23: 0 | BC23: 0 | BD23: 0 | BE23: 0 | BF23: 0 | BG23: 0 | BH23: 0 | BI23: 0 | BJ23: ОЦО КП | BK23: =ОБЩИЕ_ДАННЫЕ!$C$217 -> 0 | BL23: 0 | BM23: 0 | BN23: 0 | BO23: http://nav.tn.ru/calculators/flat-roof/?object=TPK9B6AA33C67D3B696FB2FED3B2F383319
E24: 9-9075-МПККИТ-01.26 | F24: 303297 | G24: Проектирование строительных конструкция покрытия Цеха М10. АО Коломенский завод | H24: Московская область, г.Коломна, ул.Партизан, д.42 | I24: ЦФО | J24: Нет данных | K24: Новый расчет | L24: 1 | M24: 1 | N24: =COUNTIF(ОБЩИЕ_ДАННЫЕ!$J$158:$J$167,">0") -> 0 | O24: 1 | P24: =ОБЩИЕ_ДАННЫЕ!J158 -> 0 | Q24: =ОБЩИЕ_ДАННЫЕ!K158 -> 0 | R24: =IF(Q24=0,"Раскладка ГИ",Прайс!F144) -> Раскладка ГИ | S24: 0 | T24: 0 | U24: 0 | V24: =IF(AND(ОБЩИЕ_ДАННЫЕ!K158>0,ОБЩИЕ_ДАННЫЕ!M158>0),ОБЩИЕ_ДАННЫЕ!L158*0.25,0) -> 0 | W24: =IF(AND(ОБЩИЕ_ДАННЫЕ!K158>0,ОБЩИЕ_ДАННЫЕ!N158>0),ОБЩИЕ_ДАННЫЕ!L158*0.25,0) -> 0 | X24: 0 | Y24: 0 | Z24: 0 | AA24: 0 | AB24: =SUM(S24:AA24) -> 0 | AC24: 2026-01-21 | AD24: 2026-01-27 | AE24: 6 | AF24: РТП | AG24: ПФО | AH24: 0 | AI24: Трофимов Роман Олегович | AK24: +7 (980) 164-03-99 | AL24: =AM24 -> 0 | AM24: 0 | AN24: =AM24 -> 0 | AO24: =AN24/0.87 -> 0 | AP24: - | AQ24: 0 | AR24: 0 | AS24: 0 | AT24: 235601 | AU24: trofimov@tn.ru | AV24: 0 | AX24: 0 | AY24: 0 | AZ24: 0 | BA24: 0 | BB24: 0 | BC24: 0 | BD24: 0 | BE24: 0 | BF24: 0 | BG24: 0 | BH24: 0 | BI24: 0 | BJ24: ОЦО КП | BK24: =ОБЩИЕ_ДАННЫЕ!$C$217 -> 0 | BL24: 0 | BM24: 0 | BN24: 0 | BO24: http://nav.tn.ru/calculators/flat-roof/?object=TPK9B6AA33C67D3B696FB2FED3B2F383319
E25: 9-9075-МПККИТ-01.26 | F25: 303297 | G25: Проектирование строительных конструкция покрытия Цеха М10. АО Коломенский завод | H25: Московская область, г.Коломна, ул.Партизан, д.42 | I25: ЦФО | J25: Нет данных | K25: Новый расчет | L25: 1 | M25: 1 | N25: =COUNTIF(ОБЩИЕ_ДАННЫЕ!$J$158:$J$167,">0") -> 0 | O25: 2 | P25: =ОБЩИЕ_ДАННЫЕ!J159 -> 0 | Q25: =ОБЩИЕ_ДАННЫЕ!K159 -> 0 | R25: =IF(Q25=0,"Раскладка ГИ",Прайс!F144) -> Раскладка ГИ | S25: 0 | T25: 0 | U25: 0 | V25: =IF(AND(ОБЩИЕ_ДАННЫЕ!K159>0,ОБЩИЕ_ДАННЫЕ!M159>0),ОБЩИЕ_ДАННЫЕ!L159*0.25,0) -> 0 | W25: =IF(AND(ОБЩИЕ_ДАННЫЕ!K159>0,ОБЩИЕ_ДАННЫЕ!N159>0),ОБЩИЕ_ДАННЫЕ!L159*0.25,0) -> 0 | X25: 0 | Y25: 0 | Z25: 0 | AA25: 0 | AB25: =SUM(S25:AA25) -> 0 | AC25: 2026-01-21 | AD25: 2026-01-27 | AE25: 6 | AF25: РТП | AG25: ПФО | AH25: 0 | AI25: Трофимов Роман Олегович | AK25: +7 (980) 164-03-99 | AL25: =AM25 -> 0 | AM25: 0 | AN25: =AM25 -> 0 | AO25: =AN25/0.87 -> 0 | AP25: - | AQ25: 0 | AR25: 0 | AS25: 0 | AT25: 235601 | AU25: trofimov@tn.ru | AV25: 0 | AX25: 0 | AY25: 0 | AZ25: 0 | BA25: 0 | BB25: 0 | BC25: 0 | BD25: 0 | BE25: 0 | BF25: 0 | BG25: 0 | BH25: 0 | BI25: 0 | BJ25: ОЦО КП | BK25: =ОБЩИЕ_ДАННЫЕ!$C$217 -> 0 | BL25: 0 | BM25: 0 | BN25: 0 | BO25: http://nav.tn.ru/calculators/flat-roof/?object=TPK9B6AA33C67D3B696FB2FED3B2F383319
E26: 9-9075-МПККИТ-01.26 | F26: 303297 | G26: Проектирование строительных конструкция покрытия Цеха М10. АО Коломенский завод | H26: Московская область, г.Коломна, ул.Партизан, д.42 | I26: ЦФО | J26: Нет данных | K26: Новый расчет | L26: 1 | M26: 1 | N26: =COUNTIF(ОБЩИЕ_ДАННЫЕ!$J$158:$J$167,">0") -> 0 | O26: 3 | P26: =ОБЩИЕ_ДАННЫЕ!J160 -> 0 | Q26: =ОБЩИЕ_ДАННЫЕ!K160 -> 0 | R26: =IF(Q26=0,"Раскладка ГИ",Прайс!F144) -> Раскладка ГИ | S26: 0 | T26: 0 | U26: 0 | V26: =IF(AND(ОБЩИЕ_ДАННЫЕ!K160>0,ОБЩИЕ_ДАННЫЕ!M160>0),ОБЩИЕ_ДАННЫЕ!L160*0.25,0) -> 0 | W26: =IF(AND(ОБЩИЕ_ДАННЫЕ!K160>0,ОБЩИЕ_ДАННЫЕ!N160>0),ОБЩИЕ_ДАННЫЕ!L160*0.25,0) -> 0 | X26: 0 | Y26: 0 | Z26: 0 | AA26: 0 | AB26: 0 | AC26: 2026-01-21 | AD26: 2026-01-27 | AE26: 6 | AF26: РТП | AG26: ПФО | AH26: 0 | AI26: Трофимов Роман Олегович | AK26: +7 (980) 164-03-99 | AL26: 0 | AM26: 0 | AN26: 0 | AO26: 0 | AP26: - | AQ26: 0 | AR26: 0 | AS26: 0 | AT26: 235601 | AU26: trofimov@tn.ru | AV26: 0 | AX26: 0 | AY26: 0 | AZ26: 0 | BA26: 0 | BB26: 0 | BC26: 0 | BD26: 0 | BE26: 0 | BF26: 0 | BG26: 0 | BH26: 0 | BI26: 0 | BJ26: ОЦО КП | BK26: =ОБЩИЕ_ДАННЫЕ!$C$217 -> 0 | BL26: 0 | BM26: 0 | BN26: 0 | BO26: http://nav.tn.ru/calculators/flat-roof/?object=TPK9B6AA33C67D3B696FB2FED3B2F383319
E27: 9-9075-МПККИТ-01.26 | F27: 303297 | G27: Проектирование строительных конструкция покрытия Цеха М10. АО Коломенский завод | H27: Московская область, г.Коломна, ул.Партизан, д.42 | I27: ЦФО | J27: Нет данных | K27: Новый расчет | L27: 1 | M27: 1 | N27: =COUNTIF(ОБЩИЕ_ДАННЫЕ!$J$158:$J$167,">0") -> 0 | O27: 4 | P27: =ОБЩИЕ_ДАННЫЕ!J161 -> 0 | Q27: =ОБЩИЕ_ДАННЫЕ!K161 -> 0 | R27: =IF(Q27=0,"Раскладка ГИ",Прайс!F144) -> Раскладка ГИ | S27: 0 | T27: 0 | U27: 0 | V27: =IF(AND(ОБЩИЕ_ДАННЫЕ!K161>0,ОБЩИЕ_ДАННЫЕ!M161>0),ОБЩИЕ_ДАННЫЕ!L161*0.25,0) -> 0 | W27: =IF(AND(ОБЩИЕ_ДАННЫЕ!K161>0,ОБЩИЕ_ДАННЫЕ!N161>0),ОБЩИЕ_ДАННЫЕ!L161*0.25,0) -> 0 | X27: 0 | Y27: 0 | Z27: 0 | AA27: 0 | AB27: 0 | AC27: 2026-01-21 | AD27: 2026-01-27 | AE27: 6 | AF27: РТП | AG27: ПФО | AH27: 0 | AI27: Трофимов Роман Олегович | AK27: +7 (980) 164-03-99 | AL27: 0 | AM27: 0 | AN27: 0 | AO27: 0 | AP27: - | AQ27: 0 | AR27: 0 | AS27: 0 | AT27: 235601 | AU27: trofimov@tn.ru | AV27: 0 | AX27: 0 | AY27: 0 | AZ27: 0 | BA27: 0 | BB27: 0 | BC27: 0 | BD27: 0 | BE27: 0 | BF27: 0 | BG27: 0 | BH27: 0 | BI27: 0 | BJ27: ОЦО КП | BK27: =ОБЩИЕ_ДАННЫЕ!$C$217 -> 0 | BL27: 0 | BM27: 0 | BN27: 0 | BO27: http://nav.tn.ru/calculators/flat-roof/?object=TPK9B6AA33C67D3B696FB2FED3B2F383319
E28: 9-9075-МПККИТ-01.26 | F28: 303297 | G28: Проектирование строительных конструкция покрытия Цеха М10. АО Коломенский завод | H28: Московская область, г.Коломна, ул.Партизан, д.42 | I28: ЦФО | J28: Нет данных | K28: Новый расчет | L28: 1 | M28: 1 | N28: =COUNTIF(ОБЩИЕ_ДАННЫЕ!$J$158:$J$167,">0") -> 0 | O28: 5 | P28: =ОБЩИЕ_ДАННЫЕ!J162 -> 0 | Q28: =ОБЩИЕ_ДАННЫЕ!K162 -> 0 | R28: =IF(Q28=0,"Раскладка ГИ",Прайс!F144) -> Раскладка ГИ | S28: 0 | T28: 0 | U28: 0 | V28: =IF(AND(ОБЩИЕ_ДАННЫЕ!K162>0,ОБЩИЕ_ДАННЫЕ!M162>0),ОБЩИЕ_ДАННЫЕ!L162*0.25,0) -> 0 | W28: =IF(AND(ОБЩИЕ_ДАННЫЕ!K162>0,ОБЩИЕ_ДАННЫЕ!N162>0),ОБЩИЕ_ДАННЫЕ!L162*0.25,0) -> 0 | X28: 0 | Y28: 0 | Z28: 0 | AA28: 0 | AB28: 0 | AC28: 2026-01-21 | AD28: 2026-01-27 | AE28: 6 | AF28: РТП | AG28: ПФО | AH28: 0 | AI28: Трофимов Роман Олегович | AK28: +7 (980) 164-03-99 | AL28: 0 | AM28: 0 | AN28: 0 | AO28: 0 | AP28: - | AQ28: 0 | AR28: 0 | AS28: 0 | AT28: 235601 | AU28: trofimov@tn.ru | AV28: 0 | AX28: 0 | AY28: 0 | AZ28: 0 | BA28: 0 | BB28: 0 | BC28: 0 | BD28: 0 | BE28: 0 | BF28: 0 | BG28: 0 | BH28: 0 | BI28: 0 | BJ28: ОЦО КП | BK28: =ОБЩИЕ_ДАННЫЕ!$C$217 -> 0 | BL28: 0 | BM28: 0 | BN28: 0 | BO28: http://nav.tn.ru/calculators/flat-roof/?object=TPK9B6AA33C67D3B696FB2FED3B2F383319
E29: 9-9075-МПККИТ-01.26 | F29: 303297 | G29: Проектирование строительных конструкция покрытия Цеха М10. АО Коломенский завод | H29: Московская область, г.Коломна, ул.Партизан, д.42 | I29: ЦФО | J29: Нет данных | K29: Новый расчет | L29: 1 | M29: 1 | N29: =COUNTIF(ОБЩИЕ_ДАННЫЕ!$J$158:$J$167,">0") -> 0 | O29: 6 | P29: =ОБЩИЕ_ДАННЫЕ!J163 -> 0 | Q29: =ОБЩИЕ_ДАННЫЕ!K163 -> 0 | R29: =IF(Q29=0,"Раскладка ГИ",Прайс!F144) -> Раскладка ГИ | S29: 0 | T29: 0 | U29: 0 | V29: =IF(AND(ОБЩИЕ_ДАННЫЕ!K163>0,ОБЩИЕ_ДАННЫЕ!M163>0),ОБЩИЕ_ДАННЫЕ!L163*0.25,0) -> 0 | W29: =IF(AND(ОБЩИЕ_ДАННЫЕ!K163>0,ОБЩИЕ_ДАННЫЕ!N163>0),ОБЩИЕ_ДАННЫЕ!L163*0.25,0) -> 0 | X29: 0 | Y29: 0 | Z29: 0 | AA29: 0 | AB29: 0 | AC29: 2026-01-21 | AD29: 2026-01-27 | AE29: 6 | AF29: РТП | AG29: ПФО | AH29: 0 | AI29: Трофимов Роман Олегович | AK29: +7 (980) 164-03-99 | AL29: 0 | AM29: 0 | AN29: 0 | AO29: 0 | AP29: - | AQ29: 0 | AR29: 0 | AS29: 0 | AT29: 235601 | AU29: trofimov@tn.ru | AV29: 0 | AX29: 0 | AY29: 0 | AZ29: 0 | BA29: 0 | BB29: 0 | BC29: 0 | BD29: 0 | BE29: 0 | BF29: 0 | BG29: 0 | BH29: 0 | BI29: 0 | BJ29: ОЦО КП | BK29: =ОБЩИЕ_ДАННЫЕ!$C$217 -> 0 | BL29: 0 | BM29: 0 | BN29: 0 | BO29: http://nav.tn.ru/calculators/flat-roof/?object=TPK9B6AA33C67D3B696FB2FED3B2F383319
E30: 9-9075-МПККИТ-01.26 | F30: 303297 | G30: Проектирование строительных конструкция покрытия Цеха М10. АО Коломенский завод | H30: Московская область, г.Коломна, ул.Партизан, д.42 | I30: ЦФО | J30: Нет данных | K30: Новый расчет | L30: 1 | M30: 1 | N30: =COUNTIF(ОБЩИЕ_ДАННЫЕ!$J$158:$J$167,">0") -> 0 | O30: 7 | P30: =ОБЩИЕ_ДАННЫЕ!J164 -> 0 | Q30: =ОБЩИЕ_ДАННЫЕ!K164 -> 0 | R30: =IF(Q30=0,"Раскладка ГИ",Прайс!F144) -> Раскладка ГИ | S30: 0 | T30: 0 | U30: 0 | V30: =IF(AND(ОБЩИЕ_ДАННЫЕ!K164>0,ОБЩИЕ_ДАННЫЕ!M164>0),ОБЩИЕ_ДАННЫЕ!L164*0.25,0) -> 0 | W30: =IF(AND(ОБЩИЕ_ДАННЫЕ!K164>0,ОБЩИЕ_ДАННЫЕ!N164>0),ОБЩИЕ_ДАННЫЕ!L164*0.25,0) -> 0 | X30: 0 | Y30: 0 | Z30: 0 | AA30: 0 | AB30: 0 | AC30: 2026-01-21 | AD30: 2026-01-27 | AE30: 6 | AF30: РТП | AG30: ПФО | AH30: 0 | AI30: Трофимов Роман Олегович | AK30: +7 (980) 164-03-99 | AL30: 0 | AM30: 0 | AN30: 0 | AO30: 0 | AP30: - | AQ30: 0 | AR30: 0 | AS30: 0 | AT30: 235601 | AU30: trofimov@tn.ru | AV30: 0 | AX30: 0 | AY30: 0 | AZ30: 0 | BA30: 0 | BB30: 0 | BC30: 0 | BD30: 0 | BE30: 0 | BF30: 0 | BG30: 0 | BH30: 0 | BI30: 0 | BJ30: ОЦО КП | BK30: =ОБЩИЕ_ДАННЫЕ!$C$217 -> 0 | BL30: 0 | BM30: 0 | BN30: 0 | BO30: http://nav.tn.ru/calculators/flat-roof/?object=TPK9B6AA33C67D3B696FB2FED3B2F383319
E31: 9-9075-МПККИТ-01.26 | F31: 303297 | G31: Проектирование строительных конструкция покрытия Цеха М10. АО Коломенский завод | H31: Московская область, г.Коломна, ул.Партизан, д.42 | I31: ЦФО | J31: Нет данных | K31: Новый расчет | L31: 1 | M31: 1 | N31: =COUNTIF(ОБЩИЕ_ДАННЫЕ!$J$158:$J$167,">0") -> 0 | O31: 8 | P31: =ОБЩИЕ_ДАННЫЕ!J165 -> 0 | Q31: =ОБЩИЕ_ДАННЫЕ!K165 -> 0 | R31: =IF(Q31=0,"Раскладка ГИ",Прайс!F144) -> Раскладка ГИ | S31: 0 | T31: 0 | U31: 0 | V31: =IF(AND(ОБЩИЕ_ДАННЫЕ!K165>0,ОБЩИЕ_ДАННЫЕ!M165>0),ОБЩИЕ_ДАННЫЕ!L165*0.25,0) -> 0 | W31: =IF(AND(ОБЩИЕ_ДАННЫЕ!K165>0,ОБЩИЕ_ДАННЫЕ!N165>0),ОБЩИЕ_ДАННЫЕ!L165*0.25,0) -> 0 | X31: 0 | Y31: 0 | Z31: 0 | AA31: 0 | AB31: 0 | AC31: 2026-01-21 | AD31: 2026-01-27 | AE31: 6 | AF31: РТП | AG31: ПФО | AH31: 0 | AI31: Трофимов Роман Олегович | AK31: +7 (980) 164-03-99 | AL31: 0 | AM31: 0 | AN31: 0 | AO31: 0 | AP31: - | AQ31: 0 | AR31: 0 | AS31: 0 | AT31: 235601 | AU31: trofimov@tn.ru | AV31: 0 | AX31: 0 | AY31: 0 | AZ31: 0 | BA31: 0 | BB31: 0 | BC31: 0 | BD31: 0 | BE31: 0 | BF31: 0 | BG31: 0 | BH31: 0 | BI31: 0 | BJ31: ОЦО КП | BK31: =ОБЩИЕ_ДАННЫЕ!$C$217 -> 0 | BL31: 0 | BM31: 0 | BN31: 0 | BO31: http://nav.tn.ru/calculators/flat-roof/?object=TPK9B6AA33C67D3B696FB2FED3B2F383319
E32: 9-9075-МПККИТ-01.26 | F32: 303297 | G32: Проектирование строительных конструкция покрытия Цеха М10. АО Коломенский завод | H32: Московская область, г.Коломна, ул.Партизан, д.42 | I32: ЦФО | J32: Нет данных | K32: Новый расчет | L32: 1 | M32: 1 | N32: =COUNTIF(ОБЩИЕ_ДАННЫЕ!$J$158:$J$167,">0") -> 0 | O32: 9 | P32: =ОБЩИЕ_ДАННЫЕ!J166 -> 0 | Q32: =ОБЩИЕ_ДАННЫЕ!K166 -> 0 | R32: =IF(Q32=0,"Раскладка ГИ",Прайс!F144) -> Раскладка ГИ | S32: 0 | T32: 0 | U32: 0 | V32: =IF(AND(ОБЩИЕ_ДАННЫЕ!K166>0,ОБЩИЕ_ДАННЫЕ!M166>0),ОБЩИЕ_ДАННЫЕ!L166*0.25,0) -> 0 | W32: =IF(AND(ОБЩИЕ_ДАННЫЕ!K166>0,ОБЩИЕ_ДАННЫЕ!N166>0),ОБЩИЕ_ДАННЫЕ!L166*0.25,0) -> 0 | X32: 0 | Y32: 0 | Z32: 0 | AA32: 0 | AB32: 0 | AC32: 2026-01-21 | AD32: 2026-01-27 | AE32: 6 | AF32: РТП | AG32: ПФО | AH32: 0 | AI32: Трофимов Роман Олегович | AK32: +7 (980) 164-03-99 | AL32: 0 | AM32: 0 | AN32: 0 | AO32: 0 | AP32: - | AQ32: 0 | AR32: 0 | AS32: 0 | AT32: 235601 | AU32: trofimov@tn.ru | AV32: 0 | AX32: 0 | AY32: 0 | AZ32: 0 | BA32: 0 | BB32: 0 | BC32: 0 | BD32: 0 | BE32: 0 | BF32: 0 | BG32: 0 | BH32: 0 | BI32: 0 | BJ32: ОЦО КП | BK32: =ОБЩИЕ_ДАННЫЕ!$C$217 -> 0 | BL32: 0 | BM32: 0 | BN32: 0 | BO32: http://nav.tn.ru/calculators/flat-roof/?object=TPK9B6AA33C67D3B696FB2FED3B2F383319
E33: 9-9075-МПККИТ-01.26 | F33: 303297 | G33: Проектирование строительных конструкция покрытия Цеха М10. АО Коломенский завод | H33: Московская область, г.Коломна, ул.Партизан, д.42 | I33: ЦФО | J33: Нет данных | K33: Новый расчет | L33: 1 | M33: 1 | N33: =COUNTIF(ОБЩИЕ_ДАННЫЕ!$J$158:$J$167,">0") -> 0 | O33: 10 | P33: =ОБЩИЕ_ДАННЫЕ!J167 -> 0 | Q33: =ОБЩИЕ_ДАННЫЕ!K167 -> 0 | R33: =IF(Q33=0,"Раскладка ГИ",Прайс!F144) -> Раскладка ГИ | S33: 0 | T33: 0 | U33: 0 | V33: =IF(AND(ОБЩИЕ_ДАННЫЕ!K167>0,ОБЩИЕ_ДАННЫЕ!M167>0),ОБЩИЕ_ДАННЫЕ!L167*0.25,0) -> 0 | W33: =IF(AND(ОБЩИЕ_ДАННЫЕ!K167>0,ОБЩИЕ_ДАННЫЕ!N167>0),ОБЩИЕ_ДАННЫЕ!L167*0.25,0) -> 0 | X33: 0 | Y33: 0 | Z33: 0 | AA33: 0 | AB33: =SUM(S33:AA33) -> 0 | AC33: 2026-01-21 | AD33: 2026-01-27 | AE33: 6 | AF33: РТП | AG33: ПФО | AH33: 0 | AI33: Трофимов Роман Олегович | AK33: +7 (980) 164-03-99 | AL33: =AM33 -> 0 | AM33: 0 | AN33: =AM33 -> 0 | AO33: =AN33/0.87 -> 0 | AP33: - | AQ33: 0 | AR33: 0 | AS33: 0 | AT33: 235601 | AU33: trofimov@tn.ru | AV33: 0 | AX33: 0 | AY33: 0 | AZ33: 0 | BA33: 0 | BB33: 0 | BC33: 0 | BD33: 0 | BE33: 0 | BF33: 0 | BG33: 0 | BH33: 0 | BI33: 0 | BJ33: ОЦО КП | BK33: =ОБЩИЕ_ДАННЫЕ!$C$217 -> 0 | BL33: 0 | BM33: 0 | BN33: 0 | BO33: http://nav.tn.ru/calculators/flat-roof/?object=TPK9B6AA33C67D3B696FB2FED3B2F383319
E34: 9-9075-МПККИТ-01.26 | F34: 303297 | G34: Проектирование строительных конструкция покрытия Цеха М10. АО Коломенский завод | H34: Московская область, г.Коломна, ул.Партизан, д.42 | I34: ЦФО | J34: Нет данных | K34: Новый расчет | L34: 1 | M34: 1 | N34: 0 | O34: 0 | P34: =$P$3+$P$4 -> 24170 | Q34: 0 | R34: МАТЕРИАЛЫ | S34: =INDEX(Деление_СБЕ[#Data],MATCH("Материалы_основные",Деление_СБЕ[Расчет материалов],0),MATCH("КВ",Деление_СБЕ[#Headers],0)) -> 3321.22728 | T34: =INDEX(Деление_СБЕ[#Data],MATCH("Материалы_основные",Деление_СБЕ[Расчет материалов],0),MATCH("XPS",Деление_СБЕ[#Headers],0)) -> 0 | U34: =INDEX(Деление_СБЕ[#Data],MATCH("Материалы_основные",Деление_СБЕ[Расчет материалов],0),MATCH("PIR",Деление_СБЕ[#Headers],0)) -> 202.91 | V34: =INDEX(Деление_СБЕ[#Data],MATCH("Материалы_основные",Деление_СБЕ[Расчет материалов],0),MATCH("ПМ",Деление_СБЕ[#Headers],0)) -> 0 | W34: =INDEX(Деление_СБЕ[#Data],MATCH("Материалы_основные",Деление_СБЕ[Расчет материалов],0),MATCH("РМ",Деление_СБЕ[#Headers],0)) -> 65614.09284 | X34: =INDEX(Деление_СБЕ[#Data],MATCH("Материалы_основные",Деление_СБЕ[Расчет материалов],0),MATCH("МиСХ",Деление_СБЕ[#Headers],0)) -> 5759.47 | Y34: =INDEX(Деление_СБЕ[#Data],MATCH("Материалы_основные",Деление_СБЕ[Расчет материалов],0),MATCH("Плантер",Деление_СБЕ[#Headers],0)) -> 0 | Z34: 0 | AA34: 0 | AB34: =IF(SUM(S34:AA34)=0,0,1) -> 1 | AC34: 2026-01-21 | AD34: 2026-01-27 | AE34: 6 | AF34: РТП | AG34: ПФО | AH34: 0 | AI34: Трофимов Роман Олегович | AK34: +7 (980) 164-03-99 | AL34: 0 | AM34: основные | AN34: 0 | AO34: 0 | AP34: - | AQ34: 0 | AR34: 0 | AS34: 0 | AT34: 235601 | AU34: trofimov@tn.ru | AV34: 0 | AX34: 0 | AY34: 0 | AZ34: 0 | BA34: 0 | BB34: 0 | BC34: 0 | BD34: 0 | BE34: 0 | BF34: 0 | BG34: 0 | BH34: 0 | BI34: 0 | BJ34: ОЦО КП | BK34: =ОБЩИЕ_ДАННЫЕ!$C$217 -> 0 | BL34: 0 | BM34: 0 | BN34: 0 | BO34: http://nav.tn.ru/calculators/flat-roof/?object=TPK9B6AA33C67D3B696FB2FED3B2F383319
E35: 9-9075-МПККИТ-01.26 | F35: 303297 | G35: Проектирование строительных конструкция покрытия Цеха М10. АО Коломенский завод | H35: Московская область, г.Коломна, ул.Партизан, д.42 | I35: ЦФО | J35: Нет данных | K35: Новый расчет | L35: 1 | M35: 1 | N35: 0 | O35: 0 | P35: 24170 | Q35: 0 | R35: МАТЕРИАЛЫ | S35: 0 | T35: 0 | U35: 0 | V35: 0 | W35: =INDEX(Деление_СБЕ[#Data],MATCH("материалы_паробарьер",Деление_СБЕ[Расчет материалов],0),MATCH("РМ",Деление_СБЕ[#Headers],0)) -> 30694.0557 | X35: 0 | Y35: 0 | Z35: 0 | AA35: 0 | AB35: =IF(SUM(S35:AA35)=0,0,1) -> 1 | AC35: 2026-01-21 | AD35: 2026-01-27 | AE35: 6 | AF35: РТП | AG35: ПФО | AH35: 0 | AI35: Трофимов Роман Олегович | AK35: +7 (980) 164-03-99 | AL35: 0 | AM35: паробарьер | AN35: 0 | AO35: 0 | AP35: - | AQ35: 0 | AR35: 0 | AS35: 0 | AT35: 235601 | AU35: trofimov@tn.ru | AV35: 0 | AX35: 0 | AY35: 0 | AZ35: 0 | BA35: 0 | BB35: 0 | BC35: 0 | BD35: 0 | BE35: 0 | BF35: 0 | BG35: 0 | BH35: 0 | BI35: 0 | BJ35: ОЦО КП | BK35: =ОБЩИЕ_ДАННЫЕ!$C$217 -> 0 | BL35: 0 | BM35: 0 | BN35: 0 | BO35: http://nav.tn.ru/calculators/flat-roof/?object=TPK9B6AA33C67D3B696FB2FED3B2F383319
E36: 9-9075-МПККИТ-01.26 | F36: 303297 | G36: Проектирование строительных конструкция покрытия Цеха М10. АО Коломенский завод | H36: Московская область, г.Коломна, ул.Партизан, д.42 | I36: ЦФО | J36: Нет данных | K36: Новый расчет | L36: 1 | M36: 1 | N36: 0 | O36: 0 | P36: 24170 | Q36: 0 | R36: МАТЕРИАЛЫ | S36: 0 | T36: 0 | U36: 0 | V36: 0 | W36: =INDEX(Деление_СБЕ[#Data],MATCH("материалы_фикс и соло",Деление_СБЕ[Расчет материалов],0),MATCH("РМ",Деление_СБЕ[#Headers],0)) -> 0 | X36: 0 | Y36: 0 | Z36: 0 | AA36: 0 | AB36: =IF(SUM(S36:AA36)=0,0,1) -> 0 | AC36: 2026-01-21 | AD36: 2026-01-27 | AE36: 6 | AF36: РТП | AG36: ПФО | AH36: 0 | AI36: Трофимов Роман Олегович | AK36: +7 (980) 164-03-99 | AL36: 0 | AM36: фикс и соло | AN36: 0 | AO36: 0 | AP36: - | AQ36: 0 | AR36: 0 | AS36: 0 | AT36: 235601 | AU36: trofimov@tn.ru | AV36: 0 | AX36: 0 | AY36: 0 | AZ36: 0 | BA36: 0 | BB36: 0 | BC36: 0 | BD36: 0 | BE36: 0 | BF36: 0 | BG36: 0 | BH36: 0 | BI36: 0 | BJ36: ОЦО КП | BK36: =ОБЩИЕ_ДАННЫЕ!$C$217 -> 0 | BL36: 0 | BM36: 0 | BN36: 0 | BO36: http://nav.tn.ru/calculators/flat-roof/?object=TPK9B6AA33C67D3B696FB2FED3B2F383319
E37: 9-9075-МПККИТ-01.26 | F37: 303297 | G37: Проектирование строительных конструкция покрытия Цеха М10. АО Коломенский завод | H37: Московская область, г.Коломна, ул.Партизан, д.42 | I37: ЦФО | J37: Нет данных | K37: Новый расчет | L37: 1 | M37: 1 | N37: 0 | O37: 0 | P37: 24170 | Q37: 0 | R37: МАТЕРИАЛЫ | S37: =INDEX(Деление_СБЕ[#Data],MATCH("Клины",Деление_СБЕ[Расчет материалов],0),MATCH("КВ",Деление_СБЕ[#Headers],0)) -> 285.9372 | T37: =INDEX(Деление_СБЕ[#Data],MATCH("Клины",Деление_СБЕ[Расчет материалов],0),MATCH("XPS",Деление_СБЕ[#Headers],0)) -> 0 | U37: =INDEX(Деление_СБЕ[#Data],MATCH("Клины",Деление_СБЕ[Расчет материалов],0),MATCH("PIR",Деление_СБЕ[#Headers],0)) -> 0 | V37: 0 | W37: 0 | X37: 0 | Y37: 0 | Z37: 0 | AA37: 0 | AB37: =IF(SUM(S37:AA37)=0,0,1) -> 1 | AC37: 2026-01-21 | AD37: 2026-01-27 | AE37: 6 | AF37: РТП | AG37: ПФО | AH37: 0 | AI37: Трофимов Роман Олегович | AK37: +7 (980) 164-03-99 | AL37: 0 | AM37: клины | AN37: 0 | AO37: 0 | AP37: - | AQ37: 0 | AR37: 0 | AS37: 0 | AT37: 235601 | AU37: trofimov@tn.ru | AV37: 0 | AX37: 0 | AY37: 0 | AZ37: 0 | BA37: 0 | BB37: 0 | BC37: 0 | BD37: 0 | BE37: 0 | BF37: 0 | BG37: 0 | BH37: 0 | BI37: 0 | BJ37: ОЦО КП | BK37: =ОБЩИЕ_ДАННЫЕ!$C$217 -> 0 | BL37: 0 | BM37: 0 | BN37: 0 | BO37: http://nav.tn.ru/calculators/flat-roof/?object=TPK9B6AA33C67D3B696FB2FED3B2F383319
E38: 9-9075-МПККИТ-01.26 | F38: 303297 | G38: Проектирование строительных конструкция покрытия Цеха М10. АО Коломенский завод | H38: Московская область, г.Коломна, ул.Партизан, д.42 | I38: ЦФО | J38: Нет данных | K38: Новый расчет | L38: 1 | M38: 1 | N38: 0 | O38: 0 | P38: 24170 | Q38: 0 | R38: МАТЕРИАЛЫ | S38: =INDEX(Деление_СБЕ[#Data],MATCH("крепеж",Деление_СБЕ[Расчет материалов],0),MATCH("КВ",Деление_СБЕ[#Headers],0)) -> 64020 | T38: =INDEX(Деление_СБЕ[#Data],MATCH("крепеж",Деление_СБЕ[Расчет материалов],0),MATCH("XPS",Деление_СБЕ[#Headers],0)) -> 0 | U38: 0 | V38: 0 | W38: 0 | X38: 0 | Y38: 0 | Z38: 0 | AA38: 0 | AB38: =IF(SUM(S38:AA38)=0,0,1) -> 1 | AC38: 2026-01-21 | AD38: 2026-01-27 | AE38: =IFERROR(AD38-AC38,0) -> 6 | AF38: РТП | AG38: =AG37 -> ПФО | AH38: 0 | AI38: Трофимов Роман Олегович | AK38: +7 (980) 164-03-99 | AL38: 0 | AM38: крепеж | AN38: 0 | AO38: 0 | AP38: - | AQ38: 0 | AR38: 0 | AS38: 0 | AT38: 235601 | AU38: trofimov@tn.ru | AV38: 0 | AX38: 0 | AY38: 0 | AZ38: 0 | BA38: 0 | BB38: 0 | BC38: 0 | BD38: 0 | BE38: 0 | BF38: 0 | BG38: 0 | BH38: 0 | BI38: 0 | BJ38: ОЦО КП | BK38: =ОБЩИЕ_ДАННЫЕ!$C$217 -> 0 | BL38: 0 | BM38: 0 | BN38: 0 | BO38: http://nav.tn.ru/calculators/flat-roof/?object=TPK9B6AA33C67D3B696FB2FED3B2F383319
E39: 9-9075-МПККИТ-01.26 | F39: 303297 | G39: Проектирование строительных конструкция покрытия Цеха М10. АО Коломенский завод | H39: Московская область, г.Коломна, ул.Партизан, д.42 | I39: ЦФО | J39: Нет данных | K39: Новый расчет | L39: 1 | M39: 1 | N39: 0 | O39: 0 | P39: 24170 | Q39: 0 | R39: Система | S39: 0 | T39: 0 | U39: 0 | V39: 0 | W39: 0 | X39: 0 | Y39: 0 | Z39: 0 | AA39: 0 | AB39: =IF((COUNTIF(AY39:BH39,"<>0")>0),1,0) -> 1 | AC39: 2026-01-21 | AD39: 2026-01-27 | AE39: =IFERROR(AD39-AC39,0) -> 6 | AF39: РТП | AG39: =AG38 -> ПФО | AH39: 0 | AI39: Трофимов Роман Олегович | AK39: +7 (980) 164-03-99 | AL39: 0 | AM39: 0 | AN39: 0 | AO39: 0 | AP39: - | AQ39: 0 | AR39: 0 | AS39: 0 | AT39: 235601 | AU39: trofimov@tn.ru | AV39: 0 | AX39: 0 | AY39: =Свойства_расчета!$E3 -> Пользовательская система | AZ39: =Свойства_расчета!$E4 -> 0 | BA39: =Свойства_расчета!$E5 -> 0 | BB39: =Свойства_расчета!$E6 -> 0 | BC39: =Свойства_расчета!$E7 -> 0 | BD39: =Свойства_расчета!$E8 -> 0 | BE39: =Свойства_расчета!$E9 -> 0 | BF39: =Свойства_расчета!$E10 -> 0 | BG39: =Свойства_расчета!$E11 -> 0 | BH39: =Свойства_расчета!$E12 -> 0 | BI39: 0 | BJ39: ОЦО КП | BK39: =ОБЩИЕ_ДАННЫЕ!$C$217 -> 0 | BL39: 0 | BM39: 0 | BN39: =Свойства_расчета!G3 -> Бетон | BO39: http://nav.tn.ru/calculators/flat-roof/?object=TPK9B6AA33C67D3B696FB2FED3B2F383319

Sheet ОЦО (hidden)

Sheet Адм (hidden)
AF1: ТАБЛИЦА ПОДБОРА КРЕПЕЖА ДЛЯ крепления реек в парапет | AO1: ТАБЛИЦА ПОДБОРА КРЕПЕЖА ДЛЯ ГЛАДИ | AY1: ТАБЛИЦА ПОДБОРА КРЕПЕЖА ДЛЯ КЛИНОВИДНОЙ ИЗОЛЯЦИИ
B2: Клин_ОУ | D2: Клин_КУ | F2: ИнфО | G2: КВ 1.7% НП | H2: КВ 1.7% ВЭ | I2: КВ 2.1% НП | J2: КВ 2.1% ВЭ | K2: XPS 1.7% | L2: XPS 2.1% | M2: XPS 2.1%+ | N2: PIR 1.7% Мех | O2: PIR 1.7% Клей | P2: PIR EU 2.1% AL | Q2: КВ EU 40 2.5% | R2: КВ EU 50 2.5% | S2: КВ EU 40 3.0% | T2: КВ EU 50 3.0% | X2: Допустимая нехватка: | Y2: 1.25 | AB2: Саморез | AC2: В бетон | AD2: В профлист | AF2: Высота крепежа | AG2: Бетон_телескоп | AH2: Бетон_саморез | AI2: Профлист_телескоп | AJ2: Профлист_саморез | AO2: Высота крепежа | AP2: Бетон(6,3)_Телескоп | AQ2: Бетон(6,3)_Саморез | AR2: Бетон(4,8)_Телескоп | AS2: Бетон(4,8)_Саморез | AT2: Профлист_Телескоп | AU2: Профлист_Саморез | AV2: Профлист(Гарант +)_Телескоп | AW2: Профлист(Гарант +)_Саморез | AY2: Высота крепежа | AZ2: Бетон(6,3)_Телескоп | BA2: Бетон(6,3)_Саморез | BB2: Бетон(4,8)_Телескоп | BC2: Бетон(4,8)_Саморез | BD2: Профлист_Телескоп | BE2: Профлист_Саморез | BF2: Профлист(Гарант +)_Телескоп | BG2: Профлист(Гарант +)_Саморез
B3: НЕТ | D3: НЕТ | F3: Плита 1 (полн) | G3: ТЕХНОРУФ Н ПРОФ КЛИН (1,7% элемент А) | H3: ТЕХНОРУФ В ЭКСТРА КЛИН (1,7% элемент А) | I3: ТЕХНОРУФ Н ПРОФ КЛИН (2,1% элемент А) | J3: ТЕХНОРУФ В ЭКСТРА КЛИН (2,1% элемент А) | K3: XPS ТехноНИКОЛЬ CARBON PROF SLOPE (1,7% элемент А) | L3: XPS ТехноНИКОЛЬ CARBON PROF SLOPE (2,1% элемент А) | M3: XPS ТехноНИКОЛЬ CARBON PROF SLOPE (2,1%+ элемент А) | N3: LOGICPIR SLOPE СХ/СХ (1,7% элемент А) | O3: LOGICPIR SLOPE СХМ/СХМ (1,7% элемент А) | P3: PIR SLOPE (2,1% AL/AL элемент А) | Q3: TECHNOROOF BASE 40 TAPERED 1200x1000x10-40 (A 2,5%) | R3: TECHNOROOF TOP 50 TAPERED 1200x1000x10-40 (A 2,5%) | S3: TECHNOROOF BASE 40 TAPERED 1000x1200x10-40 (A 3,0%) | T3: TECHNOROOF TOP 50 TAPERED 1000x1200x10-40 (A 3,0%) | AB3: 50 | AC3: Саморез остроконечный ТехноНИКОЛЬ 4,8х 50 мм | AF3: 0 | AH3: нет | AJ3: нет | AO3: 0 | AP3: ТЭ | AQ3: 80 | AR3: ТЭ | AS3: 50 | AT3: ТЭ | AU3: 70 | AV3: ТЭ | AW3: 70 | AY3: 0 | AZ3: ТЭ | BA3: 80 | BB3: ТЭ | BC3: 50 | BD3: ТЭ | BE3: 70 | BF3: ТЭ | BG3: 70
B4: КВ 1.7% НП | D4: КВ 4.2% НП | F4: Плита 2 (полн) | G4: ТЕХНОРУФ Н ПРОФ КЛИН (1,7% элемент В) | H4: ТЕХНОРУФ В ЭКСТРА КЛИН (1,7% элемент В) | I4: ТЕХНОРУФ Н ПРОФ КЛИН (2,1% элемент В) | J4: ТЕХНОРУФ В ЭКСТРА КЛИН (2,1% элемент В) | K4: XPS ТехноНИКОЛЬ CARBON PROF SLOPE (1,7% элемент В) | L4: XPS ТехноНИКОЛЬ CARBON PROF SLOPE (2,1% элемент В) | M4: XPS ТехноНИКОЛЬ CARBON PROF SLOPE (2,1%+ элемент В) | N4: LOGICPIR SLOPE СХ/СХ (1,7% элемент В) | O4: LOGICPIR SLOPE СХМ/СХМ (1,7% элемент В) | P4: PIR SLOPE (2,1% AL/AL элемент В) | Q4: TECHNOROOF BASE 40 TAPERED 1200x1000x40-70 (B 2,5%) | R4: TECHNOROOF TOP 50 TAPERED 1200x1000x40-70 (B 2,5%) | S4: TECHNOROOF BASE 40 TAPERED 1000x1200x40-70 (B 3,0%) | T4: TECHNOROOF TOP 50 TAPERED 1000x1200x40-70 (B 3,0%) | AB4: 60 | AD4: Саморез сверлоконечный ТехноНИКОЛЬ 4,8х 60 мм | AF4: 10 | AO4: 10 | AP4: ТЭ | AQ4: 80 | AR4: ТЭ | AS4: 70 | AT4: ТЭ | AU4: 70 | AV4: ТЭ | AW4: 70 | AY4: 10 | AZ4: ТЭ | BA4: 80 | BB4: ТЭ | BC4: 70 | BD4: ТЭ | BE4: 70 | BF4: ТЭ | BG4: 70
B5: КВ 1.7% ВЭ | D5: КВ 4.2% ВЭ | F5: Плита 3 (полн) | G5: ТЕХНОРУФ Н ПРОФ КЛИН (1,7% элемент С40 мм) | H5: ТЕХНОРУФ В ЭКСТРА КЛИН (1,7% элемент С40 мм) | I5: ТЕХНОРУФ Н ПРОФ КЛИН (2,1% элемент С50 мм) | J5: ТЕХНОРУФ В ЭКСТРА КЛИН (2,1% элемент С50 мм) | K5: XPS ТехноНИКОЛЬ CARBON PROF (40 мм) | L5: =IF(#REF!>0,"XPS ТехноНИКОЛЬ CARBON ECO (50 мм)","XPS ТехноНИКОЛЬ CARBON PROF (50 мм)") ->  | M5: =IF(#REF!>0,"XPS ТехноНИКОЛЬ CARBON ECO (50 мм)","XPS ТехноНИКОЛЬ CARBON PROF (50 мм)") ->  | N5: LOGICPIR SLOPE СХ/СХ (элемент С40 мм) | O5: LOGICPIR SLOPE СХМ/СХМ (элемент С40 мм) | P5: PIR SLOPE (2,1% AL/AL элемент C50 мм) | Q5: TECHNOROOF BASE 40 1200x1000x60 (2 slabs) Element C | R5: TECHNOROOF TOP 50 1200x1000x60 (2 slabs) Element C | S5: TECHNOROOF BASE 40 1200x1000x60 (2 slabs) Element C | T5: TECHNOROOF TOP 50 1200x1000x60 (2 slabs) Element C | AB5: 70 | AC5: Саморез остроконечный ТехноНИКОЛЬ 4,8х 70 мм | AD5: Саморез сверлоконечный ТехноНИКОЛЬ 4,8х 70 мм | AF5: 20 | AO5: 20 | AP5: ТЭ | AQ5: 80 | AR5: ТЭ | AS5: 70 | AT5: ТЭ | AU5: 70 | AV5: ТЭ | AW5: 70 | AY5: 20 | AZ5: ТЭ | BA5: 80 | BB5: ТЭ | BC5: 70 | BD5: ТЭ | BE5: 70 | BF5: ТЭ | BG5: 70
B6: КВ 2.1% НП | D6: КВ 4.2% НП (15) | F6: Плита 1 (кор) | G6: Плита А | H6: Плита А | I6: Плита А | J6: Плита А | K6: Плита А | L6: Плита А | M6: Плита А | N6: Плита А | O6: Плита А | P6: Плита А | Q6: Плита А | R6: Плита А | S6: Плита А | T6: Плита А | AB6: 80 | AC6: Саморез остроконечный ТехноНИКОЛЬ 4,8х 80 мм | AD6: Саморез сверлоконечный ТехноНИКОЛЬ 4,8х 80 мм | AF6: 30 | AH6: 80 | AJ6: 60 | AO6: 30 | AP6: ТЭ | AQ6: 80 | AR6: ТЭ | AS6: 80 | AT6: ТЭ | AU6: 70 | AV6: ТЭ | AW6: 70 | AY6: 30 | AZ6: ТЭ | BA6: 80 | BB6: ТЭ | BC6: 80 | BD6: ТЭ | BE6: 70 | BF6: ТЭ | BG6: 70
B7: КВ 2.1% ВЭ | D7: КВ 4.2% ВЭ (15) | F7: Плита 2 (кор) | G7: Плита В | H7: Плита В | I7: Плита В | J7: Плита В | K7: Плита В | L7: Плита В | M7: Плита В | N7: Плита В | O7: Плита В | P7: Плита В | Q7: Плита В | R7: Плита В | S7: Плита В | T7: Плита В | AB7: 100 | AC7: Саморез остроконечный ТехноНИКОЛЬ 4,8х 100 мм | AD7: Саморез сверлоконечный ТехноНИКОЛЬ 4,8х 100 мм | AF7: 40 | AH7: 80 | AJ7: 60 | AO7: 40 | AP7: 20 | AQ7: 90 | AR7: 20 | AS7: 80 | AT7: 20 | AU7: 60 | AV7: 20 | AW7: 80 | AY7: 40 | AZ7: 20 | BA7: 90 | BB7: ТЭ | BC7: 120 | BD7: ТЭ | BE7: 100 | BF7: ТЭ | BG7: 100
B8: XPS 1.7% | D8: XPS 3.4% | F8: Плита 3 (кор) | G8: Плита С40 | H8: Плита С40 | I8: Плита C50 | J8: Плита C50 | K8: Плита D40 | L8: Плита D50 | M8: Плита D50 | N8: Плита C40 | O8: Плита C40 | P8: Плита C50 | Q8: Плита C60 | R8: Плита C60 | S8: Плита C60 | T8: Плита C60 | AB8: 120 | AC8: Саморез остроконечный ТехноНИКОЛЬ 4,8х 120 мм | AD8: Саморез сверлоконечный ТехноНИКОЛЬ 4,8х 120 мм | AF8: 50 | AH8: 100 | AJ8: 80 | AO8: 45 | AP8: 20 | AQ8: 90 | AR8: 20 | AS8: 100 | AT8: 20 | AU8: 80 | AV8: 20 | AW8: 100 | AY8: 50 | AZ8: 20 | BA8: 110 | BB8: ТЭ | BC8: 160 | BD8: ТЭ | BE8: 120 | BF8: ТЭ | BG8: 120
B9: XPS 2.1% | D9: XPS 4.2% | F9: Объём 1 | G9: 0.0288 | H9: 0.0288 | I9: 0.0306 | J9: 0.0306 | K9: 0.0144 | L9: 0.0126 | M9: 0.0162 | N9: 0.72 | O9: 0.72 | P9: 1.44 | Q9: 0.03 | R9: 0.03 | S9: 0.03 | T9: 0.03 | AB9: 160 | AC9: Саморез остроконечный ТехноНИКОЛЬ 4,8х 160 мм | AD9: Саморез сверлоконечный ТехноНИКОЛЬ 4,8х 160 мм | AF9: 60 | AH9: 100 | AJ9: 80 | AO9: 50 | AP9: 20 | AQ9: 90 | AR9: 20 | AS9: 100 | AT9: 20 | AU9: 80 | AV9: 20 | AW9: 100 | AY9: 60 | AZ9: 20 | BA9: 110 | BB9: 20 | BC9: 120 | BD9: 20 | BE9: 100 | BF9: 20 | BG9: 100
B10: XPS 2.1%+ | D10: XPS 4.2%+ | F10: Объём 2 | G10: 0.0432 | H10: 0.0432 | I10: 0.0486 | J10: 0.0486 | K10: 0.0288 | L10: 0.0306 | M10: 0.0342 | N10: 0.72 | O10: 0.72 | P10: 1.44 | Q10: 0.066 | R10: 0.066 | S10: 0.066 | T10: 0.066 | AB10: 200 | AC10: Саморез сверлоконечный ТехноНИКОЛЬ 4,8х 200 мм | AD10: Саморез сверлоконечный ТехноНИКОЛЬ 4,8х 200 мм | AF10: 70 | AH10: 120 | AJ10: 100 | AO10: 55 | AP10: 20 | AQ10: 90 | AR10: 20 | AS10: 100 | AT10: 20 | AU10: 80 | AV10: 20 | AW10: 100 | AY10: 70 | AZ10: 50 | BA10: 110 | BB10: 20 | BC10: 160 | BD10: 20 | BE10: 120 | BF10: 20 | BG10: 120
B11: PIR 1.7% Мех | D11: XPS 8.3% | F11: Объём 3 | G11: 0.0288 | H11: 0.0288 | I11: 0.036 | J11: 0.036 | K11: 0.0288 | L11: 0.036 | M11: 0.036 | N11: 0.72 | O11: 0.72 | P11: 1.44 | Q11: 0.072 | R11: 0.072 | S11: 0.072 | T11: 0.072 | AB11: 300 | AF11: 80 | AH11: 120 | AJ11: 100 | AO11: 60 | AP11: 20 | AQ11: 90 | AR11: 20 | AS11: 100 | AT11: 20 | AU11: 80 | AV11: 20 | AW11: 100 | AY11: 80 | AZ11: 50 | BA11: 110 | BB11: 20 | BC11: 160 | BD11: 20 | BE11: 120 | BF11: 20 | BG11: 120
B12: PIR 1.7% Клей | D12: PIR 3.3% J Мех | F12: Ед. изм | G12: м3 | H12: м3 | I12: м3 | J12: м3 | K12: м3 | L12: м3 | M12: м3 | N12: м2 | O12: м2 | P12: м2 | Q12: м3 | R12: м3 | S12: м3 | T12: м3 | AF12: 90 | AH12: 160 | AJ12: 120 | AO12: 65 | AP12: 20 | AQ12: 110 | AR12: 20 | AS12: 120 | AT12: 20 | AU12: 100 | AV12: 20 | AW12: 120 | AY12: 90 | AZ12: 50 | BA12: 110 | BB12: 20 | BC12: 160 | BD12: 20 | BE12: 160 | BF12: 20 | BG12: 160
B13: PIR EU 2.1% AL | D13: PIR 3.3% J+K Мех | AF13: 100 | AH13: 160 | AJ13: 120 | AO13: 70 | AP13: 20 | AQ13: 110 | AR13: 20 | AS13: 120 | AT13: 20 | AU13: 100 | AV13: 20 | AW13: 120 | AY13: 100 | AZ13: 80 | BA13: 110 | BB13: 60 | BC13: 120 | BD13: 60 | BE13: 100 | BF13: 60 | BG13: 100
B14: КВ EU 40 2.5% | D14: PIR 3.3% J Клей | F14: ИнфК | G14: КВ 4.2% НП | H14: КВ 4.2% ВЭ | I14: КВ 4.2% НП (15) | J14: КВ 4.2% ВЭ (15) | K14: XPS 3.4% | L14: XPS 4.2% | M14: XPS 4.2%+ | N14: XPS 8.3% | O14: PIR 3.3% J Мех | P14: PIR 3.3% J+K Мех | Q14: PIR 3.3% J Клей | R14: PIR 3.3% J+K Клей | S14: PIR EU 3.4% J AL | T14: PIR EU 3.4% J GTM | U14: PIR EU 3.4% J+K GTM | V14: КВ EU 40 3.0% | W14: КВ EU 50 3.0% | X14: КВ EU 40 5.0% | Y14: КВ EU 50 5.0% | Z14: PIR 3.3% J1+K1 Б/О | AF14: 110 | AH14: 160 | AJ14: 160 | AO14: 75 | AP14: 20 | AQ14: 110 | AR14: 20 | AS14: 120 | AT14: 20 | AU14: 100 | AV14: 20 | AW14: 120 | AY14: 110 | AZ14: 80 | BA14: 110 | BB14: 60 | BC14: 160 | BD14: 60 | BE14: 120 | BF14: 60 | BG14: 120
B15: КВ EU 50 2.5% | D15: PIR 3.3% J+K Клей | F15: Плита 1 (полн) | G15: ТЕХНОРУФ Н ПРОФ КЛИН (4,2% элемент А) | H15: ТЕХНОРУФ В ЭКСТРА КЛИН (4,2% элемент А) | I15: ТЕХНОРУФ Н ПРОФ КЛИН (4,2% элемент А) (15-40 мм) | J15: ТЕХНОРУФ В ЭКСТРА КЛИН (4,2% элемент А) (15-40 мм) | K15: XPS ТехноНИКОЛЬ CARBON PROF SLOPE (3,4% элемент J) | L15: XPS ТехноНИКОЛЬ CARBON PROF SLOPE (4,2% элемент J) | M15: XPS ТехноНИКОЛЬ CARBON PROF SLOPE (4,2%+ элемент J) | N15: XPS ТехноНИКОЛЬ CARBON PROF SLOPE (8,3% элемент М) | O15: LOGICPIR SLOPE СХ/СХ (3,4% элемент J) | P15: LOGICPIR SLOPE СХ/СХ (3,4% элемент J) | Q15: LOGICPIR SLOPE СХМ/СХМ (3,4% элемент J) | R15: LOGICPIR SLOPE СХМ/СХМ (3,4% элемент J) | S15: PIR SLOPE (3,4% AL/AL элемент J) | T15: PIR SLOPE (3,4% GTM элемент J) | U15: PIR SLOPE (3,4% GTM элемент J) | V15: TECHNOROOF BASE 40 TAPERED 1000x1200x10-40 (A 3,0%) | W15: TECHNOROOF TOP 50 TAPERED 1000x1200x10-40 (A 3,0%) | X15: TECHNOROOF BASE 40 TAPERED 600x1000x10-40 (A 5,0%) | Y15: TECHNOROOF TOP 50 TAPERED 600x1000x10-40 (A 5,0%) | Z15: LOGICPIR SLOPE Б/О (3,4% элемент J1) | AB15: Телескоп | AC15: Название | AF15: 120 | AH15: 160 | AJ15: 160 | AO15: 80 | AP15: 60 | AQ15: 90 | AR15: 60 | AS15: 80 | AT15: 60 | AU15: 60 | AV15: 60 | AW15: 80 | AY15: 120 | AZ15: 80 | BA15: 110 | BB15: 80 | BC15: 120 | BD15: 80 | BE15: 100 | BF15: 80 | BG15: 100
B16: КВ EU 40 3.0% | D16: PIR 3.3% J1+K1 Б/О | F16: Плита 2 (полн) | G16: ТЕХНОРУФ Н ПРОФ КЛИН (4,2% элемент В) | H16: ТЕХНОРУФ В ЭКСТРА КЛИН (4,2% элемент В) | I16: ТЕХНОРУФ Н ПРОФ КЛИН (4,2% элемент В) (40-65 мм) | J16: ТЕХНОРУФ В ЭКСТРА КЛИН (4,2% элемент В) (40-65 мм) | K16: XPS ТехноНИКОЛЬ CARBON PROF SLOPE (3,4% элемент K) | L16: XPS ТехноНИКОЛЬ CARBON PROF SLOPE (4,2% элемент K) | M16: XPS ТехноНИКОЛЬ CARBON PROF SLOPE (4,2%+ элемент K) | N16: XPS ТехноНИКОЛЬ CARBON PROF (50 мм) | O16: LOGICPIR SLOPE СХ/СХ (элемент С40 мм) | P16: LOGICPIR SLOPE СХ/СХ (3,4% элемент K) | Q16: LOGICPIR SLOPE СХМ/СХМ (элемент С40 мм) | R16: LOGICPIR SLOPE СХМ/СХМ (3,4% элемент K) | S16: PIR SLOPE (AL/AL элемент C40 мм) | T16: PIR SLOPE (GTM элемент C40 мм) | U16: PIR SLOPE (3,4% GTM элемент K) | V16: TECHNOROOF BASE 40 TAPERED 1000x1200x40-70 (B 3,0%) | W16: TECHNOROOF TOP 50 TAPERED 1000x1200x40-70 (B 3,0%) | X16: TECHNOROOF BASE 40 TAPERED 600x1000x40-70 (B 5,0%) | Y16: TECHNOROOF TOP 50 TAPERED 600x1000x40-70 (B 5,0%) | Z16: LOGICPIR SLOPE Б/О (3,4% элемент K1) | AB16: 20 | AC16: Телескопический крепеж ТехноНИКОЛЬ (20 мм) | AF16: 130 | AH16: 200 | AJ16: 160 | AO16: 85 | AP16: 60 | AQ16: 90 | AR16: 60 | AS16: 100 | AT16: 60 | AU16: 80 | AV16: 60 | AW16: 100 | AY16: 130 | AZ16: 100 | BA16: 110 | BB16: 80 | BC16: 160 | BD16: 80 | BE16: 120 | BF16: 80 | BG16: 120
B17: КВ EU 50 3.0% | D17: PIR EU 3.4% J AL | F17: Плита 3 (полн) | G17: ТЕХНОРУФ Н ПРОФ КЛИН (4,2% элемент С50 мм) | H17: ТЕХНОРУФ В ЭКСТРА КЛИН (4,2% элемент С50 мм) | I17: ТЕХНОРУФ Н ПРОФ КЛИН (4,2% элемент С50 мм) | J17: ТЕХНОРУФ В ЭКСТРА КЛИН (4,2% элемент С50 мм) | K17: XPS ТехноНИКОЛЬ CARBON PROF (40 мм) | L17: =IF(#REF!>0,"XPS ТехноНИКОЛЬ CARBON ECO (50 мм)","XPS ТехноНИКОЛЬ CARBON PROF (50 мм)") ->  | M17: =IF(#REF!>0,"XPS ТехноНИКОЛЬ CARBON ECO (50 мм)","XPS ТехноНИКОЛЬ CARBON PROF (50 мм)") ->  | N17: - | O17: - | P17: LOGICPIR SLOPE СХ/СХ (элемент С80 мм) | Q17: - | R17: LOGICPIR SLOPE СХМ/СХМ (элемент С80 мм) | S17: - | T17: - | U17: PIR SLOPE (GTM элемент С80 мм) | V17: TECHNOROOF BASE 40 1200x1000x60 (2 slabs) Element C | W17: TECHNOROOF TOP 50 1200x1000x60 (2 slabs) Element C | X17: TECHNOROOF BASE 40 1000x600x60 Element C | Y17: TECHNOROOF TOP 50 1000x600x60 Element C | Z17: LOGICPIR SLOPE СХ/СХ (элемент С40 мм) | AB17: 50 | AC17: Телескопический крепеж ТехноНИКОЛЬ (50 мм) | AF17: 140 | AH17: 200 | AJ17: 160 | AO17: 90 | AP17: 60 | AQ17: 90 | AR17: 60 | AS17: 100 | AT17: 60 | AU17: 80 | AV17: 60 | AW17: 100 | AY17: 140 | AZ17: 100 | BA17: 110 | BB17: 100 | BC17: 120 | BD17: 100 | BE17: 100 | BF17: 100 | BG17: 100
D18: PIR EU 3.4% J GTM | F18: Плита 1 (кор) | G18: Плита А | H18: Плита А | I18: Плита А | J18: Плита А | K18: Плита J | L18: Плита J | M18: Плита J | N18: Плита М | O18: Плита J | P18: Плита J | Q18: Плита J | R18: Плита J | S18: Плита J | T18: Плита J | U18: Плита J | V18: Плита А | W18: Плита А | X18: Плита А | Y18: Плита А | Z18: Плита J1 | AB18: 60 | AC18: Телескопический крепеж ТехноНИКОЛЬ (60 мм) | AF18: 150 | AH18: 200 | AJ18: 200 | AO18: 95 | AP18: 60 | AQ18: 90 | AR18: 60 | AS18: 100 | AT18: 60 | AU18: 80 | AV18: 60 | AW18: 100 | AY18: 150 | AZ18: 120 | BA18: 110 | BB18: 100 | BC18: 160 | BD18: 100 | BE18: 120 | BF18: 100 | BG18: 120
D19: PIR EU 3.4% J+K GTM | F19: Плита 2 (кор) | G19: Плита В | H19: Плита В | I19: Плита В | J19: Плита В | K19: Плита K | L19: Плита K | M19: Плита K | N19: Плита D50 | O19: Плита C40 | P19: Плита K | Q19: Плита C40 | R19: Плита K | S19: Плита C40 | T19: Плита C40 | U19: Плита K | V19: Плита В | W19: Плита В | X19: Плита В | Y19: Плита В | Z19: Плита K1 | AB19: 80 | AC19: Телескопический крепеж ТехноНИКОЛЬ (80 мм) | AF19: 160 | AH19: 200 | AJ19: 200 | AO19: 100 | AP19: 80 | AQ19: 90 | AR19: 80 | AS19: 80 | AT19: 80 | AU19: 60 | AV19: 80 | AW19: 80 | AY19: 160 | AZ19: 120 | BA19: 110 | BB19: 120 | BC19: 120 | BD19: 120 | BE19: 100 | BF19: 120 | BG19: 100
D20: КВ EU 40 3.0% | F20: Плита 3 (кор) | G20: Плита C50 | H20: Плита C50 | I20: Плита C50 | J20: Плита C50 | K20: Плита D40 | L20: Плита D50 | M20: Плита D50 | N20: - | O20: - | P20: Плита C80 | Q20: - | R20: Плита C80 | S20: - | T20: - | U20: Плита C80 | V20: Плита C60 | W20: Плита C60 | X20: Плита C60 | Y20: Плита C60 | Z20: Плита C40 | AB20: 100 | AC20: Телескопический крепеж ТехноНИКОЛЬ (100 мм) | AF20: 170 | AJ20: 200 | AO20: 105 | AP20: 80 | AQ20: 90 | AR20: 80 | AS20: 100 | AT20: 80 | AU20: 80 | AV20: 80 | AW20: 100 | AY20: 170 | AZ20: 140 | BA20: 110 | BB20: 130 | BC20: 120 | BD20: 130 | BE20: 100 | BF20: 130 | BG20: 100
D21: КВ EU 50 3.0% | F21: Объём 1 | G21: 0.0306 | H21: 0.0306 | I21: 0.0198 | J21: 0.0198 | K21: 0.0144 | L21: 0.0126 | M21: 0.0162 | N21: 0.0252 | O21: 0.72 | P21: 0.72 | Q21: 0.72 | R21: 0.72 | S21: 1.44 | T21: 0.72 | U21: 0.72 | V21: 0.03 | W21: 0.03 | X21: 0.015 | Y21: 0.015 | Z21: 0.6496 | AB21: 120 | AC21: Телескопический крепеж ТехноНИКОЛЬ (120 мм) | AF21: 180 | AJ21: 200 | AO21: 110 | AP21: 80 | AQ21: 90 | AR21: 80 | AS21: 100 | AT21: 80 | AU21: 80 | AV21: 80 | AW21: 100 | AY21: 180 | AZ21: 140 | BA21: 110 | BB21: 140 | BC21: 120 | BD21: 140 | BE21: 100 | BF21: 140 | BG21: 100
D22: КВ EU 40 5.0% | F22: Объём 2 | G22: 0.0486 | H22: 0.0486 | I22: 0.0378 | J22: 0.0378 | K22: 0.0288 | L22: 0.0306 | M22: 0.0342 | N22: 0.036 | O22: 0.72 | P22: 0.72 | Q22: 0.72 | R22: 0.72 | S22: 1.44 | T22: 0.72 | U22: 0.72 | V22: 0.066 | W22: 0.066 | X22: 0.033 | Y22: 0.033 | Z22: 0.6496 | AB22: 130 | AC22: Телескопический крепеж ТехноНИКОЛЬ (130 мм) | AO22: 115 | AP22: 80 | AQ22: 90 | AR22: 80 | AS22: 100 | AT22: 80 | AU22: 80 | AV22: 80 | AW22: 100 | AY22: 190 | AZ22: 150 | BA22: 110 | BB22: 150 | BC22: 120 | BD22: 150 | BE22: 100 | BF22: 150 | BG22: 100
D23: КВ EU 50 5.0% | F23: Объём 3 | G23: 0.036 | H23: 0.036 | I23: 0.036 | J23: 0.036 | K23: 0.0288 | L23: 0.036 | M23: 0.036 | N23: 0 | O23: 0 | P23: 0.72 | Q23: 0 | R23: 0.72 | S23: 0 | T23: 0 | U23: 0.72 | V23: 0.072 | W23: 0.072 | X23: 0.036 | Y23: 0.036 | Z23: 0.72 | AB23: 140 | AC23: Телескопический крепеж ТехноНИКОЛЬ (140 мм) | AO23: 120 | AP23: 100 | AQ23: 90 | AR23: 100 | AS23: 80 | AT23: 100 | AU23: 60 | AV23: 100 | AW23: 80 | AY23: 200 | AZ23: 150 | BA23: 110 | BB23: 150 | BC23: 160 | BD23: 150 | BE23: 120 | BF23: 150 | BG23: 120
F24: Ед. изм | G24: м3 | H24: м3 | I24: м3 | J24: м3 | K24: м3 | L24: м3 | M24: м3 | N24: м3 | O24: м2 | P24: м2 | Q24: м2 | R24: м2 | S24: м2 | T24: м2 | U24: м2 | V24: м3 | W24: м3 | X24: м3 | Y24: м3 | Z24: м2 | AB24: 150 | AC24: Телескопический крепеж ТехноНИКОЛЬ (150 мм) | AO24: 125 | AP24: 100 | AQ24: 90 | AR24: 100 | AS24: 100 | AT24: 100 | AU24: 80 | AV24: 100 | AW24: 100 | AY24: 210 | AZ24: 170 | BA24: 110 | BB24: 170 | BC24: 120 | BD24: 170 | BE24: 100 | BF24: 170 | BG24: 100
AB25: 170 | AC25: Телескопический крепеж ТехноНИКОЛЬ (170 мм) | AO25: 130 | AP25: 100 | AQ25: 90 | AR25: 100 | AS25: 100 | AT25: 100 | AU25: 80 | AV25: 100 | AW25: 100 | AY25: 220 | AZ25: 180 | BA25: 110 | BB25: 180 | BC25: 120 | BD25: 180 | BE25: 100 | BF25: 180 | BG25: 100
F26: Тип конструкции | H26: Крыша | I26: Крыша стилобата | AB26: 180 | AC26: Телескопический крепеж ТехноНИКОЛЬ (180 мм) | AO26: 135 | AP26: 100 | AQ26: 90 | AR26: 100 | AS26: 100 | AT26: 100 | AU26: 80 | AV26: 100 | AW26: 100 | AY26: 230 | AZ26: 180 | BA26: 110 | BB26: 180 | BC26: 160 | BD26: 180 | BE26: 120 | BF26: 180 | BG26: 120
Q27: Да_Нет | AB27: 200 | AC27: Телескопический крепеж ТехноНИКОЛЬ (200 мм) | AO27: 140 | AP27: 120 | AQ27: 90 | AR27: 120 | AS27: 80 | AT27: 120 | AU27: 60 | AV27: 120 | AW27: 80 | AY27: 240 | AZ27: 180 | BA27: 160 | BB27: 200 | BC27: 120 | BD27: 200 | BE27: 100 | BF27: 200 | BG27: 100
B28: Основание | C28: Толщина | F28: Крыша | H28: Плоская крыша - неэксплуатируемая | I28: Крыша стилобата | Q28: да | AB28: 220 | AC28: Телескопический крепеж ТехноНИКОЛЬ (220 мм) | AO28: 145 | AP28: 120 | AQ28: 90 | AR28: 120 | AS28: 100 | AT28: 120 | AU28: 80 | AV28: 120 | AW28: 100 | AY28: 250 | AZ28: 200 | BA28: 120 | BB28: 200 | BC28: 160 | BD28: 200 | BE28: 120 | BF28: 200 | BG28: 120
B29: НЕТ | C29: 0 | F29: Крыша стилобата | H29: Плоская крыша - эксплуатируемая | Q29: нет | AB29: 240 | AC29: Телескопический крепеж ТехноНИКОЛЬ (240 мм) | AO29: 150 | AP29: 120 | AQ29: 90 | AR29: 130 | AS29: 80 | AT29: 130 | AU29: 60 | AV29: 130 | AW29: 80 | AY29: 260 | AZ29: 200 | BA29: 160 | BB29: 220 | BC29: 120 | BD29: 220 | BE29: 100 | BF29: 220 | BG29: 100
B30: АЦЛ 6 мм | C30: 6 | H30: Скатная крыша | AB30: 260 | AC30: Телескопический крепеж ТехноНИКОЛЬ (260 мм) | AO30: 155 | AP30: 120 | AQ30: 90 | AR30: 130 | AS30: 100 | AT30: 130 | AU30: 80 | AV30: 130 | AW30: 100 | AY30: 270 | AZ30: 220 | BA30: 120 | BB30: 220 | BC30: 160 | BD30: 220 | BE30: 120 | BF30: 220 | BG30: 120
B31: АЦЛ 8 мм | C31: 8 | AB31: 300 | AC31: Телескопический крепеж ТехноНИКОЛЬ (300 мм) | AO31: 160 | AP31: 140 | AQ31: 90 | AR31: 140 | AS31: 80 | AT31: 140 | AU31: 60 | AV31: 140 | AW31: 80 | AY31: 280 | AZ31: 220 | BA31: 160 | BB31: 240 | BC31: 120 | BD31: 240 | BE31: 100 | BF31: 240 | BG31: 100
B32: АЦЛ 10 мм | C32: 10 | AB32: 350 | AC32: Телескопический крепеж ТехноНИКОЛЬ (350 мм) | AO32: 165 | AP32: 140 | AQ32: 90 | AR32: 140 | AS32: 100 | AT32: 140 | AU32: 80 | AV32: 140 | AW32: 100 | AY32: 290 | AZ32: 220 | BA32: 160 | BB32: 240 | BC32: 160 | BD32: 240 | BE32: 120 | BF32: 240 | BG32: 120
B33: ЦСП 8 мм | C33: 8 | AB33: 425 | AC33: Телескопический крепеж (425 мм) | AO33: 170 | AP33: 150 | AQ33: 90 | AR33: 150 | AS33: 80 | AT33: 150 | AU33: 60 | AV33: 150 | AW33: 80 | AY33: 300 | AZ33: 240 | BA33: 160 | BB33: 260 | BC33: 120 | BD33: 260 | BE33: 100 | BF33: 260 | BG33: 100
B34: ЦСП 10 мм | C34: 10 | AO34: 175 | AP34: 150 | AQ34: 90 | AR34: 150 | AS34: 100 | AT34: 150 | AU34: 80 | AV34: 150 | AW34: 100 | AY34: 310 | AZ34: 170 | BA34: 240 | BB34: 260 | BC34: 160 | BD34: 260 | BE34: 120 | BF34: 260 | BG34: 120
B35: ЦСП 12 мм | C35: 12 | AO35: 180 | AP35: 150 | AQ35: 90 | AR35: 150 | AS35: 100 | AT35: 150 | AU35: 80 | AV35: 150 | AW35: 100 | AY35: 320 | AZ35: 180 | BA35: 240 | BB35: 260 | BC35: 160 | BD35: 260 | BE35: 120 | BF35: 260 | BG35: 120
B36: ЦСП 16 мм | C36: 16 | G36: Воронки ПВХ | L36: Марка профлиста | M36: К-т расхода паробарьера на ПЛ | N36: Объём гофр ПЛ | P36: Галтель | Q36: Ед.изм | S36: Кол-во слоёв | T36: Праймер битумный ТехноНИКОЛЬ № 01 | U36: Праймер полимерный ТехноНИКОЛЬ №08 Быстросохнущий | AO36: 185 | AP36: 150 | AQ36: 90 | AR36: 150 | AS36: 100 | AT36: 150 | AU36: 80 | AV36: 150 | AW36: 100 | AY36: 330 | AZ36: 200 | BA36: 200 | BB36: 260 | BC36: 160 | BD36: 260 | BE36: 160 | BF36: 260 | BG36: 160
B37: ЦСП 20 мм | C37: 20 | G37: Воронка для ПВХ мембран XL503 с обогревом, 110х450 мм | L37: - | M37: 1.1 | N37: 0 | P37: Нет | Q37: - | S37: 1 слой | T37: 0.3 | U37: 0.15 | AO37: 190 | AP37: 170 | AQ37: 90 | AR37: 170 | AS37: 80 | AT37: 170 | AU37: 60 | AV37: 170 | AW37: 80 | AY37: 340 | AZ37: 200 | BA37: 240 | BB37: 300 | BC37: 120 | BD37: 300 | BE37: 100 | BF37: 300 | BG37: 100
B38: ЦСП 24 мм | C38: 24 | G38: Воронка для ПВХ мембран XL503 без обогрева, 110х450 мм | L38: по умолчанию | M38: 1.18 | N38: =3.33*0.25*0.18*0.153*1.03+N("кол-во гофр в 1м.п профлиста*длина заполнения*ширина гофры*высота гофры*к-т") -> 0.0236148615 | P38: ТЕХНОРУФ 45 ГАЛТЕЛЬ (1.2 м) | Q38: м³ | S38: 2 слоя | T38: 0.6 | U38: 0.3 | AO38: 195 | AP38: 170 | AQ38: 90 | AR38: 170 | AS38: 100 | AT38: 170 | AU38: 80 | AV38: 170 | AW38: 100 | AY38: 350 | AZ38: 220 | BA38: 200 | BB38: 300 | BC38: 160 | BD38: 300 | BE38: 120 | BF38: 300 | BG38: 120
B39: ЦСП 26 мм | C39: 26 | G39: Воронка с обжимным металлическим фланцем с обогревом, 110х450 мм | L39: Н57-750 | M39: 1.19 | N39: =5.33*0.25*0.0945*0.057*1.03+N("кол-во гофр в 1м.п профлиста*длина заполнения*ширина гофры*высота гофры*к-т") -> 0.007392836588 | P39: ТЕХНОРУФ ПРОФ ГАЛТЕЛЬ | Q39: м³ | S39: для АЦЛ | T39: 1 | U39: 0.5 | AO39: 200 | AP39: 180 | AQ39: 90 | AR39: 180 | AS39: 80 | AT39: 180 | AU39: 60 | AV39: 180 | AW39: 80 | AY39: 360 | AZ39: 300 | BA39: 120 | BB39: 300 | BC39: 160 | BD39: 300 | BE39: 120 | BF39: 300 | BG39: 120
G40: Воронка с обжимным металлическим фланцем без обогрева, 110х450 мм | L40: Н60-845 | M40: 1.18 | N40: =4.73*0.25*0.0895*0.06*1.03+N("кол-во гофр в 1м.п профлиста*длина заполнения*ширина гофры*высота гофры*к-т") -> 0.00654052575 | P40: ТЕХНОРУФ Н ПРОФ, для галтели* | Q40: м³ | AO40: 205 | AP40: 180 | AQ40: 90 | AR40: 180 | AS40: 100 | AT40: 180 | AU40: 80 | AV40: 180 | AW40: 100 | AY40: 370 | AZ40: 300 | BA40: 160 | BB40: 300 | BC40: 160 | BD40: 300 | BE40: 160 | BF40: 300 | BG40: 160
G41: Воронка с обжимным металлическим фланцем с обогревом 110х720 мм | L41: Н75-750 | M41: 1.2 | N41: =5.33*0.25*0.0955*0.075*1.03+N("кол-во гофр в 1м.п профлиста*длина заполнения*ширина гофры*высота гофры*к-т") -> 0.009830352188 | P41: Переходной бортик LOGICPIR Галтель 1000 мм | Q41: шт. | AO41: 210 | AP41: 180 | AQ41: 90 | AR41: 180 | AS41: 100 | AT41: 180 | AU41: 80 | AV41: 180 | AW41: 100 | AY41: 380 | AZ41: 300 | BA41: 160 | BB41: 300 | BC41: 160 | BD41: 300 | BE41: 160 | BF41: 300 | BG41: 160
G42: Воронка с обжимным металлическим фланцем без обогрева 110х720 мм | L42: Н114-600 | M42: 1.12 | N42: =5*0.25*0.096*0.114*1.03+N("кол-во гофр в 1м.п профлиста*длина заполнения*ширина гофры*высота гофры*к-т") -> 0.0140904 | AO42: 215 | AP42: 180 | AQ42: 90 | AR42: 180 | AS42: 100 | AT42: 180 | AU42: 80 | AV42: 180 | AW42: 100 | AY42: 390 | AZ42: 300 | BA42: 160 | BB42: 350 | BC42: 120 | BD42: 350 | BE42: 100 | BF42: 350 | BG42: 100
G43: Воронка с обжимным металлическим фланцем с обогревом 160х450мм | L43: Н114-750 | M43: 1.12 | N43: =4*0.25*0.124*0.114*1.03+N("кол-во гофр в 1м.п профлиста*длина заполнения*ширина гофры*высота гофры*к-т") -> 0.01456008 | AO43: 220 | AP43: 200 | AQ43: 90 | AR43: 200 | AS43: 80 | AT43: 200 | AU43: 60 | AV43: 200 | AW43: 80 | AY43: 400 | AZ43: 300 | BA43: 160 | BB43: 350 | BC43: 160 | BD43: 350 | BE43: 120 | BF43: 350 | BG43: 120
G44: Воронка ремонтная ТехноНИКОЛЬ PRO с листоуловителем 110x900 мм | L44: Н153-840 | M44: 1.33 | N44: =3.56*0.25*0.161*0.153*1.03+N("кол-во гофр в 1м.п профлиста*длина заполнения*ширина гофры*высота гофры*к-т") -> 0.0225810711 | AO44: 225 | AP44: 200 | AQ44: 90 | AR44: 200 | AS44: 100 | AT44: 200 | AU44: 80 | AV44: 200 | AW44: 100 | AY44: 410 | AZ44: 300 | BA44: 200 | BB44: 350 | BC44: 160 | BD44: 350 | BE44: 120 | BF44: 350 | BG44: 120
B45: Системы | L45: СКН127-1100 | M45: 1.22 | N45: =2.73*0.25*0.20685*0.127*1.03+N("кол-во гофр в 1м.п профлиста*длина заполнения*ширина гофры*высота гофры*к-т") -> 0.0184671181 | AO45: 230 | AP45: 200 | AQ45: 90 | AR45: 200 | AS45: 100 | AT45: 200 | AU45: 80 | AV45: 200 | AW45: 100 | AY45: 420 | AZ45: 350 | BA45: 160 | BB45: 350 | BC45: 160 | BD45: 350 | BE45: 160 | BF45: 350 | BG45: 160
G46: Воронки ПВХ парапет | L46: СКН153-900 | M46: 1.24 | N46: =3.33*0.25*0.18*0.153*1.03+N("кол-во гофр в 1м.п профлиста*длина заполнения*ширина гофры*высота гофры*к-т") -> 0.0236148615 | AO46: 235 | AP46: 200 | AQ46: 90 | AR46: 200 | AS46: 100 | AT46: 200 | AU46: 80 | AV46: 200 | AW46: 100 | AY46: 430 | AZ46: 350 | BA46: 160 | BB46: 350 | BC46: 160 | BD46: 350 | BE46: 160 | BF46: 350 | BG46: 160
B47: ТН-КРОВЛЯ КЛАССИК | G47: ПВХ воронка парапетная 100х100 длиной 650мм с отводом и листоуловителем | L47: СКН157-800 | M47: 1.2 | N47: =3.75*0.25*0.1456*0.157*1.03+N("кол-во гофр в 1м.п профлиста*длина заполнения*ширина гофры*высота гофры*к-т") -> 0.022073415 | AO47: 240 | AP47: 220 | AQ47: 90 | AR47: 220 | AS47: 80 | AT47: 220 | AU47: 60 | AV47: 220 | AW47: 80 | AY47: 440 | AZ47: 350 | BA47: 160 | BB47: 350 | BC47: 200 | BD47: 350 | BE47: 160 | BF47: 350 | BG47: 160
B48: ТН-КРОВЛЯ СМАРТ PIR | G48: ПВХ воронка парапетная 65х100мм длиной 550мм с отводом Ø100мм | AO48: 245 | AP48: 220 | AQ48: 90 | AR48: 220 | AS48: 100 | AT48: 220 | AU48: 80 | AV48: 220 | AW48: 100 | AY48: 450 | AZ48: 350 | BA48: 160 | BB48: 350 | BC48: 200 | BD48: 350 | BE48: 160 | BF48: 350 | BG48: 160
B49: ТН-КРОВЛЯ ГАРАНТ | G49: ПВХ воронка парапетная ТехноНИКОЛЬ 100х100 | AO49: 250 | AP49: 220 | AQ49: 90 | AR49: 220 | AS49: 100 | AT49: 220 | AU49: 80 | AV49: 220 | AW49: 100 | AY49: 460 | AZ49: 350 | BA49: 200 | BB49: 350 | BC49: 200 | BD49: 350 | BE49: 200 | BF49: 350 | BG49: 200
B50: ТН-КРОВЛЯ СМАРТ | AO50: 255 | AP50: 220 | AQ50: 90 | AR50: 220 | AS50: 100 | AT50: 220 | AU50: 80 | AV50: 220 | AW50: 100 | AY50: 470 | AZ50: 350 | BA50: 200 | BB50: 350 | BC50: 200 | BD50: 350 | BE50: 200 | BF50: 350 | BG50: 200
B51: ТН-КРОВЛЯ СТАНДАРТ | G51: Воронки БРМ | AO51: 260 | AP51: 240 | AQ51: 90 | AR51: 240 | AS51: 80 | AT51: 240 | AU51: 60 | AV51: 240 | AW51: 80 | AY51: 480 | AZ51: 350 | BA51: 200 | BB51: 425 | BC51: 160 | BD51: 350 | BE51: 200 | BF51: 350 | BG51: 200
B52: ТН-КРОВЛЯ ОПТИМА | G52: Воронка ТехноНИКОЛЬ Стандарт с прижимным фланцем и обогревом 110*590мм | O52: Гиперссылка на форму ОС | AO52: 265 | AP52: 240 | AQ52: 90 | AR52: 240 | AS52: 100 | AT52: 240 | AU52: 80 | AV52: 240 | AW52: 100 | AY52: 490 | AZ52: 350 | BA52: 200 | BB52: 425 | BC52: 160 | BD52: 350 | BE52: 200 | BF52: 350 | BG52: 200
B53: ТН-КРОВЛЯ ПРОФ | G53: Воронка ТехноНИКОЛЬ Стандарт с прижимным фланцем 110*590мм | AO53: 270 | AP53: 240 | AQ53: 90 | AR53: 240 | AS53: 100 | AT53: 240 | AU53: 80 | AV53: 240 | AW53: 100 | AY53: 500 | AZ53: 425 | BA53: 160 | BB53: 425 | BC53: 160 | BD53: 425 | BE53: 160 | BF53: 425 | BG53: 160
B54: ТН-КРОВЛЯ СТАНДАРТ КВ | G54: Воронка ТехноНИКОЛЬ с обжимным фланцем обогреваемая, 110х450 мм | O54: Форма ОС | AO54: 275 | AP54: 240 | AQ54: 90 | AR54: 240 | AS54: 100 | AT54: 240 | AU54: 80 | AV54: 240 | AW54: 100 | AY54: 510 | AZ54: 425 | BA54: 160 | BB54: 425 | BC54: 160 | BD54: 425 | BE54: 160 | BF54: 425 | BG54: 160
B55: ТН-КРОВЛЯ ГАРАНТ+ | G55: Воронка ТехноНИКОЛЬ с обжимным фланцем, 110х450 мм | P55: https://forms.yandex.ru/cloud/64b7bc4973cee7335d50970c/ | AO55: 280 | AP55: 260 | AQ55: 90 | AR55: 260 | AS55: 80 | AT55: 260 | AU55: 60 | AV55: 260 | AW55: 80 | AY55: 520 | AZ55: 425 | BA55: 200 | BB55: 425 | BC55: 200 | BD55: 425 | BE55: 160 | BF55: 425 | BG55: 160
B56: ТН-КРОВЛЯ БАЛЛАСТ | G56: Воронка ТехноНИКОЛЬ ВБ, 110х450 мм | O56: Шифр | AO56: 285 | AP56: 260 | AQ56: 90 | AR56: 260 | AS56: 100 | AT56: 260 | AU56: 80 | AV56: 260 | AW56: 100 | AY56: 530 | AZ56: 425 | BA56: 200 | BB56: 425 | BC56: 200 | BD56: 425 | BE56: 160 | BF56: 425 | BG56: 160
B57: ТН-КРОВЛЯ ФИКС | G57: Воронка ТехноНИКОЛЬ ЭКО с обжимным фланцем 110*700мм | O57: Наименование объекта | P57: answer_short_text_33418244 | Q57: =Шифр -> 9-9075-МПККИТ-01.26 | R57: =CONCATENATE("?",P57,"=",Q57) -> ?answer_short_text_33418244=9-9075-МПККИТ-01.26 | AO57: 290 | AP57: 260 | AQ57: 90 | AR57: 260 | AS57: 100 | AT57: 260 | AU57: 80 | AV57: 260 | AW57: 100 | AY57: 540 | AZ57: 425 | BA57: 200 | BB57: 425 | BC57: 200 | BD57: 425 | BE57: 200 | BF57: 425 | BG57: 200
B58: ТН-КРОВЛЯ ТИТАН | G58: Воронка ТехноНИКОЛЬ ЭКО с обжимным фланцем 160*700мм | P58: answer_short_text_33502680 | Q58: =SUBSTITUTE(Объект," ","_") -> Проектирование_строительных_конструкция_покрытия_Цеха_М10._АО_Коломенский_завод | R58: =CONCATENATE("&",P58,"=",Q58) -> &answer_short_text_33502680=Проектирование_строительных_конструкция_покрытия_Цеха_М10._АО_Коломенский_завод | AO58: 295 | AP58: 260 | AQ58: 90 | AR58: 260 | AS58: 100 | AT58: 260 | AU58: 80 | AV58: 260 | AW58: 100 | AY58: 550 | AZ58: 425 | BA58: 200 | BB58: 425 | BC58: 200 | BD58: 425 | BE58: 200 | BF58: 425 | BG58: 200
B59: ТН-КРОВЛЯ УНИВЕРСАЛ | G59: Воронка ТехноНИКОЛЬ ЭКО с обжимным фланцем и обогревом 110*700мм | AO59: 300 | AP59: 260 | AQ59: 90 | AR59: 260 | AS59: 100 | AT59: 260 | AU59: 80 | AV59: 260 | AW59: 100 | AY59: 560 | AZ59: 425 | BA59: 240 | BB59: 425 | BC59: 300 | BD59: 425 | BE59: 200 | BF59: 425 | BG59: 200
B60: ТН-КРОВЛЯ МАСТЕР | G60: Воронка ТехноНИКОЛЬ ЭКО с обжимным фланцем и обогревом 160*700мм | AO60: 305 | AP60: 260 | AQ60: 110 | AR60: 260 | AS60: 120 | AT60: 260 | AU60: 100 | AV60: 260 | AW60: 120 | AY60: 570 | AZ60: 425 | BA60: 240 | BB60: 425 | BC60: 300 | BD60: 425 | BE60: 200 | BF60: 425 | BG60: 200
B61: ТН-КРОВЛЯ ЭКСПЕРТ PIR | AO61: 310 | AP61: 260 | AQ61: 110 | AR61: 260 | AS61: 120 | AT61: 260 | AU61: 100 | AV61: 260 | AW61: 120 | AY61: 580 | AZ61: 425 | BA61: 240 | BB61: 425 | BC61: 300 | BD61: 425 | BE61: 300 | BF61: 425 | BG61: 300
B62: ТН-КРОВЛЯ СОЛИД | G62: Воронки БРМ парапет | AO62: 315 | AP62: 260 | AQ62: 110 | AR62: 260 | AS62: 120 | AT62: 260 | AU62: 100 | AV62: 260 | AW62: 120 | AY62: 590 | AZ62: 425 | BA62: 240 | BB62: 425 | BC62: 300 | BD62: 425 | BE62: 300 | BF62: 425 | BG62: 300
B63: ТН-КРОВЛЯ ЭКСПРЕСС СОЛИД | G63: Воронка парапетная ТехноНИКОЛЬ квадратного сечения с галтелью 100*100*600 | AO63: 320 | AP63: 300 | AQ63: 90 | AR63: 300 | AS63: 80 | AT63: 300 | AU63: 60 | AV63: 300 | AW63: 80 | AY63: 600 | AZ63: 425 | BA63: 240 | BB63: 425 | BC63: 300 | BD63: 425 | BE63: 300 | BF63: 425 | BG63: 300
B64: ТН-КРОВЛЯ СОЛИД ПРОФ | G64: Воронка парапетная 100*100 (квадратное сечение) | AO64: 325 | AP64: 300 | AQ64: 90 | AR64: 300 | AS64: 100 | AT64: 300 | AU64: 80 | AV64: 300 | AW64: 100 | AY64: 610 | AZ64: 425 | BA64: 300 | BB64: 425 | BC64: 300 | BD64: 425 | BE64: 300 | BF64: 425 | BG64: 300
B65: ТН-КРОВЛЯ ЭКСПРЕСС КЛАССИК | G65: Воронка ULTRA парапетная 110 | AO65: 330 | AP65: 300 | AQ65: 90 | AR65: 300 | AS65: 100 | AT65: 300 | AU65: 80 | AV65: 300 | AW65: 100 | AY65: 620 | AZ65: 425 | BA65: 300 | BB65: 425 | BC65: 300 | BD65: 425 | BE65: 300 | BF65: 425 | BG65: 300
B66: Прочее | G66: Воронка парапетная ТехноНИКОЛЬ (круглого сечения) 110*600мм | AO66: 335 | AP66: 300 | AQ66: 90 | AR66: 300 | AS66: 100 | AT66: 300 | AU66: 80 | AV66: 300 | AW66: 100 | AY66: 630 | AZ66: 425 | BA66: 300 | BB66: 425 | BC66: 300 | BD66: 425 | BE66: 300 | BF66: 425 | BG66: 300
G67: Воронка парапетная ТехноНИКОЛЬ с галтелью 110*600 | AO67: 340 | AP67: 300 | AQ67: 90 | AR67: 300 | AS67: 100 | AT67: 300 | AU67: 80 | AV67: 300 | AW67: 100 | AY67: 640 | AZ67: 425 | BA67: 300 | BB67: 425 | BC67: 300 | BD67: 425 | BE67: 300 | BF67: 425 | BG67: 300
AO68: 345 | AP68: 300 | AQ68: 90 | AR68: 300 | AS68: 120 | AT68: 300 | AU68: 100 | AV68: 300 | AW68: 120 | AY68: 650 | AZ68: 425 | BA68: 300 | BB68: 425 | BC68: 300 | BD68: 425 | BE68: 300 | BF68: 425 | BG68: 300
AO69: 350 | AP69: 300 | AQ69: 110 | AR69: 300 | AS69: 120 | AT69: 300 | AU69: 100 | AV69: 300 | AW69: 120 | AY69: 660 | AZ69: 425 | BA69: 300 | BB69: - | BC69: - | BD69: 425 | BE69: 300 | BF69: 425 | BG69: 300
AO70: 355 | AP70: 300 | AQ70: 110 | AR70: 300 | AS70: 120 | AT70: 300 | AU70: 100 | AV70: 300 | AW70: 120 | AY70: 670 | AZ70: 425 | BA70: 300 | BB70: - | BC70: - | BD70: 425 | BE70: 300 | BF70: 425 | BG70: 300
AO71: 360 | AP71: 300 | AQ71: 110 | AR71: 300 | AS71: 120 | AT71: 300 | AU71: 100 | AV71: 300 | AW71: 120 | AY71: 680 | AZ71: - | BA71: - | BB71: - | BC71: - | BD71: - | BE71: - | BF71: - | BG71: -
AO72: 365 | AP72: 300 | AQ72: 110 | AR72: 300 | AS72: 160 | AT72: 300 | AU72: 120 | AV72: 300 | AW72: 160
AO73: 370 | AP73: 350 | AQ73: 90 | AR73: 350 | AS73: 80 | AT73: 350 | AU73: 60 | AV73: 350 | AW73: 80
AO74: 375 | AP74: 350 | AQ74: 90 | AR74: 350 | AS74: 100 | AT74: 350 | AU74: 80 | AV74: 350 | AW74: 100
AO75: 380 | AP75: 350 | AQ75: 90 | AR75: 350 | AS75: 100 | AT75: 350 | AU75: 80 | AV75: 350 | AW75: 100
AO76: 385 | AP76: 350 | AQ76: 90 | AR76: 350 | AS76: 100 | AT76: 350 | AU76: 80 | AV76: 350 | AW76: 100
D77: Ограждения | E77: Кол-во ригелей | G77: ФЗ-44 | H77: ПП-615 | I77: Склады и пром. здания | K77: Склады до 300 | M77: Склады 300-600 | O77: Столбец1 | AO77: 390 | AP77: 350 | AQ77: 90 | AR77: 350 | AS77: 100 | AT77: 350 | AU77: 80 | AV77: 350 | AW77: 100
D78: Кровельное ограждение ТехноНИКОЛЬ КО/PRO/PL/1200-3 | E78: 3 | O78: - | AO78: 395 | AP78: 350 | AQ78: 90 | AR78: 350 | AS78: 120 | AT78: 350 | AU78: 100 | AV78: 350 | AW78: 120
D79: Кровельное ограждение ТехноНИКОЛЬ КО/PRO/PL/600-2 | E79: 2 | G79: Кровельное ограждение ТехноНИКОЛЬ КО/PRO/PL/600-2 | H79: Кровельное ограждение ТехноНИКОЛЬ КО/PRO/PL/1200-3 | I79: Кровельное ограждение ТехноНИКОЛЬ КО/PRO/PL/1200-3 | K79: Кровельное ограждение ТехноНИКОЛЬ КО/PRO/PH/600-2 | M79: Кровельное ограждение ТехноНИКОЛЬ КО/PRO/PV/600-2 | O79: ФЗ-44 | AO79: 400 | AP79: 350 | AQ79: 110 | AR79: 350 | AS79: 120 | AT79: 350 | AU79: 100 | AV79: 350 | AW79: 120
D80: Кровельное ограждение ТехноНИКОЛЬ КО/PROF/1200-3, Zn | E80: 3 | G80: Кровельное ограждение ТехноНИКОЛЬ ККО/СК/600-2 | H80: Кровельное ограждение ТехноНИКОЛЬ ККО/СК/1200-2 | I80: Кровельное ограждение ТехноНИКОЛЬ КО/PRO/PL/600-2 | K80: Кровельное ограждение ТехноНИКОЛЬ КО/PRO/PH/800-3 | M80: Кровельное ограждение ТехноНИКОЛЬ КО/PRO/PV/800-3 | O80: ПП-615 | AO80: 405 | AP80: 350 | AQ80: 110 | AR80: 350 | AS80: 120 | AT80: 350 | AU80: 100 | AV80: 350 | AW80: 120
D81: Кровельное ограждение ТехноНИКОЛЬ КО/PROF/800-2, Zn | E81: 2 | G81: Кровельное ограждение ТехноНИКОЛЬ ККО/СК/800-2 | H81: Кровельное ограждение ТехноНИКОЛЬ КО/ECO/1200-2 | I81: Кровельное ограждение ТехноНИКОЛЬ ККО/СК/600-2 | O81: Склады и пром. здания | AO81: 410 | AP81: 350 | AQ81: 110 | AR81: 350 | AS81: 120 | AT81: 350 | AU81: 100 | AV81: 350 | AW81: 120
D82: Кровельное ограждение ТехноНИКОЛЬ КО/PRO/PH/600-2 | E82: 2 | G82: Кровельное ограждение ТехноНИКОЛЬ ККО/СК/1200-2 | H82: Кровельное ограждение ТехноНИКОЛЬ КО/СК/1200-2 | I82: Кровельное ограждение ТехноНИКОЛЬ ККО/СК/800-2 | AO82: 415 | AP82: 350 | AQ82: 110 | AR82: 350 | AS82: 160 | AT82: 350 | AU82: 120 | AV82: 350 | AW82: 160
D83: Кровельное ограждение ТехноНИКОЛЬ КО/PRO/PH/800-3 | E83: 3 | G83: Кровельное ограждение ТехноНИКОЛЬ КО/ECO/1200-2 | H83: Кровельное ограждение ТехноНИКОЛЬ КО/PROF/1200-3, Zn | I83: Кровельное ограждение ТехноНИКОЛЬ ККО/СК/1200-2 | AO83: 420 | AP83: 350 | AQ83: 160 | AR83: 350 | AS83: 160 | AT83: 350 | AU83: 120 | AV83: 350 | AW83: 160
D84: Кровельное ограждение ТехноНИКОЛЬ КО/PRO/PV/600-2 | E84: 2 | G84: Кровельное ограждение ТехноНИКОЛЬ КО/СК/1200-2 | I84: Кровельное ограждение ТехноНИКОЛЬ КО/ECO/1200-2 | AO84: 425 | AP84: 350 | AQ84: 160 | AR84: 350 | AS84: 160 | AT84: 350 | AU84: 120 | AV84: 350 | AW84: 160
D85: Кровельное ограждение ТехноНИКОЛЬ КО/PRO/PV/800-3 | E85: 3 | I85: Кровельное ограждение ТехноНИКОЛЬ КО/СК/1200-2 | AO85: 430 | AP85: 350 | AQ85: 160 | AR85: 350 | AS85: 160 | AT85: 350 | AU85: 120 | AV85: 350 | AW85: 160
D86: Кровельное ограждение ТехноНИКОЛЬ ККО/СК/600-2 | E86: 2 | I86: Кровельное ограждение ТехноНИКОЛЬ КО/PROF/1200-3, Zn | AO86: 435 | AP86: 350 | AQ86: 160 | AR86: 350 | AS86: 160 | AT86: 350 | AU86: 160 | AV86: 350 | AW86: 160
D87: Кровельное ограждение ТехноНИКОЛЬ ККО/СК/800-2 | E87: 2 | I87: Кровельное ограждение ТехноНИКОЛЬ КО/PROF/800-2, Zn | AO87: 440 | AP87: 350 | AQ87: 160 | AR87: 350 | AS87: 160 | AT87: 350 | AU87: 160 | AV87: 350 | AW87: 160
D88: Кровельное ограждение ТехноНИКОЛЬ ККО/СК/1200-2 | E88: 2 | AO88: 445 | AP88: 350 | AQ88: 160 | AR88: 350 | AS88: 160 | AT88: 350 | AU88: 160 | AV88: 350 | AW88: 160
D89: Кровельное ограждение ТехноНИКОЛЬ КО/ECO/1200-2 | E89: 2 | AO89: 450 | AP89: 350 | AQ89: 160 | AR89: 350 | AS89: 160 | AT89: 350 | AU89: 160 | AV89: 350 | AW89: 160
D90: Кровельное ограждение ТехноНИКОЛЬ КО/СК/1200-2 | E90: 2 | G90: В выпадающем списке представлены не все ограждения из прайса, т.к. остальные ограждения расчитываются в зависимости от условий | AO90: 455 | AP90: 350 | AQ90: 160 | AR90: 350 | AS90: 200 | AT90: 350 | AU90: 160 | AV90: 350 | AW90: 200
AO91: 460 | AP91: 425 | AQ91: 110 | AR91: 350 | AS91: 200 | AT91: 350 | AU91: 160 | AV91: 350 | AW91: 200
AO92: 465 | AP92: 425 | AQ92: 110 | AR92: 350 | AS92: 200 | AT92: 350 | AU92: 160 | AV92: 350 | AW92: 200
AO93: 470 | AP93: 425 | AQ93: 110 | AR93: 350 | AS93: 200 | AT93: 350 | AU93: 160 | AV93: 350 | AW93: 200
AO94: 475 | AP94: 425 | AQ94: 110 | AR94: 350 | AS94: 200 | AT94: 350 | AU94: 200 | AV94: 350 | AW94: 200
AO95: 480 | AP95: 425 | AQ95: 120 | AR95: 350 | AS95: 200 | AT95: 350 | AU95: 200 | AV95: 350 | AW95: 200
AO96: 485 | AP96: 425 | AQ96: 120 | AR96: 350 | AS96: 200 | AT96: 350 | AU96: 200 | AV96: 350 | AW96: 200
AO97: 490 | AP97: 425 | AQ97: 160 | AR97: 350 | AS97: 200 | AT97: 350 | AU97: 200 | AV97: 350 | AW97: 200
AO98: 500 | AP98: 425 | AQ98: 160 | AR98: 425 | AS98: 160 | AT98: 350 | AU98: 200 | AV98: 350 | AW98: 200
AO99: 510 | AP99: 425 | AQ99: 160 | AR99: 425 | AS99: 160 | AT99: 350 | AU99: 200 | AV99: 350 | AW99: 200
AO100: 520 | AP100: 425 | AQ100: 160 | AR100: 425 | AS100: 160 | AT100: 425 | AU100: 160 | AV100: 425 | AW100: 160
AO101: 530 | AP101: 425 | AQ101: 200 | AR101: 425 | AS101: 200 | AT101: 425 | AU101: 160 | AV101: 425 | AW101: 160
AO102: 540 | AP102: 425 | AQ102: 200 | AR102: 425 | AS102: 200 | AT102: 425 | AU102: 160 | AV102: 425 | AW102: 160
AO103: 550 | AP103: 425 | AQ103: 200 | AR103: 425 | AS103: 200 | AT103: 425 | AU103: 200 | AV103: 425 | AW103: 200
AO104: 560 | AP104: 425 | AQ104: 200 | AR104: 425 | AS104: 200 | AT104: 425 | AU104: 200 | AV104: 425 | AW104: 200
AO105: 570 | AP105: 425 | AQ105: 240 | AR105: 425 | AS105: 300 | AT105: 425 | AU105: 200 | AV105: 425 | AW105: 200
AO106: 580 | AP106: 425 | AQ106: 240 | AR106: 425 | AS106: 300 | AT106: 425 | AU106: 200 | AV106: 425 | AW106: 200
AO107: 590 | AP107: 425 | AQ107: 240 | AR107: 425 | AS107: 300 | AT107: 425 | AU107: 300 | AV107: 425 | AW107: 300
AO108: 600 | AP108: 425 | AQ108: 240 | AR108: 425 | AS108: 300 | AT108: 425 | AU108: 300 | AV108: 425 | AW108: 300
AO109: 610 | AP109: 425 | AQ109: 300 | AR109: 425 | AS109: 300 | AT109: 425 | AU109: 300 | AV109: 425 | AW109: 300
AO110: 620 | AP110: 425 | AQ110: 300 | AR110: 425 | AS110: 300 | AT110: 425 | AU110: 300 | AV110: 425 | AW110: 300
AO111: 630 | AP111: 425 | AQ111: 300 | AR111: 425 | AS111: 300 | AT111: 425 | AU111: 300 | AV111: 425 | AW111: 300
AO112: 640 | AP112: 425 | AQ112: 300 | AR112: 425 | AS112: 300 | AT112: 425 | AU112: 300 | AV112: 425 | AW112: 300
AO113: 650 | AP113: 425 | AQ113: 300 | AR113: 425 | AS113: 300 | AT113: 425 | AU113: 300 | AV113: 425 | AW113: 300
AO114: 660 | AP114: 425 | AQ114: 300 | AR114: 425 | AS114: 300 | AT114: 425 | AU114: 300 | AV114: 425 | AW114: 300
AO115: 670 | AP115: - | AQ115: - | AR115: - | AS115: - | AT115: 425 | AU115: 300 | AV115: 425 | AW115: 300
AO116: 680 | AP116: - | AQ116: - | AR116: - | AS116: - | AT116: 425 | AU116: 300 | AV116: 425 | AW116: 300
AO117: 690 | AP117: - | AQ117: - | AR117: - | AS117: - | AT117: - | AU117: - | AV117: - | AW117: -
AO118: 700 | AP118: - | AQ118: - | AR118: - | AS118: - | AT118: - | AU118: - | AV118: - | AW118: -

Sheet Прайс (hidden)
C2: Вид расчета | D2: Сложность | E2: Трудозатраты (чел/час) | I2: Стоимость часа работ (руб.) | J2: Себестоимость расчета
E3: Площадь (кв.м) | J3: Площадь (кв.м)
Q4: Сложность | R4: количество элементов (диапазоны)
E5: до 1000 | F5: от 1001 до 5000 | G5: от 5001 до 10 000 | H5: от 10 001 | J5: до 1000 | K5: от 1001 до 5000 | L5: от 5001 до 10 000 | M5: от 10 001 | R5: до 1000 | T5: от 1001 до 5000 | V5: от 5001 до 10 000 | X5: от 10 001 | AA5: =IF(AC6=1,R5,IF(AC6=2,T5,IF(AC6=3,V5,IF(AC6=4,X5,0)))) -> от 10 001 | AC5: =SUMIF(Свойства_расчета!$H:$H,"Да",Свойства_расчета!$D:$D) -> 24170 | AD5: =SUM(Свойства_расчета!$K$3:$K$5) -> 179
C6: Расчет количества клиновидной теплоизоляции | D6: 1 | E6: 0.6 | F6: 0.8 | G6: 1 | H6: 1.2 | I6: 250 | J6: 1200 | K6: 1600 | L6: 2000 | M6: 2400 | Q6: 1 | R6: 1 | S6: 29 | T6: 1 | U6: 39 | V6: 1 | W6: 79 | X6: 1 | Y6: 149 | AA6: =IF($AC$6=1,R6,IF($AC$6=2,T6,IF($AC$6=3,V6,IF($AC$6=4,X6,0)))) -> 1 | AB6: 149 | AC6: =IF(AC5=0,0,IF(AC5<=1000,1,IF(AND(AC5>1000,AC5<=5000),2,IF(AND(AC5>5000,AC5<=10000),3,IF(AC5>10000,4,0))))) -> 4 | AD6: =COUNTIF(Свойства_расчета!$H:$H,"Да") -> 1
D7: 2 | E7: 0.9 | F7: 1.2 | G7: 1.5 | H7: 1.8 | I7: 250 | J7: 1800 | K7: 2400 | L7: 3000 | M7: 3600 | O7: 0.5 | Q7: 2 | R7: 30 | S7: 69 | T7: 40 | U7: 149 | V7: 80 | W7: 199 | X7: 150 | Y7: 349 | AA7: 150 | AB7: 349 | AC7: =IF(AD5=0,0,IF(AD5<=AB6,1,IF(AND(AD5>=AA7,AD5<=AB7),2,IF(AD5>=AA8,3,0)))) -> 2
D8: 3 | E8: 1.2 | F8: 1.6 | G8: 2 | H8: 2.4 | I8: 250 | J8: 2400 | K8: 3200 | L8: 4000 | M8: 4800 | Q8: 3 | R8: 70 | S8: + | T8: 150 | U8: + | V8: 200 | W8: + | X8: 350 | Y8: + | AA8: 350 | AB8: + | AC8: =IF(OR(AC6=0,AC7=0),0,INDEX(J6:M8,AC7,AC6)) -> 3600
C9: Расчет количества клиновидной теплоизоляции основной уклон+контруклон XPS, КВ | D9: 1 | E9: 0.8 | F9: 1.1 | G9: 1.2 | H9: 1.4 | I9: 250 | J9: 1600 | K9: 2200 | L9: 2400 | M9: 2800
D10: 2 | E10: =E9*1.5 -> 1.2 | F10: =F9*1.5 -> 1.65 | G10: =G9*1.5 -> 1.8 | H10: =H9*1.5 -> 2.1 | I10: 250 | J10: 2400 | K10: 3300 | L10: 3600 | M10: 4200 | O10: 0.5
D11: 3 | E11: =E9*2 -> 1.6 | F11: =F9*2 -> 2.2 | G11: =G9*2 -> 2.4 | H11: =H9*2 -> 2.8 | I11: 250 | J11: 3200 | K11: 4400 | L11: 4800 | M11: 5600
C12: Расчет количества клиновидной теплоизоляции контр уклон ПИР | D12: 1 | E12: =0.7 -> 0.7 | F12: 0.9 | G12: 1.1 | H12: 1.3 | I12: 250 | J12: 1400 | K12: 1800 | L12: 2200 | M12: 2600
D13: 2 | E13: =E12*1.5 -> 1.05 | F13: =F12*1.5 -> 1.35 | G13: =G12*1.5 -> 1.65 | H13: =H12*1.5 -> 1.95 | I13: 250 | J13: 2100 | K13: 2700 | L13: 3300 | M13: 3900 | O13: 0.5
D14: 3 | E14: =E12*2 -> 1.4 | F14: =F12*2 -> 1.8 | G14: =G12*2 -> 2.2 | H14: =H12*2 -> 2.6 | I14: 250 | J14: 2800 | K14: 3600 | L14: 4400 | M14: 5200
C15: Расчет количества клиновидной теплоизоляции основной уклон+контруклон ПИР | D15: 1 | E15: =0.9 -> 0.9 | F15: 1.2 | G15: 1.3 | H15: 1.5 | I15: 250 | J15: 1800 | K15: 2400 | L15: 2600 | M15: 3000
D16: 2 | E16: =E15*1.5 -> 1.35 | F16: =F15*1.5 -> 1.8 | G16: =G15*1.5 -> 1.95 | H16: =H15*1.5 -> 2.25 | I16: 250 | J16: 2700 | K16: 3600 | L16: 3900 | M16: 4500 | O16: 0.5
D17: 3 | E17: =E15*2 -> 1.8 | F17: =F15*2 -> 2.4 | G17: =G15*2 -> 2.6 | H17: =H15*2 -> 3 | I17: 250 | J17: 3600 | K17: 4800 | L17: 5200 | M17: 6000
C18: Расчет количества материалов Плоской кровли ПМ | D18: 1 | E18: 0.6 | F18: 0.8 | G18: 1 | H18: 1.2 | I18: 250 | J18: 1200 | K18: 1600 | L18: 2000 | M18: 2400
D19: 2 | E19: =E18*1.5 -> 0.9 | F19: =F18*1.5 -> 1.2 | G19: =G18*1.5 -> 1.5 | H19: =H18*1.5 -> 1.8 | I19: 250 | J19: 1800 | K19: 2400 | L19: 3000 | M19: 3600 | O19: 0.5
D20: 3 | E20: =E18*2 -> 1.2 | F20: =F18*2 -> 1.6 | G20: =G18*2 -> 2 | H20: =H18*2 -> 2.4 | I20: 250 | J20: 2400 | K20: 3200 | L20: 4000 | M20: 4800
C21: Расчет количества материалов Плоской кровли РМ | D21: 1 | E21: 0.6 | F21: 0.8 | G21: 1 | H21: 1.2 | I21: 250 | J21: 1200 | K21: 1600 | L21: 2000 | M21: 2400
D22: 2 | E22: =E21*1.5 -> 0.9 | F22: =F21*1.5 -> 1.2 | G22: =G21*1.5 -> 1.5 | H22: =H21*1.5 -> 1.8 | I22: 250 | J22: 1800 | K22: 2400 | L22: 3000 | M22: 3600 | O22: 0.5
D23: 3 | E23: =E21*2 -> 1.2 | F23: =F21*2 -> 1.6 | G23: =G21*2 -> 2 | H23: =H21*2 -> 2.4 | I23: 250 | J23: 2400 | K23: 3200 | L23: 4000 | M23: 4800
C24: Ветровой расчет | D24: 1 | E24: 0.5 | F24: 0.5 | G24: 0.5 | H24: 0.5 | I24: 250 | J24: 2000 | K24: 2000 | L24: 2000 | M24: 2000
D25: 2 | E25: =E24*1.5 -> 0.75 | F25: =F24*1.5 -> 0.75 | G25: =G24*1.5 -> 0.75 | H25: =H24*1.5 -> 0.75 | I25: 250 | J25: 3000 | K25: 3000 | L25: 3000 | M25: 3000 | O25: 0.25
D26: 3 | E26: =E24*2 -> 1 | F26: =F24*2 -> 1 | G26: =G24*2 -> 1 | H26: =H24*2 -> 1 | I26: 250 | J26: 4000 | K26: 4000 | L26: 4000 | M26: 4000
C27: Расчет количества материалов утеплителя для фасада | D27: 1 | E27: 0.6 | F27: 0.8 | G27: 1 | H27: 2 | I27: 250 | J27: 1200 | K27: 1600 | L27: 2000 | M27: 4000
D28: 2 | E28: =E27*1.5 -> 0.9 | F28: =F27*1.5 -> 1.2 | G28: =G27*1.5 -> 1.5 | H28: =H27*1.5 -> 3 | I28: 250 | J28: 1800 | K28: 2400 | L28: 3000 | M28: 6000 | O28: 0.5
D29: 3 | E29: =E27*2 -> 1.2 | F29: =F27*2 -> 1.6 | G29: =G27*2 -> 2 | H29: =H27*2 -> 4 | I29: 250 | J29: 2400 | K29: 3200 | L29: 4000 | M29: 8000
C30: Расчет количества изоляции для перегородок | D30: 1 | E30: 0.7 | F30: 1.2 | G30: 1.5 | H30: 2 | I30: 250 | J30: 1400 | K30: 2400 | L30: 3000 | M30: 4000
D31: 2 | E31: =E30*1.5 -> 1.05 | F31: =F30*1.5 -> 1.8 | G31: =G30*1.5 -> 2.25 | H31: =H30*1.5 -> 3 | I31: 250 | J31: 2100 | K31: 3600 | L31: 4500 | M31: 6000 | O31: 0.5
D32: 3 | E32: =E30*2 -> 1.4 | F32: =F30*2 -> 2.4 | G32: =G30*2 -> 3 | H32: =H30*2 -> 4 | I32: 250 | J32: 2800 | K32: 4800 | L32: 6000 | M32: 8000
C33: Расчет количества материалов Фундаменты | D33: 1 | E33: 0.6 | F33: 0.8 | G33: 1 | H33: 2 | I33: 250 | J33: 780 | K33: 1040 | L33: 1300 | M33: 2600
D34: 2 | E34: =E33*1.5 -> 0.9 | F34: =F33*1.5 -> 1.2 | G34: =G33*1.5 -> 1.5 | H34: =H33*1.5 -> 3 | I34: 250 | J34: 1170 | K34: 1560 | L34: 1950 | M34: 3900 | O34: 0.5
D35: 3 | E35: =E33*2 -> 1.2 | F35: =F33*2 -> 1.6 | G35: =G33*2 -> 2 | H35: =H33*2 -> 4 | I35: 250 | J35: 1560 | K35: 2080 | L35: 2600 | M35: 5200
C36: Расчет количества материалов изоляции для полов | D36: 1 | E36: 0.6 | F36: 0.8 | G36: 1 | H36: 1.8 | I36: 250 | J36: 1200 | K36: 1600 | L36: 2000 | M36: 3600
D37: 2 | E37: =E36*1.5 -> 0.9 | F37: =F36*1.5 -> 1.2 | G37: =G36*1.5 -> 1.5 | H37: =H36*1.5 -> 2.7 | I37: 250 | J37: 1800 | K37: 2400 | L37: 3000 | M37: 5400 | O37: 0.5
D38: 3 | E38: =E36*2 -> 1.2 | F38: =F36*2 -> 1.6 | G38: =G36*2 -> 2 | H38: =H36*2 -> 3.6 | I38: 250 | J38: 2400 | K38: 3200 | L38: 4000 | M38: 7200
C39: Анализ документации | D39: 1 | E39: 0.5 | F39: 0.5 | G39: 0.5 | H39: 0.5 | I39: 250 | J39: 1000 | K39: 1000 | L39: 1000 | M39: 1000
D40: 2 | E40: 1 | F40: 1 | G40: 1 | H40: 1 | I40: 250 | J40: 2000 | K40: 2000 | L40: 2000 | M40: 2000 | O40: 0.5
D41: 3 | E41: 2 | F41: 2 | G41: 2 | H41: 2 | I41: 250 | J41: 4000 | K41: 4000 | L41: 4000 | M41: 4000
C42: Создание схемы ветровых зон | D42: 1 | E42: 1.5 | F42: 2 | G42: 2.8 | H42: 3.5 | I42: 250 | J42: 6000 | K42: 8000 | L42: 11200 | M42: 14000
D43: 2 | E43: =E42*1.5 -> 2.25 | F43: =F42*1.5 -> 3 | G43: =G42*1.5 -> 4.2 | H43: =H42*1.5 -> 5.25 | I43: 250 | J43: 9000 | K43: 12000 | L43: 16800 | M43: 21000 | O43: 0.25
D44: 3 | E44: =E42*2 -> 3 | F44: =F42*2 -> 4 | G44: =G42*2 -> 5.6 | H44: =H42*2 -> 7 | I44: 250 | J44: 12000 | K44: 16000 | L44: 22400 | M44: 28000
C45: Оформление раскладки гидроизоляции на кровле | D45: 1 | E45: 2 | F45: 2.5 | G45: 3 | H45: 4 | I45: 250 | J45: 6000 | K45: 8000 | L45: 11200 | M45: 14000
D46: 2 | E46: =E45*1.5 -> 3 | F46: =F45*1.5 -> 3.75 | G46: =G45*1.5 -> 4.5 | H46: =H45*1.5 -> 6 | I46: 250 | J46: 9000 | K46: 12000 | L46: 16800 | M46: 21000 | O46: 0.25
D47: 3 | E47: =E45*2 -> 4 | F47: =F45*2 -> 5 | G47: =G45*2 -> 6 | H47: =H45*2 -> 8 | I47: 250 | J47: 12000 | K47: 16000 | L47: 22400 | M47: 28000
C48: Расчет ограждения | D48: 1 | E48: 0.4 | F48: 0.5 | G48: 0.6 | H48: 0.8 | I48: 1000 | J48: =IF(D48=1,E48*I48,IF(D48=2,E48*I48*1.5, E48*I48*2)) -> 400 | K48: =IF(D48=1,F48*I48,IF(D48=2,F48*I48*1.5, F48*I48*2)) -> 500 | L48: =IF(D48=1,G48*I48,IF(D48=2,G48*I48*1.5, G48*I48*2)) -> 600 | M48: =IF(D48=1,H48*I48,IF(D48=2,H48*I48*1.5, H48*I48*2)) -> 800 | P48: =J48/4 -> 100 | Q48: =K48/4 -> 125 | R48: =L48/4 -> 150 | S48: 200
D49: 2 | E49: =E48*1.5 -> 0.6 | F49: =F48*1.5 -> 0.75 | G49: =G48*1.5 -> 0.9 | H49: =H48*1.5 -> 1.2 | I49: 1000 | J49: =E49*I49 -> 600 | K49: =F49*I49 -> 750 | L49: =G49*I49 -> 900 | M49: =H49*I49 -> 1200 | P49: =J49/4 -> 150 | Q49: =K49/4 -> 187.5 | R49: =L49/4 -> 225 | S49: =M49/4 -> 300
D50: 3 | E50: =E48*2 -> 0.8 | F50: =F48*2 -> 1 | G50: =G48*2 -> 1.2 | H50: =H48*2 -> 1.6 | I50: 1000 | J50: =E50*I50 -> 800 | K50: =F50*I50 -> 1000 | L50: =G50*I50 -> 1200 | M50: =H50*I50 -> 1600 | P50: 200 | Q50: 250 | R50: 300 | S50: 400
C51: Расчет количества воронок | D51: 1 | E51: 0.4 | F51: 0.4 | G51: 0.4 | H51: 0.4 | I51: 1000 | J51: =IF(D51=1,E51*I51,IF(D51=2,E51*I51*1.5, E51*I51*2)) -> 400 | K51: =IF(D51=1,F51*I51,IF(D51=2,F51*I51*1.5, F51*I51*2)) -> 400 | L51: =IF(D51=1,G51*I51,IF(D51=2,G51*I51*1.5, G51*I51*2)) -> 400 | M51: =IF(D51=1,H51*I51,IF(D51=2,H51*I51*1.5, H51*I51*2)) -> 400
D52: 2 | E52: =E51*1.5 -> 0.6 | F52: =F51*1.5 -> 0.6 | G52: 0.6 | H52: 0.6 | I52: 1000 | J52: =E52*I52 -> 600 | K52: =F52*I52 -> 600 | L52: =G52*I52 -> 600 | M52: =H52*I52 -> 600
D53: 3 | E53: =E51*2 -> 0.8 | F53: =F51*2 -> 0.8 | G53: 0.8 | H53: 0.8 | I53: 1000 | J53: =E53*I53 -> 800 | K53: =F53*I53 -> 800 | L53: =G53*I53 -> 800 | M53: =H53*I53 -> 800
C54: Теплотехнический расчет по методике СП 50 | D54: 1 | J54: 800 | K54: 800 | L54: 800 | M54: 800 | O54: 0.25
D55: 2 | J55: 1200 | K55: 1200 | L55: 1200 | M55: 1200
D56: 3 | J56: 2000 | K56: 2000 | L56: 2000 | M56: 2000
C59: Вид работ | D59: Сложность | E59: Трудозатраты (чел/час) | I59: Стоимость часа работ (руб.) | J59: Себестоимость расчета
E60: Площадь (кв.м) | J60: Площадь (кв.м)
E61: до 500 | F61: от 501 до 1500 | G61: от 1501 до 3 000 | H61: от 3001 | J61: до 500 | K61: от 501 до 1500 | L61: от 1501 до 3 000 | M61: от 3001
C62: Расчет количества материалов изоляции | D62: 1 | E62: 0.6 | F62: 0.8 | G62: 1 | H62: 1.5 | I62: 250 | J62: =IF(D62=1,E62*I62,IF(D62=2,E62*I62*2, E62*I62*3)) -> 150 | K62: =IF(D62=1,F62*I62,IF(D62=2,F62*I62*2, F62*I62*3)) -> 200 | L62: =IF(D62=1,G62*I62,IF(D62=2,G62*I62*2, G62*I62*3)) -> 250 | M62: =IF(D62=1,H62*I62,IF(D62=2,H62*I62*2, H62*I62*3)) -> 375
D63: 2 | E63: =E62*2 -> 1.2 | F63: =F62*2 -> 1.6 | G63: =G62*2 -> 2 | H63: 3 | I63: 250 | J63: =E63*I63 -> 300 | K63: =F63*I63 -> 400 | L63: =G63*I63 -> 500 | M63: =H63*I63 -> 750
D64: 3 | E64: =E62*3 -> 1.8 | F64: =F62*3 -> 2.4 | G64: =G62*3 -> 3 | H64: 4 | I64: 250 | J64: =E64*I64 -> 450 | K64: =F64*I64 -> 600 | L64: =G64*I64 -> 750 | M64: =H64*I64 -> 1000
C65: Расчет водосточной системы | D65: 1 | E65: 0.3 | F65: 0.3 | G65: 0.3 | H65: 0.3 | I65: 250 | J65: =IF(D65=1,E65*I65,IF(D65=2,E65*I65*2, E65*I65*3)) -> 75 | K65: =IF(D65=1,F65*I65,IF(D65=2,F65*I65*2, F65*I65*3)) -> 75 | L65: =IF(D65=1,G65*I65,IF(D65=2,G65*I65*2, G65*I65*3)) -> 75 | M65: =IF(D65=1,H65*I65,IF(D65=2,H65*I65*2, H65*I65*3)) -> 75
D66: 2 | E66: =E65*2 -> 0.6 | F66: =F65*2 -> 0.6 | G66: =G65*2 -> 0.6 | H66: =H65*2 -> 0.6 | I66: 250 | J66: =E66*I66 -> 150 | K66: =F66*I66 -> 150 | L66: =G66*I66 -> 150 | M66: =H66*I66 -> 150
D67: 3 | E67: 0.8 | F67: 0.8 | G67: 0.8 | H67: 0.8 | I67: 250 | J67: =E67*I67 -> 200 | K67: =F67*I67 -> 200 | L67: =G67*I67 -> 200 | M67: =H67*I67 -> 200
C72: Вид работ | D72: Сложность | E72: Трудозатраты (чел/час) | F72: Стоимость часа работ (руб.) | G72: Себестоимость расчета
C73: Теплотехнический расчет методика СП 23-02-2003 | D73: - | E73: 0.3 | F73: 250 | G73: 600
C74: Вид работ | D74: Сложность | E74: Трудозатраты (чел/час) | F74: Стоимость часа работ (руб.) | G74: Себестоимость расчета
C75: Теплотехнический расчет методика СП 23-02-2003 | D75: - | E75: 0.3 | F75: 250 | G75: 600
C76: Вид работ | D76: Сложность | E76: Трудозатраты (чел/час) | F76: Стоимость часа работ (руб.) | G76: Себестоимость расчета
C77: Расчет паронакопления СП 50-13330.2012 | D77: - | E77: 0.3 | F77: 250 | G77: 600
C80: Вид работ | D80: Сложность | E80: Трудозатраты (чел/час) | F80: Стоимость часа работ (руб.) | G80: Себестоимость расчета
C81: Акустический расчет перекрытия | D81: - | E81: 0.6 | F81: 1000 | G81: 780
C82: Акустический расчет стены | D82: - | E82: 0.6 | F82: 1000 | G82: 780
C87: Вид работ | D87: Сложность | E87: Трудозатраты (чел/час) | F87: Стоимость часа работ (руб.) | G87: Себестоимость расчета
C88: Расчет количества материалов ТН для УШП | D88: 1 | E88: 0.8 | F88: 250 | G88: 1040
D89: 2 | E89: 1 | F89: 250 | G89: 1300
D90: 3 | E90: 1.2 | F90: 250 | G90: 1560
C91: Расчет нагрузок здания под УШП | D91: 1 | E91: 1 | F91: 250 | G91: 1300
D92: 2 | E92: =E91*1.5 -> 1.5 | F92: 250 | G92: 1950
D93: 3 | E93: =E91*2 -> 2 | F93: 250 | G93: 2600
C98: Вид работ | D98: Сложность | E98: Трудозатраты (чел/час) | I98: Стоимость часа работ(руб.) | J98: Себестоимость расчета
E99: Площадь (кв.м) | J99: Площадь (кв.м)
E100: до 500 | F100: от 501 до 1000 | G100: от 1001 до 5 000 | H100: от 5 001 | J100: до 500 | K100: от 501 до 1000 | L100: от 1001 до 5 000 | M100: от 5 001
C101: Расчет количества материалов Техническая изоляция (плоские элементы) | D101: 1 | E101: 0.6 | F101: 0.8 | G101: 1 | H101: 2 | I101: 250 | J101: 780 | K101: 1040 | L101: 1300 | M101: 2600
D102: 2 | E102: =E101*1.5 -> 0.9 | F102: =F101*1.5 -> 1.2 | G102: =G101*1.5 -> 1.5 | H102: =H101*1.5 -> 3 | I102: 250 | J102: 1170 | K102: 1560 | L102: 1950 | M102: 3900
D103: 3 | E103: =E101*2 -> 1.2 | F103: =F101*2 -> 1.6 | G103: =G101*2 -> 2 | H103: =H101*2 -> 4 | I103: 250 | J103: 1560 | K103: 2080 | L103: 2600 | M103: 5200
C105: Вид работ | D105: Сложность | E105: Трудозатраты (чел/час) | I105: Стоимость часа работ(руб.) | J105: Себестоимость расчета
E106: Погонаж мп | J106: Погонаж мп
E107: до 100 | F107: от 101 до 500 | G107: от 501 до 1 000 | H107: от 1 000 | J107: до 100 | K107: от 101 до 500 | L107: от 501 до 1 000 | M107: от 1 000
C108: Расчет количества материалов Техническая изоляция (трубопроводы) | D108: 1 | E108: 0.6 | F108: 0.8 | G108: 1 | H108: 2 | I108: 250 | J108: 780 | K108: 1040 | L108: 1300 | M108: 2600
D109: 2 | E109: =E108*1.5 -> 0.9 | F109: =F108*1.5 -> 1.2 | G109: =G108*1.5 -> 1.5 | H109: =H108*1.5 -> 3 | I109: 250 | J109: 1170 | K109: 1560 | L109: 1950 | M109: 3900
D110: 3 | E110: =E108*2 -> 1.2 | F110: =F108*2 -> 1.6 | G110: =G108*2 -> 2 | H110: =H108*2 -> 4 | I110: 250 | J110: 1560 | K110: 2080 | L110: 2600 | M110: 5200
C111: Расчет толщины Технической изоляции (1 элемент) | D111: - | E111: 0.3 | F111: 0.3 | G111: 0.3 | H111: 0.3 | I111: 250 | J111: 390 | K111: 390 | L111: 390 | M111: 390
C116: Вид работ | D116: Сложность | E116: Трудозатраты (чел/час) | I116: Стоимость часа работ(руб.) | J116: Себестоимость расчета
E118: Погонаж мп | J118: Погонаж мп
E119: до 100 | F119: от 101 до 500 | G119: от 501 до 1 000 | H119: от 1 001 | J119: до 100 | K119: от 101 до 500 | L119: от 501 до 1 000 | M119: от 1 001
C120: Расчет количества материалов огнезащита металла | D120: 1 | E120: 0.5 | F120: 0.75 | G120: 1 | H120: 2 | I120: 250 | J120: 650 | K120: 975 | L120: 1300 | M120: 2600
D121: 2 | E121: =E120*1.5 -> 0.75 | F121: =F120*1.5 -> 1.125 | G121: =G120*1.5 -> 1.5 | H121: =H120*1.5 -> 3 | I121: 250 | J121: 975 | K121: 1462.5 | L121: 1950 | M121: 3900
D122: 3 | E122: =E120*2 -> 1 | F122: =F120*2 -> 1.5 | G122: =G120*2 -> 2 | H122: =H120*2 -> 4 | I122: 250 | J122: 1300 | K122: 1950 | L122: 2600 | M122: 5200
C123: Расчет толщины огнезащита металла (1 элемент) | D123: - | E123: 0.4 | F123: 0.4 | G123: 0.4 | H123: 0.4 | I123: 250 | J123: 520 | K123: 520 | L123: 520 | M123: 520
C132: =ОБЩИЕ_ДАННЫЕ!I133 -> RUS | D132: RUS | E132: INT | F132: =C132 -> RUS
C133: Клины | D133: КИ | E133: КИ_Е | F133: =INDEX($D$133:$E$144,MATCH(C133,$C$133:$C$144,0),MATCH($C$132,$D$132:$E$132,0)) -> КИ
C134: МПК ПМ | D134: МПК ПМ | E134: МПК ПМ_Е | F134: =INDEX($D$133:$E$144,MATCH(C134,$C$133:$C$144,0),MATCH($C$132,$D$132:$E$132,0)) -> МПК ПМ
C135: МПК РМ | D135: МПК РМ | E135: МПК РМ_Е | F135: МПК РМ
C136: Ветер ПМ | D136: В ПМ | E136: В ПМ_Е | F136: В ПМ
C137: Ветер РМ | D137: В РМ | E137: В РМ_Е | F137: =INDEX($D$133:$E$144,MATCH(C137,$C$133:$C$144,0),MATCH($C$132,$D$132:$E$132,0)) -> В РМ
C138: Т | D138: Т | E138: Т_Е | F138: Т
C139: Тепло | D139: Тепло | E139: Тепло_Е | F139: Тепло
C140: ПАР | D140: ПАР | E140: ПАР_Е | F140: ПАР
C141: Анализ | D141: А | E141: А_Е | F141: А
C142: Огражд | D142: ОГР | E142: ОГР_Е | F142: ОГР
C143: Схемы Ветровых Зон | D143: СВЗ | E143: СВЗ_Е | F143: СВЗ
C144: Раскладка ГИ | D144: РГИ | E144: РГИ_Е | F144: РГИ
C145: Количество воронок ПМ | D145: ВВ ПМ | E145: ВВ ПМ_Е | F145: =INDEX($D$133:$E$145,MATCH(C145,$C$133:$C$145,0),MATCH($C$132,$D$132:$E$132,0)) -> ВВ ПМ
C146: Количество воронок РМ | D146: ВВ РМ | E146: ВВ РМ_Е | F146: =INDEX($D$133:$E$146,MATCH(C146,$C$133:$C$146,0),MATCH($C$132,$D$132:$E$132,0)) -> ВВ РМ
C147: Коээфициент ставки: | F147: =IF(C132=D132,1,1.5) -> 1

Sheet Деление по СБЕ (hidden)
A1: Тип расчета | C1: КВ | D1: XPS | E1: ПИР | F1: ПМ | G1: РМ | H1: МиСХ | I1: Плантер | J1: СК | K1: ТИ и ОГН | L1: Итого | M1: Стоимость
A2: Клины | B2: Вес | C2: 0.3333333333 | D2: 0.3333333333 | E2: 0.3333333333 | F2: - | G2: - | H2: - | I2: - | L2: =SUM(C2:E2) -> 1
B3: =IF(M6=0,0,"Кол-во") -> Кол-во | C3: =IF(INDEX(Деление_СБЕ[],MATCH("Клины",Деление_СБЕ[Расчет материалов],0),MATCH("КВ",Деление_СБЕ[#Headers],0))>0,1,0) -> 1 | D3: =IF(INDEX(Деление_СБЕ[],MATCH("Клины",Деление_СБЕ[Расчет материалов],0),MATCH("XPS",Деление_СБЕ[#Headers],0))>0,1,0) -> 0 | E3: =IF(INDEX(Деление_СБЕ[],MATCH("Клины",Деление_СБЕ[Расчет материалов],0),MATCH("PIR",Деление_СБЕ[#Headers],0))>0,1,0) -> 0 | F3: - | G3: - | H3: - | I3: - | L3: 1
B4: Промежуточный вес | C4: =IFERROR(C3/L3*C2,0) -> 0.3333333333 | D4: =IFERROR(D3/L3*D2,0) -> 0 | E4: =IFERROR(E3/L3*E2,0) -> 0 | F4: - | G4: - | H4: - | I4: - | L4: 0.3333333333
B5: Итоговый вес | C5: =IFERROR(C4*L2/L4,0) -> 1 | D5: =IFERROR(D4*L2/L4,0) -> 0 | E5: =IFERROR(E4*L2/L4,0) -> 0 | F5: - | G5: - | H5: - | I5: - | L5: 1
B6: =IF(M6=0,0,"Стоимость") -> Стоимость | C6: =$M$6*C5 -> 1800 | D6: =$M$6*D5 -> 0 | E6: =$M$6*E5 -> 0 | L6: 1800 | M6: =ОБЩИЕ_ДАННЫЕ!P33*0.5 -> 1800
A7: Клин КУ | B7: Вес | C7: 0.3333333333 | D7: 0.3333333333 | E7: 0.3333333333 | F7: - | G7: - | H7: - | I7: - | L7: 1
B8: =IF(M11=0,0,"Кол-во") ->  | C8: =IF(SUM(INDIRECT({"ТИП1";"ТИП2";"ТИП3";"ТИП4";"ТИП5";"ТИП6";"ТИП7";"ТИП8";"ТИП9";"ТИП10"}&"!AB21"))>0,1,0) ->  | D8: =IF(SUM(INDIRECT({"ТИП1";"ТИП2";"ТИП3";"ТИП4";"ТИП5";"ТИП6";"ТИП7";"ТИП8";"ТИП9";"ТИП10"}&"!AC21"))>0,1,0) ->  | E8: =IF(SUM(INDIRECT({"ТИП1";"ТИП2";"ТИП3";"ТИП4";"ТИП5";"ТИП6";"ТИП7";"ТИП8";"ТИП9";"ТИП10"}&"!AD21"))>0,1,0) ->  | F8: - | G8: - | H8: - | I8: -
B9: Промежуточный вес | C9: =IFERROR(C8/L8*C7,0) -> 0 | D9: =IFERROR(D8/L8*D7,0) -> 0 | E9: =IFERROR(E8/L8*E7,0) -> 0 | F9: - | G9: - | H9: - | I9: - | L9: 0
B10: Итоговый вес | C10: =IFERROR(C9*L7/L9,0) -> 0 | D10: =IFERROR(D9*L7/L9,0) -> 0 | E10: =IFERROR(E9*L7/L9,0) -> 0 | F10: - | G10: - | H10: - | I10: - | L10: 0
B11: =IF(M11=0,0,"Стоимость") ->  | C11: =$M$11*C10 ->  | D11: =$M$11*D10 ->  | E11: =$M$11*E10 ->  | M11: =(ОБЩИЕ_ДАННЫЕ!#REF!)*0.5 -> 
A12: Клин КУ как ОУ | B12: Вес | C12: 0.3333333333 | D12: 0.3333333333 | E12: 0.3333333333 | F12: - | G12: - | H12: - | I12: - | L12: 1
B13: =IF(M16=0,0,"Кол-во") ->  | C13: =IF(SUM(INDIRECT({"ТИП1";"ТИП2";"ТИП3";"ТИП4";"ТИП5";"ТИП6";"ТИП7";"ТИП8";"ТИП9";"ТИП10"}&"!AB21"))>0,1,0) ->  | D13: =IF(SUM(INDIRECT({"ТИП1";"ТИП2";"ТИП3";"ТИП4";"ТИП5";"ТИП6";"ТИП7";"ТИП8";"ТИП9";"ТИП10"}&"!AC21"))>0,1,0) ->  | E13: =IF(SUM(INDIRECT({"ТИП1";"ТИП2";"ТИП3";"ТИП4";"ТИП5";"ТИП6";"ТИП7";"ТИП8";"ТИП9";"ТИП10"}&"!AD21"))>0,1,0) ->  | F13: - | G13: - | H13: - | I13: -
B14: Промежуточный вес | C14: =IFERROR(C13/L13*C12,0) -> 0 | D14: =IFERROR(D13/L13*D12,0) -> 0 | E14: =IFERROR(E13/L13*E12,0) -> 0 | F14: - | G14: - | H14: - | I14: - | L14: 0
B15: Итоговый вес | C15: =IFERROR(C14*L12/L14,0) -> 0 | D15: =IFERROR(D14*L12/L14,0) -> 0 | E15: =IFERROR(E14*L12/L14,0) -> 0 | F15: - | G15: - | H15: - | I15: - | L15: 0
B16: =IF(M16=0,0,"Стоимость") ->  | C16: =$M$16*C15 ->  | D16: =$M$16*D15 ->  | E16: =$M$16*E15 ->  | M16: =(ОБЩИЕ_ДАННЫЕ!#REF!)*0.5 -> 
A17: ПК ПМ | B17: Вес | C17: 0.15 | D17: 0.15 | E17: 0.15 | F17: 0.35 | G17: 0.15 | H17: 0.05 | I17: - | L17: =SUM(C17:H17) -> 1
B18: =IF(M21=0,0,"Кол-во") -> 0 | C18: =IF(ОБЩИЕ_ДАННЫЕ!H131=0,0,IF(AND(INDEX(Деление_СБЕ[],MATCH("Материалы_основные",Деление_СБЕ[Расчет материалов],0),MATCH("КВ",Деление_СБЕ[#Headers],0))>0,ОБЩИЕ_ДАННЫЕ!O34>0),1,0)) -> 0 | D18: =IF(ОБЩИЕ_ДАННЫЕ!I131=0,0,IF(AND(INDEX(Деление_СБЕ[],MATCH("Материалы_основные",Деление_СБЕ[Расчет материалов],0),MATCH("XPS",Деление_СБЕ[#Headers],0))>0,ОБЩИЕ_ДАННЫЕ!O34>0),1,0)) -> 0 | E18: =IF(ОБЩИЕ_ДАННЫЕ!J131=0,0,IF(AND(INDEX(Деление_СБЕ[],MATCH("Материалы_основные",Деление_СБЕ[Расчет материалов],0),MATCH("PIR",Деление_СБЕ[#Headers],0))>0,ОБЩИЕ_ДАННЫЕ!O34>0),1,0)) -> 0 | F18: =IF(ОБЩИЕ_ДАННЫЕ!K131=0,0,IF(AND(INDEX(Деление_СБЕ[],MATCH("Материалы_основные",Деление_СБЕ[Расчет материалов],0),MATCH("ПМ",Деление_СБЕ[#Headers],0))>0,ОБЩИЕ_ДАННЫЕ!O34>0),1,0)) -> 0 | G18: =IF(ОБЩИЕ_ДАННЫЕ!L131=0,0,IF(AND(OR(INDEX(Деление_СБЕ[],MATCH("Материалы_основные",Деление_СБЕ[Расчет материалов],0),MATCH("РМ",Деление_СБЕ[#Headers],0))>0,INDEX(Деление_СБЕ[],MATCH("Материалы_паробарьер",Деление_СБЕ[Расчет материалов],0),MATCH("РМ",Деление_СБЕ[#Headers],0))>0),ОБЩИЕ_ДАННЫЕ!O34>0),1,0)) -> 0 | H18: =IF(ОБЩИЕ_ДАННЫЕ!M131=0,0,IF(AND(INDEX(Деление_СБЕ[],MATCH("Материалы_основные",Деление_СБЕ[Расчет материалов],0),MATCH("МиСХ",Деление_СБЕ[#Headers],0))>0,ОБЩИЕ_ДАННЫЕ!O34>0),1,0)) -> 0 | I18: - | L18: =SUM(C18:H18) -> 0
B19: Промежуточный вес | C19: =IFERROR(C18/L18*C17,0) -> 0 | D19: =IFERROR(D18/L18*D17,0) -> 0 | E19: =IFERROR(E18/L18*E17,0) -> 0 | F19: =IFERROR(F18/L18*F17,0) -> 0 | G19: =IFERROR(G18/L18*G17,0) -> 0 | H19: =IFERROR(H18/L18*H17,0) -> 0 | I19: - | L19: =SUM(C19:H19) -> 0
B20: Итоговый вес | C20: =IFERROR(C19*L17/L19,0) -> 0 | D20: =IFERROR(D19*L17/L19,0) -> 0 | E20: =IFERROR(E19*L17/L19,0) -> 0 | F20: =IFERROR(F19*L17/L19,0) -> 0 | G20: =IFERROR(G19*L17/L19,0) -> 0 | H20: =IFERROR(H19*L17/L19,0) -> 0 | I20: - | L20: 0
B21: =IF(M21=0,0,"Стоимость") -> 0 | C21: =$M$21*C20 -> 0 | D21: 0 | E21: 0 | F21: 0 | G21: 0 | H21: 0 | L21: 0 | M21: =ОБЩИЕ_ДАННЫЕ!P34*0.5 -> 0
A22: ПК РМ | B22: Вес | C22: 0.1833333333 | D22: 0.1833333333 | E22: 0.1833333333 | F22: - | G22: 0.4 | H22: 0.05 | I22: - | L22: 1
B23: =IF(M26=0,0,"Кол-во") -> Кол-во | C23: =IF(ОБЩИЕ_ДАННЫЕ!H131=0,0,IF(AND(INDEX(Деление_СБЕ[],MATCH("Материалы_основные",Деление_СБЕ[Расчет материалов],0),MATCH("КВ",Деление_СБЕ[#Headers],0))>0,ОБЩИЕ_ДАННЫЕ!O35>0),1,0)) -> 1 | D23: =IF(ОБЩИЕ_ДАННЫЕ!I131=0,0,IF(AND(INDEX(Деление_СБЕ[],MATCH("Материалы_основные",Деление_СБЕ[Расчет материалов],0),MATCH("XPS",Деление_СБЕ[#Headers],0))>0,ОБЩИЕ_ДАННЫЕ!O35>0),1,0)) -> 0 | E23: =IF(ОБЩИЕ_ДАННЫЕ!J131=0,0,IF(AND(INDEX(Деление_СБЕ[],MATCH("Материалы_основные",Деление_СБЕ[Расчет материалов],0),MATCH("PIR",Деление_СБЕ[#Headers],0))>0,ОБЩИЕ_ДАННЫЕ!O35>0),1,0)) -> 1 | F23: - | G23: =IF(ОБЩИЕ_ДАННЫЕ!L131=0,0,IF(AND(INDEX(Деление_СБЕ[],MATCH("Материалы_основные",Деление_СБЕ[Расчет материалов],0),MATCH("ПМ",Деление_СБЕ[#Headers],0))>0,ОБЩИЕ_ДАННЫЕ!O35>0),1,0)) -> 0 | H23: =IF(ОБЩИЕ_ДАННЫЕ!M131=0,0,IF(AND(INDEX(Деление_СБЕ[],MATCH("Материалы_основные",Деление_СБЕ[Расчет материалов],0),MATCH("МиСХ",Деление_СБЕ[#Headers],0))>0,ОБЩИЕ_ДАННЫЕ!O35>0),1,0)) -> 1 | I23: - | L23: =SUM(C23:H23) -> 3
B24: Промежуточный вес | C24: =IFERROR(C23/L23*C22,0) -> 0.06111111111 | D24: =IFERROR(D23/L23*D22,0) -> 0 | E24: =IFERROR(E23/L23*E22,0) -> 0.06111111111 | F24: - | G24: =IFERROR(G23/L23*$G$22,0) -> 0 | H24: =IFERROR(H23/L23*$H$22,0) -> 0.01666666667 | I24: - | L24: =SUM(C24:H24) -> 0.1388888889
B25: Итоговый вес | C25: =IFERROR(C24*L22/L24,0) -> 0.44 | D25: =IFERROR(D24*L22/L24,0) -> 0 | E25: =IFERROR(E24*L22/L24,0) -> 0.44 | F25: - | G25: =IFERROR(G24*L$22/L$24,0) -> 0 | H25: =IFERROR(H24*L$22/L$24,0) -> 0.12 | I25: - | L25: =SUM(C25:H25) -> 1
B26: =IF(M26=0,0,"Стоимость") -> Стоимость | C26: =$M$26*C25 -> 1056 | D26: =$M$26*D25 -> 0 | E26: =$M$26*E25 -> 1056 | G26: =$M$26*G25 -> 0 | H26: =$M$26*H25 -> 288 | L26: =$M$26*L25 -> 2400 | M26: =ОБЩИЕ_ДАННЫЕ!P35*0.5 -> 2400
A27: Ветер ПМ | B27: Вес | C27: - | D27: - | E27: - | F27: 1 | G27: - | H27: - | I27: - | L27: =SUM(F27:G27) -> 1
B28: =IF(M31=0,0,"Кол-во") -> 0 | C28: - | D28: - | E28: - | F28: =IF(ОБЩИЕ_ДАННЫЕ!O36>0,1,0) -> 0 | G28: - | H28: - | I28: - | L28: 0
B29: Промежуточный вес | C29: - | D29: - | E29: - | F29: =IFERROR(F28/$L$28*F27,0) -> 0 | G29: - | H29: - | I29: - | L29: 0
B30: Итоговый вес | C30: - | D30: - | E30: - | F30: =IFERROR(F29*$L$27/$L$29,0) -> 0 | G30: - | H30: - | I30: - | L30: 0
B31: =IF(M31=0,0,"Стоимость") -> 0 | F31: =F30*M31 -> 0 | G31: - | H31: - | I31: - | L31: 0 | M31: =IF(F28=1,(ОБЩИЕ_ДАННЫЕ!P36*0.25),0) -> 0
A32: Ветер РМ | B32: Вес | C32: - | D32: - | E32: - | F32: - | G32: 1 | H32: - | I32: - | L32: 1
B33: =IF(M36=0,0,"Кол-во") -> 0 | C33: - | D33: - | E33: - | F33: - | G33: =IF(ОБЩИЕ_ДАННЫЕ!O37>0,1,0) -> 0 | H33: - | I33: - | L33: 0
B34: Промежуточный вес | C34: - | D34: - | E34: - | F34: - | G34: =IFERROR(G33/$L$33*G32,0) -> 0 | H34: - | I34: - | L34: 0
B35: Итоговый вес | C35: - | D35: - | E35: - | F35: - | G35: =IFERROR(G34*L32/L34,0) -> 0 | H35: - | I35: - | L35: 0
B36: =IF(M36=0,0,"Стоимость") -> 0 | C36: - | D36: - | E36: - | F36: - | G36: =G35*M36 -> 0 | H36: - | I36: - | L36: 0 | M36: =IF(G33=1,(ОБЩИЕ_ДАННЫЕ!P37*0.25),0) -> 0
A37: Тепло СП 23-02-2003 | B37: Вес | C37: 0.3333333333 | D37: 0.3333333333 | E37: 0.3333333333 | F37: - | G37: - | H37: - | I37: - | L37: =SUM(C37:E37) -> 1
B38: =IF(M41=0,0,"Кол-во") -> Кол-во | C38: =ОБЩИЕ_ДАННЫЕ!W38 -> 1 | D38: =ОБЩИЕ_ДАННЫЕ!X38 -> 0 | E38: =ОБЩИЕ_ДАННЫЕ!Y38 -> 1 | F38: - | G38: - | H38: - | I38: - | L38: =SUM(C38:E38) -> 2
B39: Промежуточный вес | C39: =IFERROR(C38/L38*C37,0) -> 0.1666666667 | D39: =IFERROR(D38/L38*D37,0) -> 0 | E39: =IFERROR(E38/L38*E37,0) -> 0.1666666667 | F39: - | G39: - | H39: - | I39: - | L39: =SUM(C39:E39) -> 0.3333333333
B40: Итоговый вес | C40: =IFERROR(C39*L37/L39,0) -> 0.5 | D40: =IFERROR(D39*L37/L39,0) -> 0 | E40: =IFERROR(E39*L37/L39,0) -> 0.5 | F40: - | G40: - | H40: - | I40: - | L40: =SUM(C40:E40) -> 1
B41: =IF(M41=0,0,"Стоимость") -> Стоимость | C41: =IFERROR($M$41*C40,0) -> 300 | D41: =$M$41*D40 -> 0 | E41: =$M$41*E40 -> 300 | L41: =SUM(C41:E41) -> 600 | M41: =ОБЩИЕ_ДАННЫЕ!P38*0.5 -> 600
A42: Анализ документации | B42: Вес | C42: 0.19 | D42: 0.19 | E42: 0.19 | F42: 0.19 | G42: 0.19 | H42: 0.05 | L42: =SUM(C42:K42) -> 1
B43: =IF(M46=0,0,"Кол-во") -> Кол-во | C43: =IF(SUM(C3,C18,C23,C28,C38)>0,1,0) -> 1 | D43: 0 | E43: 1 | F43: 0 | G43: =IF(SUM(G3,G18,G23,G33,G38)>0,1,0) -> 0 | H43: 1 | L43: =SUM(C43:H43) -> 3
B44: Промежуточный вес | C44: =IFERROR(C43/L43*C42,0) -> 0.06333333333 | D44: =IFERROR(D43/L43*D42,0) -> 0 | E44: =IFERROR(E43/$L$43*E42,0) -> 0.06333333333 | F44: =IFERROR(F43/$L$43*F42,0) -> 0 | G44: =IFERROR(G43/$L$43*G42,0) -> 0 | H44: =IFERROR(H43/$L$43*H42,0) -> 0.01666666667 | I44: - | L44: =SUM(C44:H44) -> 0.1433333333
B45: Итоговый вес | C45: =IFERROR(C44*L42/L44,0) -> 0.4418604651 | D45: =IFERROR(D44*L42/L44,0) -> 0 | E45: =IFERROR(E44*$L$42/$L$44,0) -> 0.4418604651 | F45: =IFERROR(F44*$L$42/$L$44,0) -> 0 | G45: =IFERROR(G44*$L$42/$L$44,0) -> 0 | H45: =IFERROR(H44*$L$42/$L$44,0) -> 0.1162790698 | I45: - | L45: =SUM(C45:H45) -> 1
B46: =IF(M46=0,0,"Стоимость") -> Стоимость | C46: =IFERROR($M$46*C45,0) -> 883.7209302 | D46: =$M$46*D45 -> 0 | E46: =$M$46*E45 -> 883.7209302 | F46: =$M$46*F45 -> 0 | G46: =$M$46*G45 -> 0 | H46: =$M$46*H45 -> 232.5581395 | L46: =SUM(C46:H46) -> 2000 | M46: =ОБЩИЕ_ДАННЫЕ!P32*0.5 -> 2000
A47: Ветер зоны | B47: Вес | C47: - | D47: - | E47: - | F47: 0.5 | G47: 0.5 | H47: - | I47: - | L47: =SUM(F47:G47) -> 1
B48: =IF(M51=0,0,"Кол-во") -> 0 | C48: - | D48: - | E48: - | F48: =IF(ОБЩИЕ_ДАННЫЕ!Z42>0,1,0) -> 0 | G48: =IF(ОБЩИЕ_ДАННЫЕ!AA42>0,1,0) -> 0 | H48: - | I48: - | L48: 0
B49: Промежуточный вес | C49: - | D49: - | E49: - | F49: =IFERROR(F48/$L$48*F47,0) -> 0 | G49: =IFERROR(G48/$L$48*G47,0) -> 0 | H49: - | I49: - | L49: 0
B50: Итоговый вес | C50: - | D50: - | E50: - | F50: =IFERROR(F49*$L$47/$L$49,0) -> 0 | G50: =IFERROR(G49*L47/L49,0) -> 0 | H50: - | I50: - | L50: 0
B51: =IF(M51=0,0,"Стоимость") -> 0 | F51: =F50*M51 -> 0 | G51: =G50*M51 -> 0 | L51: =SUM(F51:G51) -> 0 | M51: =IF(OR(F48=1,G48=1),(ОБЩИЕ_ДАННЫЕ!P42*0.25),0) -> 0
A52: Раскладка рулонов | B52: Вес | C52: - | D52: - | E52: - | F52: 0.5 | G52: 0.5 | H52: - | I52: - | L52: 1
B53: =IF(M56=0,0,"Кол-во") -> 0 | C53: - | D53: - | E53: - | F53: =IF(ОБЩИЕ_ДАННЫЕ!Z43>0,1,0) -> 0 | G53: =IF(ОБЩИЕ_ДАННЫЕ!AA43>0,1,0) -> 0 | H53: - | I53: - | L53: 0
B54: Промежуточный вес | C54: - | D54: - | E54: - | F54: =IFERROR(F53/$L$53*F52,0) -> 0 | G54: =IFERROR(G53/$L$53*G52,0) -> 0 | H54: - | I54: - | L54: 0
B55: Итоговый вес | C55: - | D55: - | E55: - | F55: =IFERROR(F54*$L$52/$L$54,0) -> 0 | G55: =IFERROR(G54*L52/L54,0) -> 0 | H55: - | I55: - | L55: 0
B56: =IF(M56=0,0,"Стоимость") -> 0 | F56: =F55*M56 -> 0 | G56: =G55*M56 -> 0 | L56: 0 | M56: =IF(OR(F53=1,G53=1),(ОБЩИЕ_ДАННЫЕ!P43*0.25),0) -> 0
A57: Расчет паронакопления СП 50-13330.2012 | B57: Вес | C57: - | D57: - | E57: - | F57: - | G57: 1 | H57: - | I57: - | L57: =G57 -> 1
B58: =IF(M61=0,0,"Кол-во") -> 0 | C58: - | D58: - | E58: - | F58: - | G58: =IF(ОБЩИЕ_ДАННЫЕ!O40>0,1,0) -> 0 | H58: - | I58: - | L58: =G58 -> 0
B59: Промежуточный вес | C59: - | D59: - | E59: - | F59: - | G59: =IFERROR(G58/L58*G57,0) -> 0 | H59: - | I59: - | L59: =G59 -> 0
B60: Итоговый вес | C60: - | D60: - | F60: - | G60: =IFERROR(G59*L57/L59,0) -> 0 | H60: - | I60: - | L60: =G60 -> 0
B61: =IF(M61=0,0,"Стоимость") -> 0 | C61: - | D61: - | F61: - | G61: =$M$61*G60 -> 0 | L61: =G61 -> 0 | M61: =ОБЩИЕ_ДАННЫЕ!P40*0.5 -> 0
A62: Расчет ограждения | B62: Вес | F62: 1 | L62: =F62 -> 1
B63: =IF(M66=0,0,"Кол-во") -> Кол-во | F63: =IF(ОБЩИЕ_ДАННЫЕ!O41>0,1,0) -> 1 | L63: =F63 -> 1
B64: Промежуточный вес | F64: =IFERROR(F63/L63*F62,0) -> 1 | L64: =F64 -> 1
B65: Итоговый вес | F65: =IFERROR(F64*L62/L64,0) -> 1 | L65: =F65 -> 1
B66: =IF(M66=0,0,"Стоимость") -> Стоимость | F66: =$M$66*F65 -> 800 | L66: =F66 -> 800 | M66: =ОБЩИЕ_ДАННЫЕ!P41 -> 800
A67: Тепло СП 50 | B67: Вес | C67: 0.3333333333 | D67: 0.3333333333 | E67: 0.3333333333 | F67: - | G67: - | H67: - | I67: - | L67: =SUM(C67:E67) -> 1
B68: =IF(M71=0,0,"Кол-во") -> 0 | C68: =ОБЩИЕ_ДАННЫЕ!W39 -> 0 | D68: =ОБЩИЕ_ДАННЫЕ!X39 -> 0 | E68: =ОБЩИЕ_ДАННЫЕ!Y39 -> 0 | F68: - | G68: - | H68: - | I68: - | L68: =SUM(C68:E68) -> 0
B69: Промежуточный вес | C69: =IFERROR(C68/L68*C67,0) -> 0 | D69: =IFERROR(D68/L68*D67,0) -> 0 | E69: =IFERROR(E68/L68*E67,0) -> 0 | F69: - | G69: - | H69: - | I69: - | L69: =SUM(C69:E69) -> 0
B70: Итоговый вес | C70: =IFERROR(C69*L67/L69,0) -> 0 | D70: =IFERROR(D69*L67/L69,0) -> 0 | E70: =IFERROR(E69*L67/L69,0) -> 0 | F70: - | G70: - | H70: - | I70: - | L70: =SUM(C70:E70) -> 0
B71: =IF(M71=0,0,"Стоимость") -> 0 | C71: =IFERROR($M$71*C70,0) -> 0 | D71: =$M$71*D70 -> 0 | E71: =$M$71*E70 -> 0 | L71: =SUM(C71:E71) -> 0 | M71: =ОБЩИЕ_ДАННЫЕ!P39 -> 0
A72: Воронки ПМ | B72: Вес | C72: - | D72: - | E72: - | F72: 1 | G72: - | H72: - | I72: - | L72: =SUM(F72) -> 1
B73: =IF(M76=0,0,"Кол-во") -> 0 | C73: - | D73: - | E73: - | F73: =IF(ОБЩИЕ_ДАННЫЕ!O44>0,1,0) -> 0 | G73: - | H73: - | I73: - | L73: =SUM(F73) -> 0
B74: Промежуточный вес | C74: - | D74: - | E74: - | F74: =IFERROR(F73/$L$73*F72,0) -> 0 | G74: - | H74: - | I74: - | L74: =SUM(F74) -> 0
B75: Итоговый вес | C75: - | D75: - | E75: - | F75: =IFERROR(F74*$L$72/$L$74,0) -> 0 | G75: - | H75: - | I75: - | L75: =SUM(F75) -> 0
B76: =IF(M76=0,0,"Стоимость") -> 0 | F76: =F75*M76 -> 0 | G76: - | H76: - | I76: - | L76: =SUM(F76) -> 0 | M76: =ОБЩИЕ_ДАННЫЕ!P44 -> 0
A77: Воронки РМ | B77: Вес | C77: - | D77: - | E77: - | F77: - | G77: 1 | H77: - | I77: - | L77: =SUM(F77:G77) -> 1
B78: =IF(M81=0,0,"Кол-во") -> 0 | C78: - | D78: - | E78: - | F78: - | G78: =IF(ОБЩИЕ_ДАННЫЕ!O45>0,1,0) -> 0 | H78: - | I78: - | L78: 0
B79: Промежуточный вес | C79: - | D79: - | E79: - | F79: - | G79: =IFERROR(G78/$L$78*G77,0) -> 0 | H79: - | I79: - | L79: =SUM(G79) -> 0
B80: Итоговый вес | C80: - | D80: - | E80: - | F80: - | G80: =IFERROR(G79*L77/L79,0) -> 0 | H80: - | I80: - | L80: 0
B81: =IF(M81=0,0,"Стоимость") -> 0 | C81: - | D81: - | E81: - | F81: - | G81: =G80*M81 -> 0 | H81: - | I81: - | L81: =SUM(G81) -> 0 | M81: =ОБЩИЕ_ДАННЫЕ!P45 -> 0
